Workbook

Sheet Contents
C2: =B6 -> Mobile switching: Gross costs to mobile providers
A4: Information
A6: Title | B6: Mobile switching: Gross costs to mobile providers
A8: Version | B8: 2017 release 1.0
A9: Status | B9: Approved for release
A10: Author | B10: Ofcom
A12: Confidentiality status | B12: Non-confidential
A15: Contents
A17: Sheet | B17: Description
A19: Contents | B19: This contents sheet
A21: Actual model sheets
A22: Industry cost summary | B22: Summarises gross industry setup, ongoing, and 10-year cost for each reform, under residential+business / business-only scenarios | D22: Approved for release
A23: SP cost summary | B23: Summarises gross setup, ongoing and 10-year cost for notional provider in each category, as selected at top of sheet | D23: Approved for release
A24: Salary, staff rates | B24: Contains assumptions about salaries, external day rates and other inputs used to calculate daily resource costs | D24: Approved for release
A25: Development days | B25: Contains assumptions about resource type and development days for individual line items | D25: Approved for release
A26: Notice period reform | B26: Presents cost activities and cost of individual line items for notice period reform | D26: Approved for release
A27: Auto-PAC CPS variant | B27: Presents cost activities and cost of individual line items for Auto-PAC CPS variant | D27: Approved for release
A28: Auto-PAC LP variant | B28: Presents cost activities and cost of individual line items for Auto-PAC LP variant | D28: Approved for release
A29: GPL | B29: Presents cost activities and cost of individual line items for GPL | D29: Approved for release
A30: End-to-end management | B30: Presents cost activities and cost of individual line items for End-to-end management | D30: Approved for release
A33: Instructions
A35: To see gross industry cost, select scenario at top of "Industry cost summary" sheet. Then recalculate industry costs to display correct costs for that scenario
A36: To see cost per provider, select provider category 1-5 in row 15 of "SP cost summary" sheet

Sheet Industry cost summary
A1: Industry cost summary
A2: Includes CPS costs - from CPS costs workbook | D2: Select scenario, then recalculate industry cost:
D3: Businesses included
A5: Reform | B5: MNO | C5: Large MVNO | D5: Medium MVNO | E5: MVNE/MVNA | F5: Small MVNO: Full cost | G5: Small MVNO: Partial cost | H5: CPS (from CPS costs workbook) | J5: Total setup cost
A7: ='SP cost summary'!A6 -> Not charging for notice period beyond the switching date | B7: ='SP cost summary'!C6 -> 303800.42 | C7: ='SP cost summary'!D6 -> 152181 | D7: ='SP cost summary'!E6 -> 56085.67 | E7: ='SP cost summary'!F6 -> 46035.09 | F7: ='SP cost summary'!G6 -> 12524.3 | G7: N/A | H7: 0 | J7: =(B7*$C$45)+(C7*$C$46)+(D7*$C$47)+(E7*$C$48)+(F7*$C$49)+H7 -> 6499625.02
A8: ='SP cost summary'!A7 -> Auto-PAC CPS variant | B8: ='SP cost summary'!C7 -> 2069945.13 | C8: ='SP cost summary'!D7 -> 999338.85 | D8: ='SP cost summary'!E7 -> 467090.35 | E8: ='SP cost summary'!F7 -> 681452.85 | F8: ='SP cost summary'!G7 -> 47041.33 | G8: =IF(D3="Businesses included",F8,(F8*'SP cost summary'!R7)) -> 47041.33 | H8: 1729991.228 | J8: =(B8*C37)+(C8*C38)+(D8*C39)+(E8*C40)+(F8*C41)+(G8*C42)+H8 -> 40170252.56
A9: ='SP cost summary'!A8 -> Auto-PAC LP variant | B9: ='SP cost summary'!C8 -> 1447710.49 | C9: ='SP cost summary'!D8 -> 697989.19 | D9: ='SP cost summary'!E8 -> 401456.43 | E9: ='SP cost summary'!F8 -> 514320.18 | F9: ='SP cost summary'!G8 -> 33523.17 | G9: =IF(D3="Businesses included",F9,(F9*'SP cost summary'!R8)) -> 33523.17 | H9: 0 | J9: =(B9*C37)+(C9*C38)+(D9*C39)+(E9*C40)+(F9*C41)+(G9*C42)+H9 -> 27769398.51
A10: ='SP cost summary'!A9 -> GPL | B10: ='SP cost summary'!C9 -> 2363296 | C10: ='SP cost summary'!D9 -> 1128816.92 | D10: ='SP cost summary'!E9 -> 556888.6 | E10: ='SP cost summary'!F9 -> 778444.08 | F10: ='SP cost summary'!G9 -> 47041.33 | G10: N/A | H10: 2026065.789 | J10: =(B10*C45)+(C10*C46)+(D10*C47)+(E10*C48)+(F10*C49)+H10 -> 44378708.71
A11: ='SP cost summary'!A10 -> End-to-end management | B11: ='SP cost summary'!C10 -> 1011936.39 | C11: ='SP cost summary'!D10 -> 649970.47 | D11: ='SP cost summary'!E10 -> 353568.13 | E11: ='SP cost summary'!F10 -> 347377.19 | F11: ='SP cost summary'!G10 -> 14122.55 | G11: N/A | H11: 941592.1053 | J11: =(B11*C45)+(C11*C46)+(D11*C47)+(E11*C48)+(F11*C49)+H11 -> 20315870.74
A13: Reform | B13: MNO | C13: Large MVNO | D13: Medium MVNO | E13: MVNE/MVNA | F13: Small MVNO: Full cost | G13: Small MVNO: Partial cost | H13: CPS (from CPS costs workbook) | J13: Annual ongoing cost
A15: =A7 -> Not charging for notice period beyond the switching date | B15: ='SP cost summary'!H6 -> 4837.5 | C15: ='SP cost summary'!I6 -> 4387.5 | D15: ='SP cost summary'!J6 -> 3600 | E15: ='SP cost summary'!K6 -> 3600 | F15: ='SP cost summary'!L6 -> 0 | G15: N/A | H15: 0 | J15: =(B15*$C$45)+(C15*$C$46)+(D15*$C$47)+(E15*$C$48)+(F15*$C$49)+H15 -> 118012.5
A16: =A8 -> Auto-PAC CPS variant | B16: ='SP cost summary'!H7 -> 125894.08 | C16: ='SP cost summary'!I7 -> 70060.83 | D16: ='SP cost summary'!J7 -> 40811.84 | E16: ='SP cost summary'!K7 -> 60358.72 | F16: ='SP cost summary'!L7 -> 3115.79 | G16: =IF(D3="Businesses included",F16,(F16*'SP cost summary'!S7)) -> 3115.79 | H16: 303750 | J16: =(B16*C37)+(C16*C38)+(D16*C39)+(E16*C40)+(F16*C41)+(G16*C42)+H16 -> 3028599.53
A17: Auto-PAC LP variant | B17: ='SP cost summary'!H8 -> 96644.08 | C17: ='SP cost summary'!I8 -> 54208.55 | D17: ='SP cost summary'!J8 -> 39124.34 | E17: ='SP cost summary'!K8 -> 48124.34 | F17: ='SP cost summary'!L8 -> 3115.79 | G17: =IF(D3="Businesses included",F17,(F17*'SP cost summary'!S8)) -> 3115.79 | H17: 0 | J17: =(B17*C37)+(C17*C38)+(D17*C39)+(E17*C40)+(F17*C41)+(G17*C42)+H17 -> 2325474.41
A18: GPL | B18: ='SP cost summary'!H9 -> 155075.66 | C18: ='SP cost summary'!I9 -> 87429.9 | D18: ='SP cost summary'!J9 -> 53118.42 | E18: ='SP cost summary'!K9 -> 72665.3 | F18: ='SP cost summary'!L9 -> 3115.79 | G18: N/A | H18: 357000 | J18: =(B18*$C$45)+(C18*$C$46)+(D18*$C$47)+(E18*$C$48)+(F18*$C$49)+H18 -> 3561927.74
A19: End-to-end management | B19: ='SP cost summary'!H10 -> 90236.84 | C19: ='SP cost summary'!I10 -> 61776.97 | D19: ='SP cost summary'!J10 -> 37806.58 | E19: ='SP cost summary'!K10 -> 37806.58 | F19: ='SP cost summary'!L10 -> 0 | G19: N/A | H19: 160600 | J19: =(B19*$C$45)+(C19*$C$46)+(D19*$C$47)+(E19*$C$48)+(F19*$C$49)+H19 -> 1730386.15
A22: Reform | B22: MNO | C22: Large MVNO | D22: Medium MVNO | E22: MVNE/MVNA | F22: Small MVNO: Full cost | G22: Small MVNO: Partial cost | H22: CPS (from CPS costs workbook) | J22: Total industry cost (10-year)
A24: =A15 -> Not charging for notice period beyond the switching date | B24: ='SP cost summary'!M6 -> 352175.42 | C24: ='SP cost summary'!N6 -> 196056 | D24: ='SP cost summary'!O6 -> 92085.67 | E24: ='SP cost summary'!P6 -> 82035.09 | F24: ='SP cost summary'!Q6 -> 12524.3 | G24: N/A | H24: 0 | J24: =(B24*$C$45)+(C24*$C$46)+(D24*$C$47)+(E24*$C$48)+(F24*$C$49)+H24 -> 7679750.02
A25: =A16 -> Auto-PAC CPS variant | B25: ='SP cost summary'!M7 -> 3328885.93 | C25: ='SP cost summary'!N7 -> 1699947.15 | D25: ='SP cost summary'!O7 -> 875208.75 | E25: ='SP cost summary'!P7 -> 1285040.05 | F25: ='SP cost summary'!Q7 -> 78199.23 | G25: =IF(D3="Businesses included",F25,(F25*'SP cost summary'!T7)) -> 78199.23 | H25: 4767491.228 | J25: =(B25*C37)+(C25*C38)+(D25*C39)+(E25*C40)+(F25*C41)+(G25*C42)+H25 -> 70456247.86
A26: Auto-PAC LP variant | B26: ='SP cost summary'!M8 -> 2414151.29 | C26: ='SP cost summary'!N8 -> 1240074.69 | D26: ='SP cost summary'!O8 -> 792699.83 | E26: ='SP cost summary'!P8 -> 995563.58 | F26: ='SP cost summary'!Q8 -> 64681.07 | G26: =IF(D3="Businesses included",F26,(F26*'SP cost summary'!T8)) -> 64681.07 | H26: 0 | J26: =(B26*C37)+(C26*C38)+(D26*C39)+(E26*C40)+(F26*C41)+(G26*C42)+H26 -> 51024142.61
A27: GPL | B27: ='SP cost summary'!M9 -> 3914052.6 | C27: ='SP cost summary'!N9 -> 2003115.92 | D27: ='SP cost summary'!O9 -> 1088072.8 | E27: ='SP cost summary'!P9 -> 1505097.08 | F27: ='SP cost summary'!Q9 -> 78199.23 | G27: N/A | H27: 5596065.789 | J27: =(B27*$C$45)+(C27*$C$46)+(D27*$C$47)+(E27*$C$48)+(F27*$C$49)+H27 -> 79997986.11
A28: End-to-end management | B28: ='SP cost summary'!M10 -> 1914304.79 | C28: ='SP cost summary'!N10 -> 1267740.17 | D28: ='SP cost summary'!O10 -> 731633.93 | E28: ='SP cost summary'!P10 -> 725442.99 | F28: ='SP cost summary'!Q10 -> 14122.55 | G28: N/A | H28: 2547592.105 | J28: =(B28*$C$45)+(C28*$C$46)+(D28*$C$47)+(E28*$C$48)+(F28*$C$49)+H28 -> 37619732.24
A30: Notes: Small MVNO partial cost column is only relevant for Auto-PAC reforms, and only under "businesses excluded" scenario
A32: ------------------------------------------------------------------------------------------------------------------------------------------>>>
A34: Value chain assumptions | C34: Selection | D34: Businesses excluded | E34: Businesses included
D35: Only relevant to Auto-PAC
A36: Auto-PAC variants
A37: Number of MNOs | C37: =IF($D$3=$D$34,D37,E37) -> 4 | D37: 4 | E37: 4 | F37: 4 MNOs
A38: Number of Large MVNOs | C38: 11 | D38: 11 | E38: 11 | F38: 11 large MVNOs
A39: Number of Medium MVNOs | C39: 6 | D39: 6 | E39: 6 | F39: 6 medium MVNOs
A40: Number of MVNE/MVNAs | C40: 8 | D40: 8 | E40: 8 | F40: 13 MVNEs; 5 inactive / not involved in switching
A41: Number of Small MVNOs | B41: Full cost | C41: 232 | D41: 69 | E41: 232 | F41: 232 small MVNOs; 163 are business only
B42: Partial cost | C42: 0 | D42: =232-69 -> 163 | E42: 0 | F42: 232 small MVNOs; 163 are business only
A44: Other reforms
A45: Number of MNOs | C45: =IF($D$3=$D$34,D45,E45) -> 4 | D45: N/A | E45: 4
A46: Number of large MVNOs | C46: =IF($D$3=$D$34,D46,E46) -> 11 | D46: N/A | E46: 11
A47: Number of medium MVNOs | C47: =IF($D$3=$D$34,D47,E47) -> 6 | D47: N/A | E47: 6
A48: Number of MVNEs/MVNAs | C48: =IF($D$3=$D$34,D48,E48) -> 8 | D48: N/A | E48: 8
A49: Number of small MVNOs | C49: =IF($D$3=$D$34,D49,E49) -> 232 | D49: N/A | E49: 232
A51: Cost activities
A53: ='Auto-PAC CPS variant'!D17 -> Develop functionality to check if the requested number is subject to residential or business product | C53: =IF($D$3=$D$34,D53,E53) -> No | D53: Yes | E53: No
A54: ='Auto-PAC CPS variant'!D18 -> If product is business, then bypass requirement for the development of functionality to a) calculate current billed and unbilled data for the customer's number from CRM/billing systems (and instead send rejection message to CPS) | C54: =IF($D$3=$D$34,D54,E54) -> No | D54: Yes | E54: No

Sheet SP cost summary
A1: Service provider cost summary
A3: Macro outputs for industry cost summary: Do not edit | C3: Total setup | H3: Total ongoing | M3: Total (10 year) | R3: % of full small MVNO cost incurred by business-only
A4: Reform | C4: MNO | D4: Large MVNO | E4: Medium MVNO | F4: MVNE/MVNA | G4: Small MVNO | H4: MNO | I4: Large MVNO | J4: Medium MVNO | K4: MVNE/MVNA | L4: Small MVNO | M4: MNO | N4: Large MVNO | O4: Medium MVNO | P4: MVNE/MVNA | Q4: Small MVNO | R4: Small MVNO setup | S4: Small MVNO ongoing | T4: Small MVNO total
A6: =A19 -> Not charging for notice period beyond the switching date | C6: 303800.42 | D6: 152181 | E6: 56085.67 | F6: 46035.09 | G6: 12524.3 | H6: 4837.5 | I6: 4387.5 | J6: 3600 | K6: 3600 | L6: 0 | M6: =C6+(10*H6) -> 352175.42 | N6: =D6+(10*I6) -> 196056 | O6: 92085.67 | P6: 82035.09 | Q6: 12524.3
A7: =A27 -> Auto-PAC CPS variant | C7: 2069945.13 | D7: 999338.85 | E7: 467090.35 | F7: 681452.85 | G7: 47041.33 | H7: 125894.08 | I7: 70060.83 | J7: 40811.84 | K7: 60358.72 | L7: 3115.79 | M7: =C7+(10*H7) -> 3328885.93 | N7: 1699947.15 | O7: 875208.75 | P7: 1285040.05 | Q7: 78199.23 | R7: 0.517482946 | S7: 0 | T7: 0.3112957554
A8: =A50 -> Auto-PAC LP variant | C8: 1447710.49 | D8: 697989.19 | E8: 401456.43 | F8: 514320.18 | G8: 33523.17 | H8: 96644.08 | I8: 54208.55 | J8: 39124.34 | K8: 48124.34 | L8: 3115.79 | M8: 2414151.29 | N8: 1240074.69 | O8: 792699.83 | P8: 995563.58 | Q8: 64681.07 | R8: 0.2891535969 | S8: 0 | T8: 0.1498637225
A9: =A74 -> GPL | C9: 2363296 | D9: 1128816.92 | E9: 556888.6 | F9: 778444.08 | G9: 47041.33 | H9: 155075.66 | I9: 87429.9 | J9: 53118.42 | K9: 72665.3 | L9: 3115.79 | M9: 3914052.6 | N9: 2003115.92 | O9: 1088072.8 | P9: 1505097.08 | Q9: 78199.23
A10: =A98 -> End-to-end management | C10: 1011936.39 | D10: 649970.47 | E10: 353568.13 | F10: 347377.19 | G10: 14122.55 | H10: 90236.84 | I10: 61776.97 | J10: 37806.58 | K10: 37806.58 | L10: 0 | M10: 1914304.79 | N10: 1267740.17 | O10: 731633.93 | P10: 725442.99 | Q10: 14122.55
C15: Service provider: SELECTION | E15: 1 | F15: =IF(scenario_choice=1,"MNO",IF(scenario_choice=2,"Large MVNO",IF(scenario_choice=3,"Medium MVNO",IF(scenario_choice=4,"MVNE/MVNA","Small MVNO")))) -> MNO
A18: Reform | C18: Activities | E18: Total setup | F18: Annual ongoing | G18: Total cost (10 years)
A19: ='Notice period reform'!A2 -> Not charging for notice period beyond the switching date | C19: ='Notice period reform'!A8 -> 1. Differentiate account closures resulting from switches / terminations | E19: =SUM('Notice period reform'!K8:K11) -> 9859.649123 | F19: =SUM('Notice period reform'!M8:M11) -> 900 | G19: =E19+(10*F19) -> 18859.64912
C20: ='Notice period reform'!A12 -> 2. Automatically close account at service deactivation | E20: =SUM('Notice period reform'!K12:K15) -> 12798.24561 | F20: =SUM('Notice period reform'!M12:M15) -> 1125 | G20: =E20+(10*F20) -> 24048.24561
C21: ='Notice period reform'!A16 -> 3. Calculate final bill | E21: =SUM('Notice period reform'!K16:K19) -> 35557.01754 | F21: =SUM('Notice period reform'!M16:M19) -> 2812.5 | G21: =E21+(10*F21) -> 63682.01754
C22: ='Notice period reform'!A21 -> 4. Training | E22: =SUM('Notice period reform'!K21:K26) -> 245585.5103 | F22: =SUM('Notice period reform'!M21:M26) -> 0 | G22: =E22+(10*F22) -> 245585.5103
C23: Total | E23: =SUM(E19:E22) -> 303800.4226 | F23: =SUM(F19:F22) -> 4837.5 | G23: 352175.4226
A26: Reform | C26: Major systems changes | E26: Total setup | F26: Annual ongoing | G26: Total cost (10 years) | I26: Costs relevant to business-only small MVNO in residential-only scenario?
A27: ='Auto-PAC CPS variant'!A2 -> Auto-PAC CPS variant | B27: Functionality for SMS process Of which 8-14 relate to CPS and central ported number database | C27: =Activity1 -> 1. Set up SMSC connections | E27: =SUM('Auto-PAC CPS variant'!K9:K13) -> 39368.42105 | F27: =SUM('Auto-PAC CPS variant'!M9:M13) -> 1778.947368 | G27: =E27+(10*F27) -> 57157.89474 | I27: No | J27: No | K27: No
C28: =Activity2 -> 2. Functionality to develop real-time ETC / credit balance | E28: =SUM('Auto-PAC CPS variant'!K14:K22) -> 207653.5088 | F28: =SUM('Auto-PAC CPS variant'!M14:M22) -> 21937.5 | G28: 427028.5088 | I28: No | J28: No | K28: No
C29: =Activity3 -> 3. Functionality to deliver ETC / credit balance to CPS | E29: =SUM('Auto-PAC CPS variant'!K23:K27) -> 91763.15789 | F29: =SUM('Auto-PAC CPS variant'!M23:M27) -> 7875 | G29: 170513.1579 | I29: No | J29: No | K29: No
C30: =Activity4 -> 4. MNP OSG engagement | E30: =SUM('Auto-PAC CPS variant'!K28:K30) -> 21052.63158 | F30: =SUM('Auto-PAC CPS variant'!M28:M30) -> 0 | G30: 21052.63158 | I30: No | J30: No | K30: No
C31: =Activity5 -> 5. Inter-operator testing | E31: =SUM('Auto-PAC CPS variant'!K31:K33) -> 22280.70175 | F31: =SUM('Auto-PAC CPS variant'!M31:M33) -> 0 | G31: 22280.70175 | I31: No | J31: No | K31: No
C32: =Activity6 -> 6. Training | E32: =SUM('Auto-PAC CPS variant'!K34:K39) -> 481627.161 | F32: =SUM('Auto-PAC CPS variant'!M34:M39) -> 0 | G32: 481627.161 | I32: Yes | J32: Yes | K32: Yes
C33: =Activity7 -> 7. Establish Small MVNO Account Management Portal | E33: =SUM('Auto-PAC CPS variant'!K42:K47) -> 54736.84211 | F33: =SUM('Auto-PAC CPS variant'!M42:M47) -> 4500 | G33: 99736.84211 | I33: No | J33: No | K33: No
C34: =Activity8 -> 8. Input customer data into MNO / MVNE CRM portal | E34: =SUM('Auto-PAC CPS variant'!K50:K53) -> 0 | F34: =SUM('Auto-PAC CPS variant'!M50:M53) -> 0 | G34: 0 | I34: No | J34: No | K34: No
C35: =Activity9 -> 9. Central ported number database | E35: =IF(F15="MNO",SUM('Auto-PAC CPS variant'!K58:K62)*('Salary . staff rates'!B37/'Salary . staff rates'!C37),IF('SP cost summary'!F15="Large MVNO",SUM('Auto-PAC CPS variant'!K58:K62)*('Salary . staff rates'!B38/'Salary . staff rates'!C38),IF(F15="Medium MVNO",SUM('Auto-PAC CPS variant'!K58:K62)*('Salary . staff rates'!B39/'Salary . staff rates'!C39),IF(F15="MVNE/MVNA",SUM('Auto-PAC CPS variant'!K58:K62)*('Salary . staff rates'!B40/'Salary . staff rates'!C40),SUM('Auto-PAC CPS variant'!K58:K62))))) -> 46666.66667 | F35: =IF(F15="MNO",SUM('Auto-PAC CPS variant'!M58:M62)*('Salary . staff rates'!B37/'Salary . staff rates'!C37),IF('SP cost summary'!F15="Large MVNO",SUM('Auto-PAC CPS variant'!M58:M62)*('Salary . staff rates'!B38/'Salary . staff rates'!C38),IF(F15="Medium MVNO",SUM('Auto-PAC CPS variant'!M58:M62)*('Salary . staff rates'!B39/'Salary . staff rates'!C39),IF(F15="MVNE/MVNA",SUM('Auto-PAC CPS variant'!M58:M62)*('Salary . staff rates'!B40/'Salary . staff rates'!C40),SUM('Auto-PAC CPS variant'!M58:M62))))) -> 0 | G35: 46666.66667 | H35: =IF(F15="Medium MVNO","",IF(F15="Small MVNO","",IF(F15="MNO","","Average of routing operators and non-routing operators"))) ->  | I35: Yes | J35: Yes | K35: Yes
C36: =Activity10 -> 10. Notify CPS once routing of porting numbers is updated to GP | E36: =IF(F15="MNO",SUM('Auto-PAC CPS variant'!K63:K67)*('Salary . staff rates'!B37/'Salary . staff rates'!C37),IF('SP cost summary'!F15="Large MVNO",SUM('Auto-PAC CPS variant'!K63:K67)*('Salary . staff rates'!B38/'Salary . staff rates'!C38),IF(F15="Medium MVNO",SUM('Auto-PAC CPS variant'!K63:K67)*('Salary . staff rates'!B39/'Salary . staff rates'!C39),IF(F15="MVNE/MVNA",SUM('Auto-PAC CPS variant'!K63:K67)*('Salary . staff rates'!B40/'Salary . staff rates'!C40),SUM('Auto-PAC CPS variant'!K63:K67))))) -> 157644.7368 | F36: =IF(F15="MNO",SUM('Auto-PAC CPS variant'!M63:M67)*('Salary . staff rates'!B37/'Salary . staff rates'!C37),IF('SP cost summary'!F15="Large MVNO",SUM('Auto-PAC CPS variant'!M63:M67)*('Salary . staff rates'!B38/'Salary . staff rates'!C38),IF(F15="Medium MVNO",SUM('Auto-PAC CPS variant'!M63:M67)*('Salary . staff rates'!B39/'Salary . staff rates'!C39),IF(F15="MVNE/MVNA",SUM('Auto-PAC CPS variant'!M63:M67)*('Salary . staff rates'!B40/'Salary . staff rates'!C40),SUM('Auto-PAC CPS variant'!M63:M67))))) -> 18562.5 | G36: 343269.7368 | H36: =IF(F15="Medium MVNO","",IF(F15="Small MVNO","",IF(F15="MNO","","Average of routing operators and non-routing operators"))) ->  | I36: Yes | J36: Yes | K36: Yes
C37: =Activity11 -> 11. Repatriations: Inactive ported in number identification | E37: =SUM('Auto-PAC CPS variant'!K70:K74) -> 45276.31579 | F37: =SUM('Auto-PAC CPS variant'!M70:M74) -> 2812.5 | G37: 73401.31579 | I37: Yes | J37: Yes | K37: Yes
C38: =Activity12 -> 12. Repatriations: Re-activation of repatriated numbers onto the original customer SIM | E38: =SUM('Auto-PAC CPS variant'!K75:K79) -> 65644.73684 | F38: =SUM('Auto-PAC CPS variant'!M75:M79) -> 5062.5 | G38: 116269.7368 | I38: Yes | J38: Yes | K38: Yes
C39: =Activity13 -> 13. Repatriations: Initiation and management of CPS processed repatriation transactions | E39: =SUM('Auto-PAC CPS variant'!K80:K84) -> 46986.84211 | F39: =SUM('Auto-PAC CPS variant'!M80:M84) -> 3937.5 | G39: 86361.84211 | I39: Yes | J39: Yes | K39: Yes
C40: =Activity14 -> 14. Repatriations: Additional training | E40: =SUM('Auto-PAC CPS variant'!K85:K90) -> 246953.9314 | F40: =SUM('Auto-PAC CPS variant'!M85:M90) -> 0 | G40: 246953.9314 | I40: Yes | J40: Yes | K40: Yes
C41: ='Auto-PAC CPS variant'!A95 -> 15. Update GP CRM systems to enable cancellations to be initiated | E41: =SUM('Auto-PAC CPS variant'!K95:K98) -> 65921.05263 | F41: =SUM('Auto-PAC CPS variant'!M95:M98) -> 7677.631579 | G41: 142697.3684 | I41: No | J41: No | K41: No
C42: ='Auto-PAC CPS variant'!A101 -> 16. Establish Small MVNO Porting Portal | E42: =SUM('Auto-PAC CPS variant'!K101:K105) -> 55789.47368 | F42: =SUM('Auto-PAC CPS variant'!M101:M105) -> 4500 | G42: 100789.4737 | I42: No | J42: No | K42: No
C43: ='Auto-PAC CPS variant'!A108 -> 17. Review and revise Small MVNO Business Processes to align to updated porting / cancellation functionality | E43: =SUM('Auto-PAC CPS variant'!K108:K111) -> 0 | F43: =SUM('Auto-PAC CPS variant'!M108:M111) -> 0 | G43: 0 | I43: No | J43: No | K43: No
B44: Functionality for online route (including multiple number requests) | C44: ='Auto-PAC CPS variant'!A115 -> 18. Develop PAC request via online account | E44: =SUM('Auto-PAC CPS variant'!K115:K122) -> 278583.3333 | F44: =SUM('Auto-PAC CPS variant'!M115:M122) -> 33187.5 | G44: 610458.3333 | I44: No | J44: No | K44: No
C45: ='Auto-PAC CPS variant'!A123 -> 19. Functionality to deliver ETC / credit balance via online account | E45: =SUM('Auto-PAC CPS variant'!K123:K129) -> 43969.29825 | F45: =SUM('Auto-PAC CPS variant'!M123:M129) -> 3937.5 | G45: 83344.29825 | I45: No | J45: No | K45: No
C46: ='Auto-PAC CPS variant'!A130 -> 20. Redesign online account for ETC / credit balance | E46: =SUM('Auto-PAC CPS variant'!K130:K136) -> 98026.31579 | F46: =SUM('Auto-PAC CPS variant'!M130:M136) -> 10125 | G46: 199276.3158 | I46: No | J46: No | K46: No
C47: Total | E47: =SUM(E27:E46) -> 2069945.127 | F47: =SUM(F27:F46) -> 125894.0789 | G47: 3328885.917 | I47: =(SUMIF(I27:I46,"Yes",E27:E46)/SUM(E27:E46)) -> 0.5269706796 | J47: =(SUMIF(J27:J46,"Yes",F27:F46)/SUM(F27:F46)) -> 0.2412742542 | K47: 0.4189240561
A49: Reform | C49: Major systems changes | E49: Total setup | F49: Annual ongoing | G49: Total cost (10 years) | I49: Activity relevant for business-only small MVNOs? | J49: Activity relevant for business-only small MVNOs? | K49: Activity relevant for business-only small MVNOs?
A50: ='Auto-PAC LP variant'!A2 -> Auto-PAC LP variant | B50: Functionality for PAC SMS process Of which 8-14 relate to CPS and central ported number database | C50: =Activity1 -> 1. Set up SMSC connections | E50: =SUM('Auto-PAC LP variant'!K9:K13) -> 39368.42105 | F50: =SUM('Auto-PAC LP variant'!M9:M13) -> 1778.947368 | G50: =E50+(10*F50) -> 57157.89474 | I50: No | J50: No | K50: No
C51: =Activity2 -> 2. Functionality to develop real-time ETC / credit balance | E51: =SUM('Auto-PAC LP variant'!K14:K21) -> 177653.5088 | F51: =SUM('Auto-PAC LP variant'!M14:M21) -> 17437.5 | G51: 352028.5088 | I51: No | J51: No | K51: No
C52: ='Auto-PAC LP variant'!A22 -> 3. Functionality to deliver PAC and ETC / credit balance to consumer via SMS | E52: =SUM('Auto-PAC LP variant'!K22:K27) -> 129754.386 | F52: =SUM('Auto-PAC LP variant'!M22:M27) -> 13500 | G52: 264754.386 | I52: No | J52: No | K52: No
C53: =Activity4 -> 4. MNP OSG engagement | E53: =SUM('Auto-PAC LP variant'!K28:K30) -> 0 | F53: =SUM('Auto-PAC LP variant'!M28:M30) -> 0 | G53: 0 | I53: No | J53: No | K53: No
C54: =Activity5 -> 5. Inter-operator testing | E54: =SUM('Auto-PAC LP variant'!K31:K33) -> 22280.70175 | F54: =SUM('Auto-PAC LP variant'!M31:M33) -> 0 | G54: 22280.70175 | I54: No | J54: No | K54: No
C55: =Activity6 -> 6. Training | E55: =SUM('Auto-PAC LP variant'!K34:K39) -> 481627.161 | F55: =SUM('Auto-PAC LP variant'!M34:M39) -> 0 | G55: 481627.161 | I55: Yes | J55: Yes | K55: Yes
C56: =Activity7 -> 7. Establish Small MVNO Account Management Portal | E56: =SUM('Auto-PAC LP variant'!K42:K47) -> 54736.84211 | F56: =SUM('Auto-PAC LP variant'!M42:M47) -> 4500 | G56: 99736.84211 | I56: No | J56: No | K56: No
C57: =Activity8 -> 8. Input customer data into MNO / MVNE CRM portal | E57: =SUM('Auto-PAC LP variant'!K50:K53) -> 0 | F57: =SUM('Auto-PAC LP variant'!M50:M53) -> 0 | G57: 0 | I57: No | J57: No | K57: No
C58: =Activity9 -> 9. Central ported number database | E58: =SUM('Auto-PAC LP variant'!K58:K62) -> 0 | F58: =SUM('Auto-PAC LP variant'!M58:M62) -> 0 | G58: 0 | I58: Yes | J58: Yes | K58: Yes
C59: =Activity10 -> 10. Notify CPS once routing of porting numbers is updated to GP | E59: =SUM('Auto-PAC LP variant'!K63:K67) -> 0 | F59: =SUM('Auto-PAC LP variant'!M63:M67) -> 0 | G59: 0 | I59: Yes | J59: Yes | K59: Yes
C60: =Activity11 -> 11. Repatriations: Inactive ported in number identification | E60: =SUM('Auto-PAC LP variant'!K70:K74) -> 0 | F60: =SUM('Auto-PAC LP variant'!M70:M74) -> 0 | G60: 0 | I60: Yes | J60: Yes | K60: Yes
C61: =Activity12 -> 12. Repatriations: Re-activation of repatriated numbers onto the original customer SIM | E61: =SUM('Auto-PAC LP variant'!K75:K79) -> 0 | F61: =SUM('Auto-PAC LP variant'!M75:M79) -> 0 | G61: 0 | I61: Yes | J61: Yes | K61: Yes
C62: =Activity13 -> 13. Repatriations: Initiation and management of CPS processed repatriation transactions | E62: =SUM('Auto-PAC LP variant'!K80:K84) -> 0 | F62: =SUM('Auto-PAC LP variant'!M80:M84) -> 0 | G62: 0 | I62: Yes | J62: Yes | K62: Yes
C63: =Activity14 -> 14. Repatriations: Additional training | E63: =SUM('Auto-PAC LP variant'!K85:K89) -> 0 | F63: =SUM('Auto-PAC LP variant'!M85:M89) -> 0 | G63: 0 | I63: Yes | J63: Yes | K63: Yes
C64: =C41 -> 15. Update GP CRM systems to enable cancellations to be initiated | E64: =SUM('Auto-PAC LP variant'!K95:K99) -> 65921.05263 | F64: =SUM('Auto-PAC LP variant'!M95:M99) -> 7677.631579 | G64: 142697.3684 | I64: No | J64: No | K64: No
C65: =C42 -> 16. Establish Small MVNO Porting Portal | E65: =SUM('Auto-PAC LP variant'!K101:K105) -> 55789.47368 | F65: =SUM('Auto-PAC LP variant'!M101:M105) -> 4500 | G65: 100789.4737 | I65: No | J65: No | K65: No
C66: 17. Review and revise Small MVNO Business Processes to align to updated porting / cancellation functionality | E66: =SUM('Auto-PAC LP variant'!K108:K111) -> 0 | F66: =SUM('Auto-PAC LP variant'!M108:M111) -> 0 | G66: 0 | I66: No | J66: No | K66: No
B67: =B44 -> Functionality for online route (including multiple number requests) | C67: 18. Develop PAC request via online account | E67: =SUM('Auto-PAC LP variant'!K115:K122) -> 278583.3333 | F67: =SUM('Auto-PAC LP variant'!M115:M122) -> 33187.5 | G67: 610458.3333 | I67: No | J67: No | K67: No
C68: 19. Functionality to deliver ETC / credit balance via online account | E68: =SUM('Auto-PAC LP variant'!K123:K129) -> 43969.29825 | F68: =SUM('Auto-PAC LP variant'!M123:M129) -> 3937.5 | G68: 83344.29825 | I68: No | J68: No | K68: No
C69: 20. Redesign online account for ETC / credit balance | E69: =SUM('Auto-PAC LP variant'!K130:K136) -> 98026.31579 | F69: =SUM('Auto-PAC LP variant'!M130:M136) -> 10125 | G69: 199276.3158 | I69: No | J69: No | K69: No
C70: Total | E70: =SUM(E50:E69) -> 1447710.494 | F70: =SUM(F50:F69) -> 96644.07895 | G70: 2414151.284 | I70: =(SUMIF(I50:I69,"Yes",E50:E69)/SUM(E50:E69)) -> 0.3326819574 | J70: =(SUMIF(J50:J69,"Yes",F50:F69)/SUM(F50:F69)) -> 0 | K70: 0.1995016486
A73: Reform | C73: Major systems changes | E73: Total setup | F73: Annual ongoing | G73: Total cost (10 years)
A74: GPL | B74: Functionality for GPL process, including multiple number requests Of which 9-15 relate to central ported number database | C74: =GPLActivity1 -> 1. Confirm contract and initiate port request | E74: =SUM(GPL!K9:K18) -> 381666.6667 | F74: =SUM(GPL!M9:M18) -> 47250 | G74: =E74+(10*F74) -> 854166.6667
C75: =GPLActivity2 -> 2. Set up SMSC connections | E75: =SUM(GPL!K19:K22) -> 38912.2807 | F75: =SUM(GPL!M19:M22) -> 1710.526316 | G75: =E75+(10*F75) -> 56017.54386
C76: =GPLActivity3 -> 3. Functionality to develop real-time ETC / credit balance | E76: =SUM(GPL!K23:K31) -> 293903.5088 | F76: =SUM(GPL!M23:M31) -> 34875 | G76: 642653.5088
C77: =GPLActivity4 -> 4. Functionality to deliver ETC / credit balance to CPS | E77: =SUM(GPL!K32:K37) -> 106763.1579 | F77: =SUM(GPL!M32:M37) -> 10125 | G77: 208013.1579
C78: =GPLActivity5 -> 5. MNP OSG engagement | E78: =SUM(GPL!K38:K40) -> 21052.63158 | F78: =SUM(GPL!M38:M40) -> 0 | G78: 21052.63158
C79: =GPLActivity6 -> 6. Inter-operator testing | E79: =SUM(GPL!K41:K43) -> 22280.70175 | F79: =SUM(GPL!M41:M43) -> 0 | G79: 22280.70175
C80: =GPLActivity7 -> 7. Training | E80: =SUM(GPL!K44:K49) -> 481627.161 | F80: =SUM(GPL!M44:M49) -> 0 | G80: 481627.161
C81: =GPLActivity8 -> 8. Establish Small MVNO Account Management Portal | E81: =SUM(GPL!K52:K57) -> 54736.84211 | F81: =SUM(GPL!M52:M57) -> 4500 | G81: 99736.84211
C82: =GPLActivity9 -> 9. Input customer data into MNO / MVNE CRM portal | E82: =SUM(GPL!K60:K63) -> 0 | F82: =SUM(GPL!M60:M63) -> 0 | G82: 0
C83: =GPLActivity10 -> 10. Central ported number database | E83: =IF(F15="MNO",SUM(GPL!K68:K72)*('Salary . staff rates'!B37/'Salary . staff rates'!C37),IF('SP cost summary'!F15="Large MVNO",SUM(GPL!K68:K72)*('Salary . staff rates'!B38/'Salary . staff rates'!C38),IF(F15="Medium MVNO",SUM(GPL!K68:K72)*('Salary . staff rates'!B39/'Salary . staff rates'!C39),IF(F15="MVNE/MVNA",SUM(GPL!K68:K72)*('Salary . staff rates'!B40/'Salary . staff rates'!C40),SUM(GPL!K68:K72))))) -> 46666.66667 | F83: =IF(F15="MNO",SUM(GPL!M68:M72)*('Salary . staff rates'!B37/'Salary . staff rates'!C37),IF('SP cost summary'!F15="Large MVNO",SUM(GPL!M68:M72)*('Salary . staff rates'!B38/'Salary . staff rates'!C38),IF(F15="Medium MVNO",SUM(GPL!M68:M72)*('Salary . staff rates'!B39/'Salary . staff rates'!C39),IF(F15="MNO",SUM(GPL!M68:M72)*('Salary . staff rates'!B40/'Salary . staff rates'!C40),SUM(GPL!M68:M72))))) -> 0 | G83: 46666.66667 | H83: =IF(F15="Medium MVNO","",IF(F15="Small MVNO","",IF(F15="MNO","","Average of routing operators and non-routing operators"))) -> 
C84: =GPLActivity11 -> 11. Notify CPS once routing of porting numbers is updated to GP | E84: =IF(F15="MNO",SUM(GPL!K73:K77)*('Salary . staff rates'!B37/'Salary . staff rates'!C37),IF('SP cost summary'!F15="Large MVNO",SUM(GPL!K73:K77)*('Salary . staff rates'!B38/'Salary . staff rates'!C38),IF(F15="Medium MVNO",SUM(GPL!K73:K77)*('Salary . staff rates'!B39/'Salary . staff rates'!C39),IF(F15="MVNE/MVNA",SUM(GPL!K73:K77)*('Salary . staff rates'!B40/'Salary . staff rates'!C40),SUM(GPL!K73:K77))))) -> 157644.7368 | F84: =IF(F15="MNO",SUM(GPL!M73:M77)*('Salary . staff rates'!B37/'Salary . staff rates'!C37),IF('SP cost summary'!F15="Large MVNO",SUM(GPL!M73:M77)*('Salary . staff rates'!B38/'Salary . staff rates'!C38),IF(F15="Medium MVNO",SUM(GPL!M73:M77)*('Salary . staff rates'!B39/'Salary . staff rates'!C39),IF(F15="MVNE/MVNA",SUM(GPL!M73:M77)*('Salary . staff rates'!B40/'Salary . staff rates'!C40),SUM(GPL!M73:M77))))) -> 18562.5 | G84: 343269.7368 | H84: =IF(F15="Medium MVNO","",IF(F15="Small MVNO","",IF(F15="MNO","","Average of routing operators and non-routing operators"))) -> 
C85: =GPLActivity12 -> 12. Repatriations: Inactive ported in number identification | E85: =SUM(GPL!K80:K84) -> 45276.31579 | F85: =SUM(GPL!M80:M84) -> 2812.5 | G85: 73401.31579
C86: =GPLActivity13 -> 13. Repatriations: Re-activation of repatriated numbers onto the original customer SIM | E86: =SUM(GPL!K85:K89) -> 65644.73684 | F86: =SUM(GPL!M85:M89) -> 5062.5 | G86: 116269.7368
C87: =GPLActivity14 -> 14. Repatriations: Initiation and management of CPS processed repatriation transactions | E87: =SUM(GPL!K90:K94) -> 46986.84211 | F87: =SUM(GPL!M90:M94) -> 3937.5 | G87: 86361.84211
C88: =GPLActivity15 -> 15. Repatriations: Additional training | E88: =SUM(GPL!K95:K100) -> 336427.6156 | F88: =SUM(GPL!L95:L100) -> 0 | G88: 336427.6156
C89: =GPL!A105 -> 16. Update GP CRM systems to enable cancellations to be initiated. | E89: =SUM(GPL!K105:K108) -> 65921.05263 | F89: =SUM(GPL!M105:M108) -> 7677.631579 | G89: 142697.3684
C90: =GPL!A111 -> 17. Establish Small MVNO Porting Portal | E90: =SUM(GPL!K111:K115) -> 55789.47368 | F90: =SUM(GPL!M111:M115) -> 4500 | G90: 100789.4737
C91: =GPL!A118 -> 18. Review and revise Small MVNO business processes to align to updated porting functionality | E91: =SUM(GPL!K118:K121) -> 0 | F91: =SUM(GPL!M118:M121) -> 0 | G91: 0
B92: Additional functionality for online ETC information | C92: =GPL!A125 -> 19. Functionality to deliver ETC / credit balance via online account | E92: =SUM(GPL!K125:K131) -> 43969.29825 | F92: =SUM(GPL!M125:M131) -> 3937.5 | G92: 83344.29825
C93: =GPL!A132 -> 20. Redesign online account for ETC / credit balance | E93: =SUM(GPL!K132:K138) -> 98026.31579 | F93: =SUM(GPL!M132:M138) -> 10125 | G93: 199276.3158
C94: Total | E94: =SUM(E74:E93) -> 2363296.005 | F94: =SUM(F74:F93) -> 155075.6579 | G94: 3914052.584
A97: Reform | C97: Major systems changes | E97: Total setup | F97: Annual ongoing | G97: Total cost (10 years)
A98: End-to-end management | C98: ='End-to-end management'!A8 -> 1. Update porting / CRM | E98: =SUM('End-to-end management'!K8:K19) -> 303750 | F98: =SUM('End-to-end management'!M8:M19) -> 37246.71053 | G98: =E98+(10*F98) -> 676217.1053
C99: ='End-to-end management'!A20 -> 2. Automated LP validation | E99: =SUM('End-to-end management'!K20:K27) -> 125087.7193 | F99: =SUM('End-to-end management'!M20:M27) -> 14526.31579 | G99: 270350.8772
C100: ='End-to-end management'!A28 -> 3. System access | E100: =SUM('End-to-end management'!K28:K33) -> 50921.05263 | F100: =SUM('End-to-end management'!M28:M33) -> 5085.526316 | G100: 101776.3158
C101: ='End-to-end management'!A34 -> 4. Update daily batch | E101: =SUM('End-to-end management'!K34:K39) -> 97399.12281 | F101: =SUM('End-to-end management'!M34:M39) -> 10246.71053 | G101: 199866.2281
C102: ='End-to-end management'!A40 -> 5. Exchange Porting Execution Activity Messages with CPS | E102: =SUM('End-to-end management'!K40:K47) -> 131162.2807 | F102: =SUM('End-to-end management'!M40:M47) -> 14305.92105 | G102: 274221.4912
C103: ='End-to-end management'!A48 -> 6. Deactivate manual processes | E103: =SUM('End-to-end management'!K48:K53) -> 87925.4386 | F103: =SUM('End-to-end management'!M48:M53) -> 8825.657895 | G103: 176182.0175
C104: ='End-to-end management'!A55 -> 7. Training | E104: =SUM('End-to-end management'!K55:K59) -> 215690.7735 | F104: =SUM('End-to-end management'!M55:M59) -> 0 | G104: 215690.7735
C105: Total | E105: =SUM(E98:E104) -> 1011936.388 | F105: =SUM(F98:F104) -> 90236.84211 | G105: 1914304.809

Sheet Inputs ----->

Sheet Salary . staff rates
A1: Salary / staff rates
A5: Employee salaries | B5: £ (Annual)
A6: IT engineer | B6: 65000
A7: IT System admin | B7: 55000
A8: Training team | B8: 45000
A9: Billing administrators | B9: 37000
A10: CSAs | B10: 20035.33478 | C10: Average salary, based on information received under s135 from providers
A12: Project management salaries | B12: £ (Annual)
A13: Junior manager | B13: 60000
A14: Middle manager | B14: 75000
A15: Senior manager | B15: 85000
A17: External day rates | B17: £ (day)
A18: MNO CRM vendor | B18: 750
A19: Large MVNO CRM vendor | B19: 750
A20: Medium MVNO CRM vendor | B20: 750 | C20: Assume an MVNE/MVNA uses this vendor class
A21: Small MVNO CRM vendor | B21: =750 -> 750
A22: External training team | B22: 400
A24: Number of CSAs
A25: MNO | B25: 10400 | C25: Average based on information received from providers
A26: Large MVNO | B26: 4000 | C26: Assumption based on information received from providers
A27: Medium MVNO | B27: 500 | C27: Assumption
A28: Small MVNO | B28: 20 | C28: Assumption based on information received from providers
A30: Additional asssumptions
A31: Number of working days | B31: 228
A32: Number of working hours | B32: 8
A33: Loading factor | B33: =0.6 -> 0.6 | C33: Uplift on base salary to cover pensions, benefits and overheads
A34: ongoing : setup ratio | B34: 0.15
A36: Number of routing operators | C36: (Out of) | D36: Relevant for routing operator activities
A37: MNO | B37: 4 | C37: ='Industry cost summary'!C37 -> 4
A38: Large MVNO | B38: 6 | C38: ='Industry cost summary'!C38 -> 11
A39: Medium MVNO | B39: 0 | C39: ='Industry cost summary'!C39 -> 6
A40: MVNE/MVNA | B40: 6 | C40: ='Industry cost summary'!C40 -> 8

Sheet Development days
A2: Resource references
A4: Employee | B4: Project management | C4: External
A5: ='Salary . staff rates'!A6 -> IT engineer | B5: ='Salary . staff rates'!A13 -> Junior manager | C5: ='Salary . staff rates'!A18 -> MNO CRM vendor
A6: ='Salary . staff rates'!A7 -> IT System admin | B6: ='Salary . staff rates'!A14 -> Middle manager | C6: ='Salary . staff rates'!A19 -> Large MVNO CRM vendor
A7: ='Salary . staff rates'!A8 -> Training team | B7: ='Salary . staff rates'!A15 -> Senior manager | C7: ='Salary . staff rates'!A20 -> Medium MVNO CRM vendor
A8: ='Salary . staff rates'!A9 -> Billing administrators | C8: ='Salary . staff rates'!A21 -> Small MVNO CRM vendor
A9: CSAs | C9: ='Salary . staff rates'!A22 -> External training team
A12: ='SP cost summary'!A19 -> Not charging for notice period beyond the switching date
B13: Resource - MNO | C13: Resource - Large MVNO | D13: Resource - Medium MVNO | E13: Resource - MVNA/MVNE | F13: Resource - Small MVNO | G13: Type of staff - MNO | H13: Type of staff - large MVNO | I13: Type of staff - medium MVNO | J13: Type of staff - MVNA / MVNE | K13: Type of staff - small MVNO | L13: Number of trainers / employees - MNO | M13: Number of trainers / employees - large MVNO | N13: Number of trainers / employees - medium MVNO | O13: Number of trainer / employees - MVNA/MVNE | P13: Number of trainers / employees - small MVNO | Q13: Number of days training - MNO | R13: Number of days training - large MVNO | S13: Number of days training - medium MVNO | T13: Number of days training - MVNA/MVNE | U13: Number of days training - small MVNO | V13: Development days - MNO | W13: Development days - large MVNO | X13: Development days - medium MVNO | Y13: Development days - MVNA/MVNE | Z13: Development days - small MVNO | AA13: Ongoing costs?
A14: 1.1 | B14: =A4 -> Employee | C14: =A4 -> Employee | D14: =A4 -> Employee | E14: =A4 -> Employee | F14: =C4 -> External | G14: =A5 -> IT engineer | H14: =A5 -> IT engineer | I14: =A5 -> IT engineer | J14: =A5 -> IT engineer | K14: =C8 -> Small MVNO CRM vendor | L14: N/A | M14: N/A | N14: N/A | O14: N/A | P14: N/A | Q14: N/A | R14: N/A | S14: N/A | T14: N/A | U14: N/A | V14: 2 | W14: 2 | X14: 1 | Y14: 1 | Z14: 0 | AA14: No
A15: 1.2 | B15: =C4 -> External | C15: =C4 -> External | D15: =C4 -> External | E15: =C4 -> External | F15: =C4 -> External | G15: =C5 -> MNO CRM vendor | H15: =C6 -> Large MVNO CRM vendor | I15: =C7 -> Medium MVNO CRM vendor | J15: =C7 -> Medium MVNO CRM vendor | K15: =C8 -> Small MVNO CRM vendor | L15: N/A | M15: N/A | N15: N/A | O15: N/A | P15: N/A | Q15: N/A | R15: N/A | S15: N/A | T15: N/A | U15: N/A | V15: 8 | W15: 6 | X15: 6 | Y15: 6 | Z15: 0 | AA15: Yes
A16: 1.3 | B16: =A4 -> Employee | C16: =A4 -> Employee | D16: =A4 -> Employee | E16: =A4 -> Employee | F16: =C4 -> External | G16: =A5 -> IT engineer | H16: =A5 -> IT engineer | I16: =A5 -> IT engineer | J16: =A5 -> IT engineer | K16: =C8 -> Small MVNO CRM vendor | L16: N/A | M16: N/A | N16: N/A | O16: N/A | P16: N/A | Q16: N/A | R16: N/A | S16: N/A | T16: N/A | U16: N/A | V16: 3 | W16: 2 | X16: 2 | Y16: 2 | Z16: 1 | AA16: No
A17: 1.4 | B17: =B4 -> Project management | C17: =B4 -> Project management | D17: =B4 -> Project management | E17: =B4 -> Project management | F17: =B4 -> Project management | G17: =B6 -> Middle manager | H17: =B6 -> Middle manager | I17: =B5 -> Junior manager | J17: =B5 -> Junior manager | K17: =B5 -> Junior manager | L17: N/A | M17: N/A | N17: N/A | O17: N/A | P17: N/A | Q17: N/A | R17: N/A | S17: N/A | T17: N/A | U17: N/A | V17: 3 | W17: 2 | X17: 2 | Y17: 2 | Z17: 0.5 | AA17: No
A18: 2.1 | B18: =A4 -> Employee | C18: =A4 -> Employee | D18: =A4 -> Employee | E18: =A4 -> Employee | F18: =C4 -> External | G18: =A5 -> IT engineer | H18: =A5 -> IT engineer | I18: =A5 -> IT engineer | J18: =A5 -> IT engineer | K18: =C8 -> Small MVNO CRM vendor | L18: N/A | M18: N/A | N18: N/A | O18: N/A | P18: N/A | Q18: N/A | R18: N/A | S18: N/A | T18: N/A | U18: N/A | V18: 2 | W18: 2 | X18: 1 | Y18: 1 | Z18: 0 | AA18: No
A19: 2.2 | B19: =C4 -> External | C19: =C4 -> External | D19: =C4 -> External | E19: =C4 -> External | F19: =C4 -> External | G19: =C5 -> MNO CRM vendor | H19: =C6 -> Large MVNO CRM vendor | I19: =C7 -> Medium MVNO CRM vendor | J19: =C7 -> Medium MVNO CRM vendor | K19: =C8 -> Small MVNO CRM vendor | L19: N/A | M19: N/A | N19: N/A | O19: N/A | P19: N/A | Q19: N/A | R19: N/A | S19: N/A | T19: N/A | U19: N/A | V19: 10 | W19: 8 | X19: 6 | Y19: 6 | Z19: 0 | AA19: Yes
A20: 2.3 | B20: =A4 -> Employee | C20: =A4 -> Employee | D20: =A4 -> Employee | E20: =A4 -> Employee | F20: =C4 -> External | G20: =A5 -> IT engineer | H20: =A5 -> IT engineer | I20: =A5 -> IT engineer | J20: =A5 -> IT engineer | K20: =C8 -> Small MVNO CRM vendor | L20: N/A | M20: N/A | N20: N/A | O20: N/A | P20: N/A | Q20: N/A | R20: N/A | S20: N/A | T20: N/A | U20: N/A | V20: 5 | W20: 3 | X20: 3 | Y20: 3 | Z20: 1 | AA20: No
A21: 2.4 | B21: =B4 -> Project management | C21: =B4 -> Project management | D21: =B4 -> Project management | E21: =B4 -> Project management | F21: =B4 -> Project management | G21: =B6 -> Middle manager | H21: =B6 -> Middle manager | I21: =B5 -> Junior manager | J21: =B5 -> Junior manager | K21: =B5 -> Junior manager | L21: N/A | M21: N/A | N21: N/A | O21: N/A | P21: N/A | Q21: N/A | R21: N/A | S21: N/A | T21: N/A | U21: N/A | V21: 4 | W21: 3 | X21: 2 | Y21: 2 | Z21: 0.5 | AA21: No
A22: 3.1 | B22: =A4 -> Employee | C22: =A4 -> Employee | D22: =A4 -> Employee | E22: =A4 -> Employee | F22: =C4 -> External | G22: =A5 -> IT engineer | H22: =A5 -> IT engineer | I22: =A5 -> IT engineer | J22: =A5 -> IT engineer | K22: =C8 -> Small MVNO CRM vendor | L22: N/A | M22: N/A | N22: N/A | O22: N/A | P22: N/A | Q22: N/A | R22: N/A | S22: N/A | T22: N/A | U22: N/A | V22: 8 | W22: 6 | X22: 5 | Y22: 5 | Z22: 0 | AA22: No
A23: 3.2 | B23: =C4 -> External | C23: =C4 -> External | D23: =C4 -> External | E23: =C4 -> External | F23: =C4 -> External | G23: =C5 -> MNO CRM vendor | H23: =C6 -> Large MVNO CRM vendor | I23: =C7 -> Medium MVNO CRM vendor | J23: =C7 -> Medium MVNO CRM vendor | K23: =C8 -> Small MVNO CRM vendor | L23: N/A | M23: N/A | N23: N/A | O23: N/A | P23: N/A | Q23: N/A | R23: N/A | S23: N/A | T23: N/A | U23: N/A | V23: 25 | W23: 25 | X23: 20 | Y23: 20 | Z23: 0 | AA23: Yes
A24: 3.3 | B24: =A4 -> Employee | C24: =A4 -> Employee | D24: =A4 -> Employee | E24: =A4 -> Employee | F24: =C4 -> External | G24: =A5 -> IT engineer | H24: =A5 -> IT engineer | I24: =A5 -> IT engineer | J24: =A5 -> IT engineer | K24: =C8 -> Small MVNO CRM vendor | L24: N/A | M24: N/A | N24: N/A | O24: N/A | P24: N/A | Q24: N/A | R24: N/A | S24: N/A | T24: N/A | U24: N/A | V24: 15 | W24: 10 | X24: 8 | Y24: 8 | Z24: 2 | AA24: No
A25: 3.4 | B25: =B4 -> Project management | C25: =B4 -> Project management | D25: =B4 -> Project management | E25: =B4 -> Project management | F25: =B4 -> Project management | G25: =B6 -> Middle manager | H25: =B6 -> Middle manager | I25: =B5 -> Junior manager | J25: =B5 -> Junior manager | K25: =B5 -> Junior manager | L25: N/A | M25: N/A | N25: N/A | O25: N/A | P25: N/A | Q25: N/A | R25: N/A | S25: N/A | T25: N/A | U25: N/A | V25: 12 | W25: 10 | X25: 6 | Y25: 6 | Z25: 1 | AA25: No
A27: 4.1 | B27: =A4 -> Employee | C27: =A4 -> Employee | D27: =A4 -> Employee | E27: =A4 -> Employee | F27: =C4 -> External | G27: =A5 -> IT engineer | H27: =A5 -> IT engineer | I27: =A5 -> IT engineer | J27: =A5 -> IT engineer | K27: =C8 -> Small MVNO CRM vendor | L27: 2 | M27: 2 | N27: 1 | O27: 1 | P27: 1 | Q27: 7 | R27: 7 | S27: 7 | T27: 7 | U27: 7 | V27: =L27*Q27 -> 14 | W27: 14 | X27: 7 | Y27: 7 | Z27: =P27*U27 -> 7 | AA27: No
A28: 4.2 | B28: =A4 -> Employee | C28: =A4 -> Employee | D28: =A4 -> Employee | E28: =A4 -> Employee | F28: =C4 -> External | G28: =A7 -> Training team | H28: =A7 -> Training team | I28: =A7 -> Training team | J28: =A7 -> Training team | K28: =C9 -> External training team | L28: 2 | M28: 2 | N28: 1 | O28: 1 | P28: 1 | Q28: 1 | R28: 1 | S28: 1 | T28: 1 | U28: 1 | V28: 2 | W28: 2 | X28: 1 | Y28: 1 | Z28: 1 | AA28: No
A29: 4.3 | B29: =A4 -> Employee | C29: =A4 -> Employee | D29: =A4 -> Employee | E29: =A4 -> Employee | F29: =C4 -> External | G29: =A7 -> Training team | H29: =A7 -> Training team | I29: =A7 -> Training team | J29: =A7 -> Training team | K29: =C9 -> External training team | L29: 6 | M29: 5 | N29: 2 | O29: 2 | P29: 1 | Q29: 15 | R29: 8 | S29: 3 | T29: 1 | U29: 1 | V29: 90 | W29: 40 | X29: 6 | Y29: 2 | Z29: 1 | AA29: No
A30: 4.4 | B30: =A4 -> Employee | C30: =A4 -> Employee | D30: =A4 -> Employee | E30: =A4 -> Employee | F30: =A4 -> Employee | G30: =A5 -> IT engineer | H30: =A5 -> IT engineer | I30: =A5 -> IT engineer | J30: =A5 -> IT engineer | K30: =A5 -> IT engineer | L30: 60 | M30: 30 | N30: 10 | O30: 10 | P30: 5 | Q30: 1 | R30: 1 | S30: 1 | T30: 1 | U30: 1 | V30: 60 | W30: 30 | X30: 10 | Y30: 10 | Z30: 5 | AA30: No
B31: =A4 -> Employee | C31: =A4 -> Employee | D31: =A4 -> Employee | E31: =A4 -> Employee | F31: =A4 -> Employee | G31: =A8 -> Billing administrators | H31: =A8 -> Billing administrators | I31: =A8 -> Billing administrators | J31: =A8 -> Billing administrators | K31: =A8 -> Billing administrators | L31: 30 | M31: 20 | N31: 15 | O31: 15 | P31: 5 | Q31: 0 | R31: 0 | S31: 0 | T31: 0 | U31: 0 | V31: 0 | W31: 0 | X31: 0 | Y31: 0 | Z31: 0 | AA31: No
B32: =A4 -> Employee | C32: =A4 -> Employee | D32: =A4 -> Employee | E32: =A4 -> Employee | F32: =A4 -> Employee | G32: =A9 -> CSAs | H32: =A9 -> CSAs | I32: =A9 -> CSAs | J32: =A9 -> CSAs | K32: =A9 -> CSAs | L32: ='Salary . staff rates'!$B$25 -> 10400 | M32: ='Salary . staff rates'!$B$26 -> 4000 | N32: ='Salary . staff rates'!$B$27 -> 500 | O32: 0 | P32: ='Salary . staff rates'!$B$28 -> 20 | Q32: 0.125 | R32: 0.125 | S32: 0.125 | T32: 0.125 | U32: 0.125 | V32: 1300 | W32: 500 | X32: 62.5 | Y32: 0 | Z32: 2.5 | AA32: No
V33: =SUM(V30:V32)/V29 -> 15.11111111 | W33: =SUM(W30:W32)/W29 -> 13.25 | X33: =SUM(X30:X32)/X29 -> 12.08333333 | Z33: =SUM(Z30:Z32)/Z29 -> 7.5 | AB33: Checksum: Ratio of trainers:staff
A35: ='Auto-PAC CPS variant'!A2 -> Auto-PAC CPS variant
B36: Resource - MNO | C36: Resource - Large MVNO | D36: Resource - Medium MVNO | E36: Resource - MVNA/MVNE | F36: Resource - Small MVNO | G36: Type of staff / licence - MNO | H36: Type of staff / licence - large MVNO | I36: Type of staff / licence - medium MVNO | J36: Type of staff / licence - MVNA/MVNE | K36: Type of staff / licence - small MVNO | L36: Number of trainers / =A4s - MNO | M36: Number of trainers / =A4s - large MVNO | N36: Number of trainers / =A4s - medium MVNO | O36: Number of trainer / =A4s - MVNA/MVNE | P36: Number of trainers / =A4s - small MVNO | Q36: Number of days training - MNO | R36: Number of days training - large MVNO | S36: Number of days training - medium MVNO | T36: Number of days training - MVNA/MVNE | U36: Number of days training - small MVNO | V36: Development days - MNO | W36: Development days - large MVNO | X36: Development days - medium MVNO | Y36: Development days - MVNA/MVNE | Z36: Development days - small MVNO | AA36: Ongoing costs?
A37: 1.1 | B37: =A4 -> Employee | C37: =A4 -> Employee | D37: =A4 -> Employee | E37: =A4 -> Employee | F37: =C4 -> External | G37: =A5 -> IT engineer | H37: =A5 -> IT engineer | I37: =A5 -> IT engineer | J37: =A5 -> IT engineer | K37: =C8 -> Small MVNO CRM vendor | L37: N/A | M37: N/A | N37: N/A | O37: N/A | P37: N/A | Q37: N/A | R37: N/A | S37: N/A | T37: N/A | U37: N/A | V37: 8 | W37: 5 | X37: 3 | Y37: 3 | Z37: 0 | AA37: No
A38: 1.2 | B38: =A4 -> Employee | C38: =A4 -> Employee | D38: =A4 -> Employee | E38: =A4 -> Employee | F38: =C4 -> External | G38: =A5 -> IT engineer | H38: =A5 -> IT engineer | I38: =A5 -> IT engineer | J38: =A5 -> IT engineer | K38: =C8 -> Small MVNO CRM vendor | L38: N/A | M38: N/A | N38: N/A | O38: N/A | P38: N/A | Q38: N/A | R38: N/A | S38: N/A | T38: N/A | U38: N/A | V38: 25 | W38: 15 | X38: 10 | Y38: 10 | Z38: 0 | AA38: Yes
A39: 1.3 | B39: =A4 -> Employee | C39: =A4 -> Employee | D39: =A4 -> Employee | E39: =A4 -> Employee | F39: =C4 -> External | G39: =A5 -> IT engineer | H39: =A5 -> IT engineer | I39: =A5 -> IT engineer | J39: =A5 -> IT engineer | K39: =C8 -> Small MVNO CRM vendor | L39: N/A | M39: N/A | N39: N/A | O39: N/A | P39: N/A | Q39: N/A | R39: N/A | S39: N/A | T39: N/A | U39: N/A | V39: 1 | W39: 1 | X39: 1 | Y39: 1 | Z39: 0 | AA39: Yes
A40: 1.4 | B40: =A4 -> Employee | C40: =A4 -> Employee | D40: =A4 -> Employee | E40: =A4 -> Employee | F40: =C4 -> External | G40: =A5 -> IT engineer | H40: =A5 -> IT engineer | I40: =A5 -> IT engineer | J40: =A5 -> IT engineer | K40: =C8 -> Small MVNO CRM vendor | L40: N/A | M40: N/A | N40: N/A | O40: N/A | P40: N/A | Q40: N/A | R40: N/A | S40: N/A | T40: N/A | U40: N/A | V40: 35 | W40: 20 | X40: 15 | Y40: 15 | Z40: 0 | AA40: No
A41: 1.5 | B41: =B4 -> Project management | C41: =B4 -> Project management | D41: =B4 -> Project management | E41: =B4 -> Project management | F41: =B4 -> Project management | G41: =B6 -> Middle manager | H41: =B6 -> Middle manager | I41: =B6 -> Middle manager | J41: =B6 -> Middle manager | K41: =B6 -> Middle manager | L41: N/A | M41: N/A | N41: N/A | O41: N/A | P41: N/A | Q41: N/A | R41: N/A | S41: N/A | T41: N/A | U41: N/A | V41: 15 | W41: 10 | X41: 7 | Y41: 7 | Z41: 0 | AA41: No
A42: 2.1 | B42: =B4 -> Project management | C42: =B4 -> Project management | D42: =B4 -> Project management | E42: =B4 -> Project management | F42: =C4 -> External | G42: =B7 -> Senior manager | H42: =B7 -> Senior manager | I42: =B6 -> Middle manager | J42: =B6 -> Middle manager | K42: =C8 -> Small MVNO CRM vendor | L42: N/A | M42: N/A | N42: N/A | O42: N/A | P42: N/A | Q42: N/A | R42: N/A | S42: N/A | T42: N/A | U42: N/A | V42: 15 | W42: 15 | X42: 12 | Y42: 12 | Z42: 0 | AA42: No
A43: 2.2 | B43: =C4 -> External | C43: =C4 -> External | D43: =C4 -> External | E43: =C4 -> External | F43: =C4 -> External | G43: =C5 -> MNO CRM vendor | H43: =C6 -> Large MVNO CRM vendor | I43: =C7 -> Medium MVNO CRM vendor | J43: =C7 -> Medium MVNO CRM vendor | K43: =C8 -> Small MVNO CRM vendor | L43: N/A | M43: N/A | N43: N/A | O43: N/A | P43: N/A | Q43: N/A | R43: N/A | S43: N/A | T43: N/A | U43: N/A | V43: 35 | W43: 25 | X43: 15 | Y43: 15 | Z43: 0 | AA43: Yes
A44: 2.3 | B44: =C4 -> External | C44: =C4 -> External | D44: =C4 -> External | E44: =C4 -> External | F44: =C4 -> External | G44: =C5 -> MNO CRM vendor | H44: =C6 -> Large MVNO CRM vendor | I44: =C7 -> Medium MVNO CRM vendor | J44: =C7 -> Medium MVNO CRM vendor | K44: =C8 -> Small MVNO CRM vendor | L44: N/A | M44: N/A | N44: N/A | O44: N/A | P44: N/A | Q44: N/A | R44: N/A | S44: N/A | T44: N/A | U44: N/A | V44: 60 | W44: 40 | X44: 25 | Y44: 25 | Z44: 0 | AA44: Yes
A45: 2.4 | B45: =C4 -> External | C45: =C4 -> External | D45: =C4 -> External | E45: =C4 -> External | F45: =C4 -> External | G45: =C5 -> MNO CRM vendor | H45: =C6 -> Large MVNO CRM vendor | I45: =C7 -> Medium MVNO CRM vendor | J45: =C7 -> Medium MVNO CRM vendor | K45: =C8 -> Small MVNO CRM vendor | L45: N/A | M45: N/A | N45: N/A | O45: N/A | P45: N/A | Q45: N/A | R45: N/A | S45: N/A | T45: N/A | U45: N/A | V45: 20 | W45: 10 | X45: 8 | Y45: 8 | Z45: 0 | AA45: Yes
A46: 2.5 | B46: =C4 -> External | C46: =C4 -> External | D46: =C4 -> External | E46: =C4 -> External | F46: =C4 -> External | G46: =C5 -> MNO CRM vendor | H46: =C6 -> Large MVNO CRM vendor | I46: =C7 -> Medium MVNO CRM vendor | J46: =C7 -> Medium MVNO CRM vendor | K46: =C8 -> Small MVNO CRM vendor | L46: N/A | M46: N/A | N46: N/A | O46: N/A | P46: N/A | Q46: N/A | R46: N/A | S46: N/A | T46: N/A | U46: N/A | V46: 20 | W46: 10 | X46: 8 | Y46: 8 | Z46: 0 | AA46: Yes
A47: 2.6 | B47: =C4 -> External | C47: =C4 -> External | D47: =C4 -> External | E47: =C4 -> External | F47: =C4 -> External | G47: =C5 -> MNO CRM vendor | H47: =C6 -> Large MVNO CRM vendor | I47: =C7 -> Medium MVNO CRM vendor | J47: =C7 -> Medium MVNO CRM vendor | K47: =C8 -> Small MVNO CRM vendor | L47: N/A | M47: N/A | N47: N/A | O47: N/A | P47: N/A | Q47: N/A | R47: N/A | S47: N/A | T47: N/A | U47: N/A | V47: 60 | W47: 40 | X47: 25 | Y47: 25 | Z47: 0 | AA47: Yes
A48: 2.7 | B48: =C4 -> External | C48: =C4 -> External | D48: =C4 -> External | E48: =C4 -> External | F48: =C4 -> External | G48: =C5 -> MNO CRM vendor | H48: =C6 -> Large MVNO CRM vendor | I48: =C7 -> Medium MVNO CRM vendor | J48: =C7 -> Medium MVNO CRM vendor | K48: =C8 -> Small MVNO CRM vendor | L48: N/A | M48: N/A | N48: N/A | O48: N/A | P48: N/A | Q48: N/A | R48: N/A | S48: N/A | T48: N/A | U48: N/A | V48: 40 | W48: 20 | X48: 15 | Y48: 15 | Z48: 0 | AA48: Yes
A49: 2.8 | B49: =A4 -> Employee | C49: =A4 -> Employee | D49: =A4 -> Employee | E49: =A4 -> Employee | F49: =B4 -> Project management | G49: =A5 -> IT engineer | H49: =A5 -> IT engineer | I49: =A5 -> IT engineer | J49: =A5 -> IT engineer | K49: =B6 -> Middle manager | L49: N/A | M49: N/A | N49: N/A | O49: N/A | P49: N/A | Q49: N/A | R49: N/A | S49: N/A | T49: N/A | U49: N/A | V49: 40 | W49: 20 | X49: 15 | Y49: 15 | Z49: 2 | AA49: No
A50: 2.9 | B50: =B4 -> Project management | C50: =B4 -> Project management | D50: =B4 -> Project management | E50: =B4 -> Project management | F50: =B4 -> Project management | G50: =B6 -> Middle manager | H50: =B6 -> Middle manager | I50: =B6 -> Middle manager | J50: =B6 -> Middle manager | K50: =B6 -> Middle manager | L50: N/A | M50: N/A | N50: N/A | O50: N/A | P50: N/A | Q50: N/A | R50: N/A | S50: N/A | T50: N/A | U50: N/A | V50: 65 | W50: 15 | X50: 12 | Y50: 12 | Z50: 1 | AA50: No
A51: 3.1 | B51: =B4 -> Project management | C51: =B4 -> Project management | D51: =B4 -> Project management | E51: =B4 -> Project management | F51: =C4 -> External | G51: =B7 -> Senior manager | H51: =B7 -> Senior manager | I51: =B6 -> Middle manager | J51: =B6 -> Middle manager | K51: =C8 -> Small MVNO CRM vendor | L51: N/A | M51: N/A | N51: N/A | O51: N/A | P51: N/A | Q51: N/A | R51: N/A | S51: N/A | T51: N/A | U51: N/A | V51: 12 | W51: 10 | X51: 5 | Y51: 5 | Z51: 0 | AA51: No
A52: 3.2 | B52: =C4 -> External | C52: =C4 -> External | D52: =C4 -> External | E52: =C4 -> External | F52: =C4 -> External | G52: =C5 -> MNO CRM vendor | H52: =C6 -> Large MVNO CRM vendor | I52: =C7 -> Medium MVNO CRM vendor | J52: =C7 -> Medium MVNO CRM vendor | K52: =C8 -> Small MVNO CRM vendor | L52: N/A | M52: N/A | N52: N/A | O52: N/A | P52: N/A | Q52: N/A | R52: N/A | S52: N/A | T52: N/A | U52: N/A | V52: 35 | W52: 30 | X52: 20 | Y52: 20 | Z52: 0 | AA52: Yes
A53: 3.4 | B53: =C4 -> External | C53: =C4 -> External | D53: =C4 -> External | E53: =C4 -> External | F53: =C4 -> External | G53: =C5 -> MNO CRM vendor | H53: =C6 -> Large MVNO CRM vendor | I53: =C7 -> Medium MVNO CRM vendor | J53: =C7 -> Medium MVNO CRM vendor | K53: =C8 -> Small MVNO CRM vendor | L53: N/A | M53: N/A | N53: N/A | O53: N/A | P53: N/A | Q53: N/A | R53: N/A | S53: N/A | T53: N/A | U53: N/A | V53: 35 | W53: 30 | X53: 20 | Y53: 20 | Z53: 0 | AA53: Yes
A54: 3.5 | B54: =A4 -> Employee | C54: =A4 -> Employee | D54: =A4 -> Employee | E54: =A4 -> Employee | F54: =C4 -> External | G54: =A5 -> IT engineer | H54: =A5 -> IT engineer | I54: =A5 -> IT engineer | J54: =A5 -> IT engineer | K54: =C8 -> Small MVNO CRM vendor | L54: N/A | M54: N/A | N54: N/A | O54: N/A | P54: N/A | Q54: N/A | R54: N/A | S54: N/A | T54: N/A | U54: N/A | V54: 30 | W54: 20 | X54: 15 | Y54: 15 | Z54: 2 | AA54: No
A55: 3.6 | B55: =B4 -> Project management | C55: =B4 -> Project management | D55: =B4 -> Project management | E55: =B4 -> Project management | F55: =B4 -> Project management | G55: =B6 -> Middle manager | H55: =B6 -> Middle manager | I55: =B6 -> Middle manager | J55: =B6 -> Middle manager | K55: =B6 -> Middle manager | L55: N/A | M55: N/A | N55: N/A | O55: N/A | P55: N/A | Q55: N/A | R55: N/A | S55: N/A | T55: N/A | U55: N/A | V55: 35 | W55: 30 | X55: 18 | Y55: 18 | Z55: 1 | AA55: No
A56: 4.1 | B56: =B4 -> Project management | C56: =B4 -> Project management | D56: =B4 -> Project management | E56: =B4 -> Project management | F56: =B4 -> Project management | G56: =B6 -> Middle manager | H56: =B6 -> Middle manager | I56: =B6 -> Middle manager | J56: =B6 -> Middle manager | K56: =B6 -> Middle manager | L56: N/A | M56: N/A | N56: N/A | O56: N/A | P56: N/A | Q56: N/A | R56: N/A | S56: N/A | T56: N/A | U56: N/A | V56: 10 | W56: 10 | X56: 6 | Y56: 6 | Z56: 0 | AA56: No
A57: 4.2 | B57: =B4 -> Project management | C57: =B4 -> Project management | D57: =B4 -> Project management | E57: =B4 -> Project management | F57: =B4 -> Project management | G57: =B6 -> Middle manager | H57: =B6 -> Middle manager | I57: =B6 -> Middle manager | J57: =B6 -> Middle manager | K57: =B6 -> Middle manager | L57: N/A | M57: N/A | N57: N/A | O57: N/A | P57: N/A | Q57: N/A | R57: N/A | S57: N/A | T57: N/A | U57: N/A | V57: 14 | W57: 7 | X57: 4 | Y57: 4 | Z57: 0 | AA57: No
A58: 4.3 | B58: =B4 -> Project management | C58: =B4 -> Project management | D58: =B4 -> Project management | E58: =B4 -> Project management | F58: =B4 -> Project management | G58: =B6 -> Middle manager | H58: =B6 -> Middle manager | I58: =B6 -> Middle manager | J58: =B6 -> Middle manager | K58: =B6 -> Middle manager | L58: N/A | M58: N/A | N58: N/A | O58: N/A | P58: N/A | Q58: N/A | R58: N/A | S58: N/A | T58: N/A | U58: N/A | V58: 16 | W58: 8 | X58: 5 | Y58: 5 | Z58: 0 | AA58: No
A59: 5.1 | B59: =B4 -> Project management | C59: =B4 -> Project management | D59: =B4 -> Project management | E59: =B4 -> Project management | F59: =B4 -> Project management | G59: =B6 -> Middle manager | H59: =B6 -> Middle manager | I59: =B6 -> Middle manager | J59: =B6 -> Middle manager | K59: =B6 -> Middle manager | L59: N/A | M59: N/A | N59: N/A | O59: N/A | P59: N/A | Q59: N/A | R59: N/A | S59: N/A | T59: N/A | U59: N/A | V59: 6 | W59: 3 | X59: 2 | Y59: 6 | Z59: 1 | AA59: No
A60: 5.2 | B60: =A4 -> Employee | C60: =A4 -> Employee | D60: =A4 -> Employee | E60: =A4 -> Employee | F60: =A4 -> Employee | G60: =A5 -> IT engineer | H60: =A5 -> IT engineer | I60: =A5 -> IT engineer | J60: =A5 -> IT engineer | K60: =A5 -> IT engineer | L60: N/A | M60: N/A | N60: N/A | O60: N/A | P60: N/A | Q60: N/A | R60: N/A | S60: N/A | T60: N/A | U60: N/A | V60: 35 | W60: 20 | X60: 10 | Y60: 45 | Z60: 3 | AA60: No
A61: 5.3 | B61: =B4 -> Project management | C61: =B4 -> Project management | D61: =B4 -> Project management | E61: =B4 -> Project management | F61: =B4 -> Project management | G61: =B6 -> Middle manager | H61: =B6 -> Middle manager | I61: =B6 -> Middle manager | J61: =B6 -> Middle manager | K61: =B6 -> Middle manager | L61: N/A | M61: N/A | N61: N/A | O61: N/A | P61: N/A | Q61: N/A | R61: N/A | S61: N/A | T61: N/A | U61: N/A | V61: 6 | W61: 3 | X61: 2 | Y61: 10 | Z61: 1 | AA61: No
A62: 6.1 | B62: =A4 -> Employee | C62: =A4 -> Employee | D62: =A4 -> Employee | E62: =A4 -> Employee | F62: =C4 -> External | G62: =A5 -> IT engineer | H62: =A5 -> IT engineer | I62: =A5 -> IT engineer | J62: =A5 -> IT engineer | K62: =C8 -> Small MVNO CRM vendor | L62: 2 | M62: 2 | N62: 1 | O62: 1 | P62: 1 | Q62: 7 | R62: 7 | S62: 7 | T62: 7 | U62: 7 | V62: =L62*Q62 -> 14 | W62: 14 | X62: 7 | Y62: 7 | Z62: =P62*U62 -> 7 | AA62: No
A63: 6.2 | B63: =A4 -> Employee | C63: =A4 -> Employee | D63: =A4 -> Employee | E63: =A4 -> Employee | F63: =C4 -> External | G63: =A7 -> Training team | H63: =A7 -> Training team | I63: =A7 -> Training team | J63: =A7 -> Training team | K63: =C9 -> External training team | L63: 8 | M63: 2 | N63: 1 | O63: 1 | P63: 1 | Q63: 8 | R63: 5 | S63: 8 | T63: 8 | U63: 6 | V63: 64 | W63: 10 | X63: 8 | Y63: 8 | Z63: 6 | AA63: No
A64: 6.3 | B64: =A4 -> Employee | C64: =A4 -> Employee | D64: =A4 -> Employee | E64: =A4 -> Employee | F64: =C4 -> External | G64: =A7 -> Training team | H64: =A7 -> Training team | I64: =A7 -> Training team | J64: =A7 -> Training team | K64: =C9 -> External training team | L64: 8 | M64: 4 | N64: 4 | O64: 1 | P64: 1 | Q64: 30 | R64: 15 | S64: 2 | T64: 0.5 | U64: 0.5 | V64: 240 | W64: 60 | X64: 8 | Y64: 0.5 | Z64: 0.5 | AA64: No
A65: 6.4 | B65: =A4 -> Employee | C65: =A4 -> Employee | D65: =A4 -> Employee | E65: =A4 -> Employee | F65: =A4 -> Employee | G65: =A5 -> IT engineer | H65: =A5 -> IT engineer | I65: =A5 -> IT engineer | J65: =A5 -> IT engineer | K65: =A5 -> IT engineer | L65: 60 | M65: 30 | N65: 10 | O65: 10 | P65: 5 | Q65: 0.5 | R65: 0.5 | S65: 0.5 | T65: 0.5 | U65: 0.5 | V65: 30 | W65: 15 | X65: 5 | Y65: 5 | Z65: 2.5 | AA65: No
B66: =A4 -> Employee | C66: =A4 -> Employee | D66: =A4 -> Employee | E66: =A4 -> Employee | F66: =A4 -> Employee | G66: =A8 -> Billing administrators | H66: =A8 -> Billing administrators | I66: =A8 -> Billing administrators | J66: =A8 -> Billing administrators | K66: =A8 -> Billing administrators | L66: 30 | M66: 20 | N66: 15 | O66: 15 | P66: 5 | Q66: 0 | R66: 0 | S66: 0 | T66: 0 | U66: 0 | V66: 0 | W66: 0 | X66: 0 | Y66: 0 | Z66: 0 | AA66: No
B67: =A4 -> Employee | C67: =A4 -> Employee | D67: =A4 -> Employee | E67: =A4 -> Employee | F67: =A4 -> Employee | G67: =A9 -> CSAs | H67: =A9 -> CSAs | I67: =A9 -> CSAs | J67: =A9 -> CSAs | K67: =A9 -> CSAs | L67: ='Salary . staff rates'!$B$25 -> 10400 | M67: ='Salary . staff rates'!$B$26 -> 4000 | N67: ='Salary . staff rates'!$B$27 -> 500 | O67: 0 | P67: ='Salary . staff rates'!$B$28 -> 20 | Q67: 0.25 | R67: 0.25 | S67: 0.25 | T67: 0.25 | U67: 0.25 | V67: 2600 | W67: 1000 | X67: 125 | Y67: 0 | Z67: 5 | AA67: No
V68: =SUM(V65:V67)/V64 -> 10.95833333 | W68: =SUM(W65:W67)/W64 -> 16.91666667 | X68: =SUM(X65:X67)/X64 -> 16.25 | Y68: =SUM(Y65:Y67)/Y64 -> 10 | Z68: =SUM(Z65:Z67)/Z64 -> 15 | AB68: Checksum: Ratio of trainers:staff
V69: =SUM(V53:V55)/#REF! ->  | W69: =SUM(W53:W55)/#REF! ->  | X69: =SUM(X53:X55)/#REF! ->  | Z69: =SUM(Z53:Z55)/#REF! ->  | AB69: Checksum: Ratio of trainers:staff
A70: 7.1 | B70: =A4 -> Employee | C70: N/A | D70: N/A | E70: =A4 -> Employee | F70: N/A | G70: =A5 -> IT engineer | H70: N/A | I70: N/A | J70: =A5 -> IT engineer | K70: N/A | L70: N/A | M70: N/A | N70: N/A | O70: N/A | P70: N/A | Q70: N/A | R70: N/A | S70: N/A | T70: N/A | U70: N/A | V70: 5 | W70: N/A | X70: N/A | Y70: 5 | Z70: N/A | AA70: No
A71: 7.2 | B71: =C4 -> External | C71: N/A | D71: N/A | E71: =C4 -> External | F71: N/A | G71: =C5 -> MNO CRM vendor | H71: N/A | I71: N/A | J71: =C7 -> Medium MVNO CRM vendor | K71: N/A | L71: N/A | M71: N/A | N71: N/A | O71: N/A | P71: N/A | Q71: N/A | R71: N/A | S71: N/A | T71: N/A | U71: N/A | V71: 40 | W71: N/A | X71: N/A | Y71: 40 | Z71: N/A | AA71: Yes
A72: 7.3 | B72: =A4 -> Employee | C72: N/A | D72: N/A | E72: =A4 -> Employee | F72: N/A | G72: =A5 -> IT engineer | H72: N/A | I72: N/A | J72: =A5 -> IT engineer | K72: N/A | L72: N/A | M72: N/A | N72: N/A | O72: N/A | P72: N/A | Q72: N/A | R72: N/A | S72: N/A | T72: N/A | U72: N/A | V72: 10 | W72: N/A | X72: N/A | Y72: 10 | Z72: N/A | AA72: No
A73: 7.4 | B73: =B4 -> Project management | C73: N/A | D73: N/A | E73: =B4 -> Project management | F73: N/A | G73: =B5 -> Junior manager | H73: N/A | I73: N/A | J73: =B5 -> Junior manager | K73: N/A | L73: N/A | M73: N/A | N73: N/A | O73: N/A | P73: N/A | Q73: N/A | R73: N/A | S73: N/A | T73: N/A | U73: N/A | V73: 20 | W73: N/A | X73: N/A | Y73: 20 | Z73: N/A | AA73: No
A74: 7.5 | B74: =B4 -> Project management | C74: N/A | D74: N/A | E74: =B4 -> Project management | F74: N/A | G74: =B5 -> Junior manager | H74: N/A | I74: N/A | J74: =B5 -> Junior manager | K74: N/A | L74: N/A | M74: N/A | N74: N/A | O74: N/A | P74: N/A | Q74: N/A | R74: N/A | S74: N/A | T74: N/A | U74: N/A | V74: 10 | W74: N/A | X74: N/A | Y74: 10 | Z74: N/A | AA74: No
A75: 7.6 | B75: =B4 -> Project management | C75: N/A | D75: N/A | E75: =B4 -> Project management | F75: N/A | G75: =B6 -> Middle manager | H75: N/A | I75: N/A | J75: =B6 -> Middle manager | K75: N/A | L75: N/A | M75: N/A | N75: N/A | O75: N/A | P75: N/A | Q75: N/A | R75: N/A | S75: N/A | T75: N/A | U75: N/A | V75: 10 | W75: N/A | X75: N/A | Y75: 10 | Z75: N/A | AA75: No
V77: =SUM(V65:V67)/V64 -> 10.95833333 | W77: =SUM(W65:W67)/W64 -> 16.91666667 | X77: =SUM(X65:X67)/X64 -> 16.25 | Z77: =SUM(Z65:Z67)/Z64 -> 15 | AB77: Checksum: Ratio of trainers:staff
A78: 8.1 | B78: N/A | C78: N/A | D78: N/A | E78: N/A | F78: =A4 -> Employee | G78: N/A | H78: N/A | I78: N/A | J78: N/A | K78: =A8 -> Billing administrators | L78: N/A | M78: N/A | N78: N/A | O78: N/A | P78: N/A | Q78: N/A | R78: N/A | S78: N/A | T78: N/A | U78: N/A | V78: N/A | W78: N/A | X78: N/A | Y78: N/A | Z78: 8 | AA78: No
A79: 8.2 | B79: N/A | C79: N/A | D79: N/A | E79: N/A | F79: =A4 -> Employee | G79: N/A | H79: N/A | I79: N/A | J79: N/A | K79: =A8 -> Billing administrators | L79: N/A | M79: N/A | N79: N/A | O79: N/A | P79: N/A | Q79: N/A | R79: N/A | S79: N/A | T79: N/A | U79: N/A | V79: N/A | W79: N/A | X79: N/A | Y79: N/A | Z79: 6 | AA79: Yes
A80: 8.3 | B80: N/A | C80: N/A | D80: N/A | E80: N/A | F80: =A4 -> Employee | G80: N/A | H80: N/A | I80: N/A | J80: N/A | K80: =A8 -> Billing administrators | L80: N/A | M80: N/A | N80: N/A | O80: N/A | P80: N/A | Q80: N/A | R80: N/A | S80: N/A | T80: N/A | U80: N/A | V80: N/A | W80: N/A | X80: N/A | Y80: N/A | Z80: 2 | AA80: No
A81: 8.4 | B81: N/A | C81: N/A | D81: N/A | E81: N/A | F81: =B4 -> Project management | G81: N/A | H81: N/A | I81: N/A | J81: N/A | K81: =B5 -> Junior manager | L81: N/A | M81: N/A | N81: N/A | O81: N/A | P81: N/A | Q81: N/A | R81: N/A | S81: N/A | T81: N/A | U81: N/A | V81: N/A | W81: N/A | X81: N/A | Y81: N/A | Z81: 2 | AA81: No
A86: 9.1 | B86: =A4 -> Employee | C86: =A4 -> Employee | D86: =A4 -> Employee | E86: =A4 -> Employee | F86: =C4 -> External | G86: =A5 -> IT engineer | H86: =A5 -> IT engineer | I86: =A5 -> IT engineer | J86: =A5 -> IT engineer | K86: =C8 -> Small MVNO CRM vendor | L86: N/A | M86: N/A | N86: N/A | O86: N/A | P86: N/A | Q86: N/A | R86: N/A | S86: N/A | T86: N/A | U86: N/A | V86: 5 | W86: 5 | X86: 0 | Y86: 3 | Z86: 0 | AA86: No
A87: 9.2 | B87: =A4 -> Employee | C87: =A4 -> Employee | D87: =A4 -> Employee | E87: =A4 -> Employee | F87: =C4 -> External | G87: =A5 -> IT engineer | H87: =A5 -> IT engineer | I87: =A5 -> IT engineer | J87: =A5 -> IT engineer | K87: =C8 -> Small MVNO CRM vendor | L87: N/A | M87: N/A | N87: N/A | O87: N/A | P87: N/A | Q87: N/A | R87: N/A | S87: N/A | T87: N/A | U87: N/A | V87: 50 | W87: 40 | X87: 0 | Y87: 25 | Z87: 0 | AA87: No
B88: =B4 -> Project management | C88: =B4 -> Project management | D88: =B4 -> Project management | E88: =B4 -> Project management | F88: =C4 -> External | G88: =B6 -> Middle manager | H88: =B6 -> Middle manager | I88: =B6 -> Middle manager | J88: =B6 -> Middle manager | K88: =C8 -> Small MVNO CRM vendor | L88: N/A | M88: N/A | N88: N/A | O88: N/A | P88: N/A | Q88: N/A | R88: N/A | S88: N/A | T88: N/A | U88: N/A | V88: 5 | W88: 12 | X88: 0 | Y88: 5 | Z88: 0 | AA88: No
A89: 9.3 | B89: =A4 -> Employee | C89: =A4 -> Employee | D89: =A4 -> Employee | E89: =A4 -> Employee | F89: =C4 -> External | G89: =A5 -> IT engineer | H89: =A5 -> IT engineer | I89: =A5 -> IT engineer | J89: =A5 -> IT engineer | K89: =C8 -> Small MVNO CRM vendor | L89: N/A | M89: N/A | N89: N/A | O89: N/A | P89: N/A | Q89: N/A | R89: N/A | S89: N/A | T89: N/A | U89: N/A | V89: 30 | W89: 6 | X89: 0 | Y89: 15 | Z89: 0 | AA89: No
B90: =B4 -> Project management | C90: =B4 -> Project management | D90: =B4 -> Project management | E90: =B4 -> Project management | F90: =C4 -> External | G90: =B6 -> Middle manager | H90: =B6 -> Middle manager | I90: =B6 -> Middle manager | J90: =B6 -> Middle manager | K90: =C8 -> Small MVNO CRM vendor | L90: N/A | M90: N/A | N90: N/A | O90: N/A | P90: N/A | Q90: N/A | R90: N/A | S90: N/A | T90: N/A | U90: N/A | V90: 10 | W90: 8 | X90: 0 | Y90: 5 | Z90: 0 | AA90: No
A91: 10.1 | B91: =A4 -> Employee | C91: =A4 -> Employee | D91: N/A | E91: =A4 -> Employee | F91: N/A | G91: =A5 -> IT engineer | H91: =A5 -> IT engineer | I91: N/A | J91: =A5 -> IT engineer | K91: N/A | L91: N/A | M91: N/A | N91: N/A | O91: N/A | P91: N/A | Q91: N/A | R91: N/A | S91: N/A | T91: N/A | U91: N/A | V91: 12 | W91: 8 | X91: N/A | Y91: 8 | Z91: N/A | AA91: No
A92: 10.2 | B92: =C4 -> External | C92: =C4 -> External | D92: N/A | E92: =C4 -> External | F92: N/A | G92: =C5 -> MNO CRM vendor | H92: =C6 -> Large MVNO CRM vendor | I92: N/A | J92: =C7 -> Medium MVNO CRM vendor | K92: N/A | L92: N/A | M92: N/A | N92: N/A | O92: N/A | P92: N/A | Q92: N/A | R92: N/A | S92: N/A | T92: N/A | U92: N/A | V92: 125 | W92: 100 | X92: N/A | Y92: 100 | Z92: N/A | AA92: Yes
A93: 10.3 | B93: =C4 -> External | C93: =C4 -> External | D93: N/A | E93: =C4 -> External | F93: N/A | G93: =C5 -> MNO CRM vendor | H93: =C6 -> Large MVNO CRM vendor | I93: N/A | J93: =C7 -> Medium MVNO CRM vendor | K93: N/A | L93: N/A | M93: N/A | N93: N/A | O93: N/A | P93: N/A | Q93: N/A | R93: N/A | S93: N/A | T93: N/A | U93: N/A | V93: 40 | W93: 30 | X93: N/A | Y93: 25 | Z93: N/A | AA93: Yes
A94: 10.4 | B94: =A4 -> Employee | C94: =A4 -> Employee | D94: N/A | E94: =A4 -> Employee | F94: N/A | G94: =A5 -> IT engineer | H94: =A5 -> IT engineer | I94: N/A | J94: =A5 -> IT engineer | K94: N/A | L94: N/A | M94: N/A | N94: N/A | O94: N/A | P94: N/A | Q94: N/A | R94: N/A | S94: N/A | T94: N/A | U94: N/A | V94: 45 | W94: 35 | X94: N/A | Y94: 30 | Z94: N/A | AA94: No
A95: 10.5 | B95: =B4 -> Project management | C95: =B4 -> Project management | D95: N/A | E95: =B4 -> Project management | F95: N/A | G95: =B6 -> Middle manager | H95: =B6 -> Middle manager | I95: N/A | J95: =B6 -> Middle manager | K95: N/A | L95: N/A | M95: N/A | N95: N/A | O95: N/A | P95: N/A | Q95: N/A | R95: N/A | S95: N/A | T95: N/A | U95: N/A | V95: 15 | W95: 10 | X95: N/A | Y95: 10 | Z95: N/A | AA95: No
A98: 11.1 | B98: =A4 -> Employee | C98: =A4 -> Employee | D98: =A4 -> Employee | E98: =A4 -> Employee | F98: =A4 -> Employee | G98: =A5 -> IT engineer | H98: =A5 -> IT engineer | I98: =A5 -> IT engineer | J98: =A5 -> IT engineer | K98: =A5 -> IT engineer | L98: N/A | M98: N/A | N98: N/A | O98: N/A | P98: N/A | Q98: N/A | R98: N/A | S98: N/A | T98: N/A | U98: N/A | V98: 12 | W98: 8 | X98: 5 | Y98: 5 | Z98: 1 | AA98: No
A99: 11.2 | B99: =C4 -> External | C99: =C4 -> External | D99: =C4 -> External | E99: =C4 -> External | F99: =C4 -> External | G99: =C5 -> MNO CRM vendor | H99: =C5 -> MNO CRM vendor | I99: =C7 -> Medium MVNO CRM vendor | J99: =C7 -> Medium MVNO CRM vendor | K99: =C8 -> Small MVNO CRM vendor | L99: N/A | M99: N/A | N99: N/A | O99: N/A | P99: N/A | Q99: N/A | R99: N/A | S99: N/A | T99: N/A | U99: N/A | V99: 25 | W99: 15 | X99: 10 | Y99: 10 | Z99: 0 | AA99: Yes
A100: 11.3 | B100: =B4 -> Project management | C100: =B4 -> Project management | D100: =B4 -> Project management | E100: =B4 -> Project management | F100: =B4 -> Project management | G100: =B6 -> Middle manager | H100: =B6 -> Middle manager | I100: =B6 -> Middle manager | J100: =B6 -> Middle manager | K100: =B6 -> Middle manager | L100: N/A | M100: N/A | N100: N/A | O100: N/A | P100: N/A | Q100: N/A | R100: N/A | S100: N/A | T100: N/A | U100: N/A | V100: 15 | W100: 10 | X100: 5 | Y100: 5 | Z100: 2 | AA100: No
A101: 11.4 | B101: =B4 -> Project management | C101: =B4 -> Project management | D101: =B4 -> Project management | E101: =B4 -> Project management | F101: =B4 -> Project management | G101: =B6 -> Middle manager | H101: =B6 -> Middle manager | I101: =B6 -> Middle manager | J101: =B6 -> Middle manager | K101: =B6 -> Middle manager | L101: N/A | M101: N/A | N101: N/A | O101: N/A | P101: N/A | Q101: N/A | R101: N/A | S101: N/A | T101: N/A | U101: N/A | V101: 20 | W101: 12 | X101: 6 | Y101: 8 | Z101: 1 | AA101: No
A102: 11.5 | B102: =B4 -> Project management | C102: =B4 -> Project management | D102: =B4 -> Project management | E102: =B4 -> Project management | F102: =B4 -> Project management | G102: =B6 -> Middle manager | H102: =B6 -> Middle manager | I102: =B6 -> Middle manager | J102: =B6 -> Middle manager | K102: =B6 -> Middle manager | L102: N/A | M102: N/A | N102: N/A | O102: N/A | P102: N/A | Q102: N/A | R102: N/A | S102: N/A | T102: N/A | U102: N/A | V102: 5 | W102: 3 | X102: 2 | Y102: 3 | Z102: 0.5 | AA102: No
A103: 12.1 | B103: =A4 -> Employee | C103: =A4 -> Employee | D103: =A4 -> Employee | E103: =A4 -> Employee | F103: =A4 -> Employee | G103: =A5 -> IT engineer | H103: =A5 -> IT engineer | I103: =A5 -> IT engineer | J103: =A5 -> IT engineer | K103: =A5 -> IT engineer | L103: N/A | M103: N/A | N103: N/A | O103: N/A | P103: N/A | Q103: N/A | R103: N/A | S103: N/A | T103: N/A | U103: N/A | V103: 18 | W103: 10 | X103: 7 | Y103: 7 | Z103: 1 | AA103: No
A104: 12.2 | B104: =C4 -> External | C104: =C4 -> External | D104: =C4 -> External | E104: =C4 -> External | F104: =C4 -> External | G104: =C5 -> MNO CRM vendor | H104: =C5 -> MNO CRM vendor | I104: =C7 -> Medium MVNO CRM vendor | J104: =C7 -> Medium MVNO CRM vendor | K104: =C8 -> Small MVNO CRM vendor | L104: N/A | M104: N/A | N104: N/A | O104: N/A | P104: N/A | Q104: N/A | R104: N/A | S104: N/A | T104: N/A | U104: N/A | V104: 45 | W104: 30 | X104: 20 | Y104: 20 | Z104: 0 | AA104: Yes
A105: 12.3 | B105: =B4 -> Project management | C105: =B4 -> Project management | D105: =B4 -> Project management | E105: =B4 -> Project management | F105: =B4 -> Project management | G105: =B6 -> Middle manager | H105: =B6 -> Middle manager | I105: =B6 -> Middle manager | J105: =B6 -> Middle manager | K105: =B6 -> Middle manager | L105: N/A | M105: N/A | N105: N/A | O105: N/A | P105: N/A | Q105: N/A | R105: N/A | S105: N/A | T105: N/A | U105: N/A | V105: 15 | W105: 10 | X105: 6 | Y105: 6 | Z105: 3 | AA105: No
A106: 12.4 | B106: =B4 -> Project management | C106: =B4 -> Project management | D106: =B4 -> Project management | E106: =B4 -> Project management | F106: =B4 -> Project management | G106: =B6 -> Middle manager | H106: =B6 -> Middle manager | I106: =B6 -> Middle manager | J106: =B6 -> Middle manager | K106: =B6 -> Middle manager | L106: N/A | M106: N/A | N106: N/A | O106: N/A | P106: N/A | Q106: N/A | R106: N/A | S106: N/A | T106: N/A | U106: N/A | V106: 20 | W106: 12 | X106: 7 | Y106: 10 | Z106: 1.5 | AA106: No
A107: 12.5 | B107: =B4 -> Project management | C107: =B4 -> Project management | D107: =B4 -> Project management | E107: =B4 -> Project management | F107: =B4 -> Project management | G107: =B6 -> Middle manager | H107: =B6 -> Middle manager | I107: =B6 -> Middle manager | J107: =B6 -> Middle manager | K107: =B6 -> Middle manager | L107: N/A | M107: N/A | N107: N/A | O107: N/A | P107: N/A | Q107: N/A | R107: N/A | S107: N/A | T107: N/A | U107: N/A | V107: 10 | W107: 6 | X107: 4 | Y107: 4 | Z107: 0.5 | AA107: No
A108: 13.1 | B108: =A4 -> Employee | C108: =A4 -> Employee | D108: =A4 -> Employee | E108: =A4 -> Employee | F108: =A4 -> Employee | G108: =A5 -> IT engineer | H108: =A5 -> IT engineer | I108: =A5 -> IT engineer | J108: =A5 -> IT engineer | K108: =A5 -> IT engineer | L108: N/A | M108: N/A | N108: N/A | O108: N/A | P108: N/A | Q108: N/A | R108: N/A | S108: N/A | T108: N/A | U108: N/A | V108: 12 | W108: 8 | X108: 5 | Y108: 5 | Z108: 1 | AA108: No
A109: 13.2 | B109: =C4 -> External | C109: =C4 -> External | D109: =C4 -> External | E109: =C4 -> External | F109: =C4 -> External | G109: =C5 -> MNO CRM vendor | H109: =C5 -> MNO CRM vendor | I109: =C7 -> Medium MVNO CRM vendor | J109: =C7 -> Medium MVNO CRM vendor | K109: =C8 -> Small MVNO CRM vendor | L109: N/A | M109: N/A | N109: N/A | O109: N/A | P109: N/A | Q109: N/A | R109: N/A | S109: N/A | T109: N/A | U109: N/A | V109: 35 | W109: 22 | X109: 15 | Y109: 15 | Z109: 0 | AA109: Yes
A110: 13.3 | B110: =B4 -> Project management | C110: =B4 -> Project management | D110: =B4 -> Project management | E110: =B4 -> Project management | F110: =B4 -> Project management | G110: =B6 -> Middle manager | H110: =B6 -> Middle manager | I110: =B6 -> Middle manager | J110: =B6 -> Middle manager | K110: =B6 -> Middle manager | L110: N/A | M110: N/A | N110: N/A | O110: N/A | P110: N/A | Q110: N/A | R110: N/A | S110: N/A | T110: N/A | U110: N/A | V110: 10 | W110: 8 | X110: 5 | Y110: 5 | Z110: 2 | AA110: No
A111: 13.4 | B111: =B4 -> Project management | C111: =B4 -> Project management | D111: =B4 -> Project management | E111: =B4 -> Project management | F111: =B4 -> Project management | G111: =B6 -> Middle manager | H111: =B6 -> Middle manager | I111: =B6 -> Middle manager | J111: =B6 -> Middle manager | K111: =B6 -> Middle manager | L111: N/A | M111: N/A | N111: N/A | O111: N/A | P111: N/A | Q111: N/A | R111: N/A | S111: N/A | T111: N/A | U111: N/A | V111: 12 | W111: 8 | X111: 5 | Y111: 9 | Z111: 1 | AA111: No
A112: 13.5 | B112: =B4 -> Project management | C112: =B4 -> Project management | D112: =B4 -> Project management | E112: =B4 -> Project management | F112: =B4 -> Project management | G112: =B6 -> Middle manager | H112: =B6 -> Middle manager | I112: =B6 -> Middle manager | J112: =B6 -> Middle manager | K112: =B6 -> Middle manager | L112: N/A | M112: N/A | N112: N/A | O112: N/A | P112: N/A | Q112: N/A | R112: N/A | S112: N/A | T112: N/A | U112: N/A | V112: 7 | W112: 5 | X112: 3 | Y112: 4 | Z112: 0.5 | AA112: No
A113: 14.1 | B113: =A4 -> Employee | C113: =A4 -> Employee | D113: =A4 -> Employee | E113: =A4 -> Employee | F113: =A4 -> Employee | G113: =A5 -> IT engineer | H113: =A5 -> IT engineer | I113: =A5 -> IT engineer | J113: =A5 -> IT engineer | K113: =A5 -> IT engineer | L113: 2 | M113: 2 | N113: 1 | O113: 1 | P113: 1 | Q113: 4 | R113: 4 | S113: 4 | T113: 4 | U113: 4 | V113: =L113*Q113 -> 8 | W113: =M113*R113 -> 8 | X113: =N113*S113 -> 4 | Y113: =O113*T113 -> 4 | Z113: =P113*U113 -> 4 | AA113: No
A114: 14.2 | B114: =A4 -> Employee | C114: =A4 -> Employee | D114: =A4 -> Employee | E114: =A4 -> Employee | F114: =C4 -> External | G114: =A7 -> Training team | H114: =A7 -> Training team | I114: =A7 -> Training team | J114: =A7 -> Training team | K114: =C9 -> External training team | L114: 8 | M114: 2 | N114: 1 | O114: 1 | P114: 1 | Q114: 7 | R114: 7 | S114: 7 | T114: 7 | U114: 7 | V114: =L114*Q114 -> 56 | W114: =M114*R114 -> 14 | X114: 7 | Y114: =O114*T114 -> 7 | Z114: 7 | AA114: No
A115: 14.3 | B115: =A4 -> Employee | C115: =A4 -> Employee | D115: =A4 -> Employee | E115: =A4 -> Employee | F115: =C4 -> External | G115: =A7 -> Training team | H115: =A7 -> Training team | I115: =A7 -> Training team | J115: =A7 -> Training team | K115: =C9 -> External training team | L115: 8 | M115: 4 | N115: 4 | O115: 1 | P115: 1 | Q115: 10 | R115: 8 | S115: 1.5 | T115: 1.5 | U115: 0.5 | V115: 80 | W115: 32 | X115: 6 | Y115: 1.5 | Z115: 0.5 | AA115: No
A116: 14.4 | B116: =A4 -> Employee | C116: =A4 -> Employee | D116: =A4 -> Employee | E116: =A4 -> Employee | F116: =A4 -> Employee | G116: =A5 -> IT engineer | H116: =A5 -> IT engineer | I116: =A5 -> IT engineer | J116: =A5 -> IT engineer | K116: =A5 -> IT engineer | L116: 60 | M116: 30 | N116: 10 | O116: 10 | P116: 5 | Q116: 0.5 | R116: 0.5 | S116: 0.5 | T116: 0.5 | U116: 0.5 | V116: 30 | W116: 15 | X116: 5 | Y116: 5 | Z116: 2.5 | AA116: No
B117: =A4 -> Employee | C117: =A4 -> Employee | D117: =A4 -> Employee | E117: =A4 -> Employee | F117: =A4 -> Employee | G117: =A8 -> Billing administrators | H117: =A8 -> Billing administrators | I117: =A8 -> Billing administrators | J117: =A8 -> Billing administrators | K117: =A8 -> Billing administrators | L117: 30 | M117: 20 | N117: 15 | O117: 15 | P117: 5 | Q117: 0.5 | R117: 0.5 | S117: 0.5 | T117: 0.5 | U117: 0.5 | V117: 15 | W117: 10 | X117: 7.5 | Y117: 7.5 | Z117: 2.5 | AA117: No
B118: =A4 -> Employee | C118: =A4 -> Employee | D118: =A4 -> Employee | E118: =A4 -> Employee | F118: =A4 -> Employee | G118: =A9 -> CSAs | H118: =A9 -> CSAs | I118: =A9 -> CSAs | J118: =A9 -> CSAs | K118: =A9 -> CSAs | L118: ='Salary . staff rates'!$B$25 -> 10400 | M118: ='Salary . staff rates'!$B$26 -> 4000 | N118: ='Salary . staff rates'!$B$27 -> 500 | O118: 0 | P118: ='Salary . staff rates'!$B$28 -> 20 | Q118: 0.125 | R118: 0.125 | S118: 0.125 | T118: 0.125 | U118: 0.125 | V118: 1300 | W118: 500 | X118: 62.5 | Y118: 0 | Z118: 2.5 | AA118: No
V119: =SUM(V116:V118)/V115 -> 16.8125 | W119: =SUM(W116:W118)/W115 -> 16.40625 | X119: 12.5 | Y119: 8.333333333 | Z119: 15 | AB119: Checksum: Ratio of trainers:staff
A123: 15.1 | B123: =A4 -> Employee | C123: =A4 -> Employee | D123: =A4 -> Employee | E123: =A4 -> Employee | F123: =A4 -> Employee | G123: =A5 -> IT engineer | H123: =A5 -> IT engineer | I123: =A5 -> IT engineer | J123: =A5 -> IT engineer | K123: =A5 -> IT engineer | L123: N/A | M123: N/A | N123: N/A | O123: N/A | P123: N/A | Q123: N/A | R123: N/A | S123: N/A | T123: N/A | U123: N/A | V123: 15 | W123: 10 | X123: 10 | Y123: 10 | Z123: 0 | AA123: No
A124: 15.2 | B124: =C4 -> External | C124: =C4 -> External | D124: =C4 -> External | E124: =C4 -> External | F124: =C4 -> External | G124: =C5 -> MNO CRM vendor | H124: =C5 -> MNO CRM vendor | I124: =C7 -> Medium MVNO CRM vendor | J124: =C7 -> Medium MVNO CRM vendor | K124: =C8 -> Small MVNO CRM vendor | L124: N/A | M124: N/A | N124: N/A | O124: N/A | P124: N/A | Q124: N/A | R124: N/A | S124: N/A | T124: N/A | U124: N/A | V124: 50 | W124: 30 | X124: 20 | Y124: 20 | Z124: 0 | AA124: Yes
A125: 15.3 | B125: =A4 -> Employee | C125: =A4 -> Employee | D125: =A4 -> Employee | E125: =A4 -> Employee | F125: =A4 -> Employee | G125: =A5 -> IT engineer | H125: =A5 -> IT engineer | I125: =A5 -> IT engineer | J125: =A5 -> IT engineer | K125: =A5 -> IT engineer | L125: N/A | M125: N/A | N125: N/A | O125: N/A | P125: N/A | Q125: N/A | R125: N/A | S125: N/A | T125: N/A | U125: N/A | V125: 30 | W125: 15 | X125: 10 | Y125: 10 | Z125: 0 | AA125: Yes
A126: 15.4 | B126: =B4 -> Project management | C126: =B4 -> Project management | D126: =B4 -> Project management | E126: =B4 -> Project management | F126: =B4 -> Project management | G126: =B6 -> Middle manager | H126: =B6 -> Middle manager | I126: =B6 -> Middle manager | J126: =B6 -> Middle manager | K126: =B6 -> Middle manager | L126: N/A | M126: N/A | N126: N/A | O126: N/A | P126: N/A | Q126: N/A | R126: N/A | S126: N/A | T126: N/A | U126: N/A | V126: 15 | W126: 10 | X126: 8 | Y126: 8 | Z126: 0 | AA126: No
A129: 16.1 | B129: =A4 -> Employee | C129: N/A | D129: N/A | E129: =A4 -> Employee | F129: N/A | G129: =A5 -> IT engineer | H129: N/A | I129: N/A | J129: =A5 -> IT engineer | K129: N/A | L129: N/A | M129: N/A | N129: N/A | O129: N/A | P129: N/A | Q129: N/A | R129: N/A | S129: N/A | T129: N/A | U129: N/A | V129: 5 | W129: N/A | X129: N/A | Y129: 5 | Z129: N/A | AA129: No
A130: 16.2 | B130: =C4 -> External | C130: N/A | D130: N/A | E130: =C4 -> External | F130: N/A | G130: =C5 -> MNO CRM vendor | H130: N/A | I130: N/A | J130: =C7 -> Medium MVNO CRM vendor | K130: N/A | L130: N/A | M130: N/A | N130: N/A | O130: N/A | P130: N/A | Q130: N/A | R130: N/A | S130: N/A | T130: N/A | U130: N/A | V130: 40 | W130: N/A | X130: N/A | Y130: 40 | Z130: N/A | AA130: Yes
A131: 16.3 | B131: =A4 -> Employee | C131: N/A | D131: N/A | E131: =A4 -> Employee | F131: N/A | G131: =A5 -> IT engineer | H131: N/A | I131: N/A | J131: =A5 -> IT engineer | K131: N/A | L131: N/A | M131: N/A | N131: N/A | O131: N/A | P131: N/A | Q131: N/A | R131: N/A | S131: N/A | T131: N/A | U131: N/A | V131: 10 | W131: N/A | X131: N/A | Y131: 10 | Z131: N/A | AA131: No
A132: 16.4 | B132: =A4 -> Employee | C132: N/A | D132: N/A | E132: =A4 -> Employee | F132: N/A | G132: =A5 -> IT engineer | H132: N/A | I132: N/A | J132: =A5 -> IT engineer | K132: N/A | L132: N/A | M132: N/A | N132: N/A | O132: N/A | P132: N/A | Q132: N/A | R132: N/A | S132: N/A | T132: N/A | U132: N/A | V132: 30 | W132: N/A | X132: N/A | Y132: 30 | Z132: N/A | AA132: No
A133: 16.5 | B133: =B4 -> Project management | C133: N/A | D133: N/A | E133: =B4 -> Project management | F133: N/A | G133: =B6 -> Middle manager | H133: N/A | I133: N/A | J133: =B6 -> Middle manager | K133: N/A | L133: N/A | M133: N/A | N133: N/A | O133: N/A | P133: N/A | Q133: N/A | R133: N/A | S133: N/A | T133: N/A | U133: N/A | V133: 10 | W133: N/A | X133: N/A | Y133: 10 | Z133: N/A | AA133: No
A136: 17.1 | B136: N/A | C136: N/A | D136: N/A | E136: N/A | F136: =A4 -> Employee | G136: N/A | H136: N/A | I136: N/A | J136: N/A | K136: =A8 -> Billing administrators | L136: N/A | M136: N/A | N136: N/A | O136: N/A | P136: N/A | Q136: N/A | R136: N/A | S136: N/A | T136: N/A | U136: N/A | V136: N/A | W136: N/A | X136: N/A | Y136: N/A | Z136: 3 | AA136: No
A137: 17.2 | B137: N/A | C137: N/A | D137: N/A | E137: N/A | F137: =A4 -> Employee | G137: N/A | H137: N/A | I137: N/A | J137: N/A | K137: =A8 -> Billing administrators | L137: N/A | M137: N/A | N137: N/A | O137: N/A | P137: N/A | Q137: N/A | R137: N/A | S137: N/A | T137: N/A | U137: N/A | V137: N/A | W137: N/A | X137: N/A | Y137: N/A | Z137: 4 | AA137: No
A138: 17.3 | B138: N/A | C138: N/A | D138: N/A | E138: N/A | F138: =A4 -> Employee | G138: N/A | H138: N/A | I138: N/A | J138: N/A | K138: =A8 -> Billing administrators | L138: N/A | M138: N/A | N138: N/A | O138: N/A | P138: N/A | Q138: N/A | R138: N/A | S138: N/A | T138: N/A | U138: N/A | V138: N/A | W138: N/A | X138: N/A | Y138: N/A | Z138: 2 | AA138: No
A139: 17.4 | B139: N/A | C139: N/A | D139: N/A | E139: N/A | F139: =A4 -> Employee | G139: N/A | H139: N/A | I139: N/A | J139: N/A | K139: =A8 -> Billing administrators | L139: N/A | M139: N/A | N139: N/A | O139: N/A | P139: N/A | Q139: N/A | R139: N/A | S139: N/A | T139: N/A | U139: N/A | V139: N/A | W139: N/A | X139: N/A | Y139: N/A | Z139: 1 | AA139: No
A143: 18.2 | B143: =A4 -> Employee | C143: =A4 -> Employee | D143: =A4 -> Employee | E143: =A4 -> Employee | F143: =C4 -> External | G143: =A5 -> IT engineer | H143: =A5 -> IT engineer | I143: =A5 -> IT engineer | J143: =A5 -> IT engineer | K143: =C8 -> Small MVNO CRM vendor | L143: N/A | M143: N/A | N143: N/A | O143: N/A | P143: N/A | Q143: N/A | R143: N/A | S143: N/A | T143: N/A | U143: N/A | V143: 8 | W143: 5 | X143: 3 | Y143: 3 | Z143: 0 | AA143: No
A144: 18.2 | B144: =C4 -> External | C144: =C4 -> External | D144: =C4 -> External | E144: =C4 -> External | F144: =C4 -> External | G144: =C5 -> MNO CRM vendor | H144: =C6 -> Large MVNO CRM vendor | I144: =C7 -> Medium MVNO CRM vendor | J144: =C7 -> Medium MVNO CRM vendor | K144: =C8 -> Small MVNO CRM vendor | L144: N/A | M144: N/A | N144: N/A | O144: N/A | P144: N/A | Q144: N/A | R144: N/A | S144: N/A | T144: N/A | U144: N/A | V144: 50 | W144: 30 | X144: 20 | Y144: 20 | Z144: 0 | AA144: Yes
A145: 18.3 | B145: =C4 -> External | C145: =C4 -> External | D145: =C4 -> External | E145: =C4 -> External | F145: =C4 -> External | G145: =C5 -> MNO CRM vendor | H145: =C6 -> Large MVNO CRM vendor | I145: =C7 -> Medium MVNO CRM vendor | J145: =C7 -> Medium MVNO CRM vendor | K145: =C8 -> Small MVNO CRM vendor | L145: N/A | M145: N/A | N145: N/A | O145: N/A | P145: N/A | Q145: N/A | R145: N/A | S145: N/A | T145: N/A | U145: N/A | V145: 70 | W145: 42 | X145: 30 | Y145: 30 | Z145: 0 | AA145: Yes
A146: 18.4 | B146: =C4 -> External | C146: =C4 -> External | D146: =C4 -> External | E146: =C4 -> External | F146: =C4 -> External | G146: =C5 -> MNO CRM vendor | H146: =C6 -> Large MVNO CRM vendor | I146: =C7 -> Medium MVNO CRM vendor | J146: =C7 -> Medium MVNO CRM vendor | K146: =C8 -> Small MVNO CRM vendor | L146: N/A | M146: N/A | N146: N/A | O146: N/A | P146: N/A | Q146: N/A | R146: N/A | S146: N/A | T146: N/A | U146: N/A | V146: 60 | W146: 33 | X146: 25 | Y146: 25 | Z146: 0 | AA146: Yes
A147: 18.5 | B147: =C4 -> External | C147: =C4 -> External | D147: =C4 -> External | E147: =C4 -> External | F147: =C4 -> External | G147: =C5 -> MNO CRM vendor | H147: =C6 -> Large MVNO CRM vendor | I147: =C7 -> Medium MVNO CRM vendor | J147: =C7 -> Medium MVNO CRM vendor | K147: =C8 -> Small MVNO CRM vendor | L147: N/A | M147: N/A | N147: N/A | O147: N/A | P147: N/A | Q147: N/A | R147: N/A | S147: N/A | T147: N/A | U147: N/A | V147: 45 | W147: 25 | X147: 15 | Y147: 15 | Z147: 0 | AA147: Yes
A148: 18.6 | B148: =C4 -> External | C148: =C4 -> External | D148: =C4 -> External | E148: =C4 -> External | F148: =C4 -> External | G148: =C5 -> MNO CRM vendor | H148: =C6 -> Large MVNO CRM vendor | I148: =C7 -> Medium MVNO CRM vendor | J148: =C7 -> Medium MVNO CRM vendor | K148: =C8 -> Small MVNO CRM vendor | L148: N/A | M148: N/A | N148: N/A | O148: N/A | P148: N/A | Q148: N/A | R148: N/A | S148: N/A | T148: N/A | U148: N/A | V148: 70 | W148: 40 | X148: 25 | Y148: 25 | Z148: 0 | AA148: Yes
A149: =A148+0.1 -> 18.7 | B149: =A4 -> Employee | C149: =A4 -> Employee | D149: =A4 -> Employee | E149: =A4 -> Employee | F149: =C4 -> External | G149: =A5 -> IT engineer | H149: =A5 -> IT engineer | I149: =A5 -> IT engineer | J149: =A5 -> IT engineer | K149: =C8 -> Small MVNO CRM vendor | L149: N/A | M149: N/A | N149: N/A | O149: N/A | P149: N/A | Q149: N/A | R149: N/A | S149: N/A | T149: N/A | U149: N/A | V149: 60 | W149: 45 | X149: 30 | Y149: 30 | Z149: 2 | AA149: No
A150: 18.8 | B150: =B4 -> Project management | C150: =B4 -> Project management | D150: =B4 -> Project management | E150: =B4 -> Project management | F150: =B4 -> Project management | G150: =B6 -> Middle manager | H150: =B6 -> Middle manager | I150: =B6 -> Middle manager | J150: =B6 -> Middle manager | K150: =B6 -> Middle manager | L150: N/A | M150: N/A | N150: N/A | O150: N/A | P150: N/A | Q150: N/A | R150: N/A | S150: N/A | T150: N/A | U150: N/A | V150: 50 | W150: 30 | X150: 20 | Y150: 20 | Z150: 1 | AA150: No
A151: 19.1 | B151: =B4 -> Project management | C151: =B4 -> Project management | D151: =B4 -> Project management | E151: =B4 -> Project management | F151: =C4 -> External | G151: =B7 -> Senior manager | H151: =B7 -> Senior manager | I151: =B6 -> Middle manager | J151: =B6 -> Middle manager | K151: =C8 -> Small MVNO CRM vendor | L151: N/A | M151: N/A | N151: N/A | O151: N/A | P151: N/A | Q151: N/A | R151: N/A | S151: N/A | T151: N/A | U151: N/A | V151: 5 | W151: 4 | X151: 2 | Y151: 2 | Z151: 0 | AA151: No
A152: 19.2 | B152: =C4 -> External | C152: =C4 -> External | D152: =C4 -> External | E152: =C4 -> External | F152: =C4 -> External | G152: =C5 -> MNO CRM vendor | H152: =C6 -> Large MVNO CRM vendor | I152: =C7 -> Medium MVNO CRM vendor | J152: =C7 -> Medium MVNO CRM vendor | K152: =C8 -> Small MVNO CRM vendor | L152: N/A | M152: N/A | N152: N/A | O152: N/A | P152: N/A | Q152: N/A | R152: N/A | S152: N/A | T152: N/A | U152: N/A | V152: 10 | W152: 7 | X152: 4 | Y152: 4 | Z152: 0 | AA152: Yes
A153: 19.3 | B153: =C4 -> External | C153: =C4 -> External | D153: =C4 -> External | E153: =C4 -> External | F153: =C4 -> External | G153: =C5 -> MNO CRM vendor | H153: =C6 -> Large MVNO CRM vendor | I153: =C7 -> Medium MVNO CRM vendor | J153: =C7 -> Medium MVNO CRM vendor | K153: =C8 -> Small MVNO CRM vendor | L153: N/A | M153: N/A | N153: N/A | O153: N/A | P153: N/A | Q153: N/A | R153: N/A | S153: N/A | T153: N/A | U153: N/A | V153: 5 | W153: 3 | X153: 2 | Y153: 2 | Z153: 0 | AA153: Yes
A154: 19.4 | B154: =C4 -> External | C154: =C4 -> External | D154: =C4 -> External | E154: =C4 -> External | F154: =C4 -> External | G154: =C5 -> MNO CRM vendor | H154: =C6 -> Large MVNO CRM vendor | I154: =C7 -> Medium MVNO CRM vendor | J154: =C7 -> Medium MVNO CRM vendor | K154: =C8 -> Small MVNO CRM vendor | L154: N/A | M154: N/A | N154: N/A | O154: N/A | P154: N/A | Q154: N/A | R154: N/A | S154: N/A | T154: N/A | U154: N/A | V154: 10 | W154: 8 | X154: 5 | Y154: 5 | Z154: 0 | AA154: Yes
A155: =A154+0.1 -> 19.5 | B155: =C4 -> External | C155: =C4 -> External | D155: =C4 -> External | E155: =C4 -> External | F155: =C4 -> External | G155: =C5 -> MNO CRM vendor | H155: =C6 -> Large MVNO CRM vendor | I155: =C7 -> Medium MVNO CRM vendor | J155: =C7 -> Medium MVNO CRM vendor | K155: =C8 -> Small MVNO CRM vendor | L155: N/A | M155: N/A | N155: N/A | O155: N/A | P155: N/A | Q155: N/A | R155: N/A | S155: N/A | T155: N/A | U155: N/A | V155: 10 | W155: 8 | X155: 5 | Y155: 5 | Z155: 0 | AA155: Yes
A156: 19.6 | B156: =A4 -> Employee | C156: =A4 -> Employee | D156: =A4 -> Employee | E156: =A4 -> Employee | F156: =C4 -> External | G156: =A5 -> IT engineer | H156: =A5 -> IT engineer | I156: =A5 -> IT engineer | J156: =A5 -> IT engineer | K156: =C8 -> Small MVNO CRM vendor | L156: N/A | M156: N/A | N156: N/A | O156: N/A | P156: N/A | Q156: N/A | R156: N/A | S156: N/A | T156: N/A | U156: N/A | V156: 15 | W156: 10 | X156: 8 | Y156: 8 | Z156: 2 | AA156: No
A157: 19.7 | B157: =B4 -> Project management | C157: =B4 -> Project management | D157: =B4 -> Project management | E157: =B4 -> Project management | F157: =B4 -> Project management | G157: =B6 -> Middle manager | H157: =B6 -> Middle manager | I157: =B6 -> Middle manager | J157: =B6 -> Middle manager | K157: =B6 -> Middle manager | L157: N/A | M157: N/A | N157: N/A | O157: N/A | P157: N/A | Q157: N/A | R157: N/A | S157: N/A | T157: N/A | U157: N/A | V157: 15 | W157: 10 | X157: 5 | Y157: 5 | Z157: 1 | AA157: No
A158: 20.1 | B158: =B4 -> Project management | C158: =B4 -> Project management | D158: =B4 -> Project management | E158: =B4 -> Project management | F158: =C4 -> External | G158: =B7 -> Senior manager | H158: =B7 -> Senior manager | I158: =B6 -> Middle manager | J158: =B6 -> Middle manager | K158: =C8 -> Small MVNO CRM vendor | L158: N/A | M158: N/A | N158: N/A | O158: N/A | P158: N/A | Q158: N/A | R158: N/A | S158: N/A | T158: N/A | U158: N/A | V158: 10 | W158: 6 | X158: 4 | Y158: 4 | Z158: 3 | AA158: No
A159: =A158+0.1 -> 20.2 | B159: =C4 -> External | C159: =C4 -> External | D159: =C4 -> External | E159: =C4 -> External | F159: =C4 -> External | G159: =C5 -> MNO CRM vendor | H159: =C6 -> Large MVNO CRM vendor | I159: =C7 -> Medium MVNO CRM vendor | J159: =C7 -> Medium MVNO CRM vendor | K159: =C8 -> Small MVNO CRM vendor | L159: N/A | M159: N/A | N159: N/A | O159: N/A | P159: N/A | Q159: N/A | R159: N/A | S159: N/A | T159: N/A | U159: N/A | V159: 25 | W159: 20 | X159: 10 | Y159: 10 | Z159: 0 | AA159: Yes
A160: =A159+0.1 -> 20.3 | B160: =C4 -> External | C160: =C4 -> External | D160: =C4 -> External | E160: =C4 -> External | F160: =C4 -> External | G160: =C5 -> MNO CRM vendor | H160: =C6 -> Large MVNO CRM vendor | I160: =C7 -> Medium MVNO CRM vendor | J160: =C7 -> Medium MVNO CRM vendor | K160: =C8 -> Small MVNO CRM vendor | L160: N/A | M160: N/A | N160: N/A | O160: N/A | P160: N/A | Q160: N/A | R160: N/A | S160: N/A | T160: N/A | U160: N/A | V160: 25 | W160: 15 | X160: 8 | Y160: 8 | Z160: 0 | AA160: Yes
A161: 20.4 | B161: =C4 -> External | C161: =C4 -> External | D161: =C4 -> External | E161: =C4 -> External | F161: =C4 -> External | G161: =C5 -> MNO CRM vendor | H161: =C6 -> Large MVNO CRM vendor | I161: =C7 -> Medium MVNO CRM vendor | J161: =C7 -> Medium MVNO CRM vendor | K161: =C8 -> Small MVNO CRM vendor | L161: N/A | M161: N/A | N161: N/A | O161: N/A | P161: N/A | Q161: N/A | R161: N/A | S161: N/A | T161: N/A | U161: N/A | V161: 25 | W161: 10 | X161: 8 | Y161: 8 | Z161: 0 | AA161: Yes
A162: 20.5 | B162: =C4 -> External | C162: =C4 -> External | D162: =C4 -> External | E162: =C4 -> External | F162: =C4 -> External | G162: =C5 -> MNO CRM vendor | H162: =C6 -> Large MVNO CRM vendor | I162: =C7 -> Medium MVNO CRM vendor | J162: =C7 -> Medium MVNO CRM vendor | K162: =C8 -> Small MVNO CRM vendor | L162: N/A | M162: N/A | N162: N/A | O162: N/A | P162: N/A | Q162: N/A | R162: N/A | S162: N/A | T162: N/A | U162: N/A | V162: 15 | W162: 10 | X162: 8 | Y162: 8 | Z162: 0 | AA162: Yes
A163: 20.6 | B163: =A4 -> Employee | C163: =A4 -> Employee | D163: =A4 -> Employee | E163: =A4 -> Employee | F163: =C4 -> External | G163: =A5 -> IT engineer | H163: =A5 -> IT engineer | I163: =A5 -> IT engineer | J163: =A5 -> IT engineer | K163: =C8 -> Small MVNO CRM vendor | L163: N/A | M163: N/A | N163: N/A | O163: N/A | P163: N/A | Q163: N/A | R163: N/A | S163: N/A | T163: N/A | U163: N/A | V163: 25 | W163: 10 | X163: 8 | Y163: 8 | Z163: 3 | AA163: No
A164: 20.7 | B164: =B4 -> Project management | C164: =B4 -> Project management | D164: =B4 -> Project management | E164: =B4 -> Project management | F164: =B4 -> Project management | G164: =B6 -> Middle manager | H164: =B6 -> Middle manager | I164: =B6 -> Middle manager | J164: =B6 -> Middle manager | K164: =B6 -> Middle manager | L164: N/A | M164: N/A | N164: N/A | O164: N/A | P164: N/A | Q164: N/A | R164: N/A | S164: N/A | T164: N/A | U164: N/A | V164: 25 | W164: 15 | X164: 10 | Y164: 10 | Z164: 1 | AA164: No
A168: ='Auto-PAC LP variant'!A2 -> Auto-PAC LP variant
B169: Resource - MNO | C169: Resource - Large MVNO | D169: Resource - Medium MVNO | E169: Resource - MVNA/MVNE | F169: Resource - Small MVNO | G169: Type of staff / licence - MNO | H169: Type of staff / licence - large MVNO | I169: Type of staff / licence - medium MVNO | J169: Type of staff / licence - MVNA/MVNE | K169: Type of staff / licence - small MVNO | L169: Number of trainers / =A4s - MNO | M169: Number of trainers / =A4s - large MVNO | N169: Number of trainers / =A4s - medium MVNO | O169: Number of trainer / =A4s - MVNA/MVNE | P169: Number of trainers / =A4s - small MVNO | Q169: Number of days training - MNO | R169: Number of days training - large MVNO | S169: Number of days training - medium MVNO | T169: Number of days training - MVNA/MVNE | U169: Number of days training - small MVNO | V169: Development days - MNO | W169: Development days - large MVNO | X169: Development days - medium MVNO | Y169: Development days - MVNA/MVNE | Z169: Development days - small MVNO | AA169: Ongoing costs?
A170: 1.1 | B170: =A4 -> Employee | C170: =A4 -> Employee | D170: =A4 -> Employee | E170: =A4 -> Employee | F170: =C4 -> External | G170: =A5 -> IT engineer | H170: =A5 -> IT engineer | I170: =A5 -> IT engineer | J170: =A5 -> IT engineer | K170: =C8 -> Small MVNO CRM vendor | L170: N/A | M170: N/A | N170: N/A | O170: N/A | P170: N/A | Q170: N/A | R170: N/A | S170: N/A | T170: N/A | U170: N/A | V170: 8 | W170: 5 | X170: 3 | Y170: 3 | Z170: 0 | AA170: No
A171: 1.2 | B171: =A4 -> Employee | C171: =A4 -> Employee | D171: =A4 -> Employee | E171: =A4 -> Employee | F171: =C4 -> External | G171: =A5 -> IT engineer | H171: =A5 -> IT engineer | I171: =A5 -> IT engineer | J171: =A5 -> IT engineer | K171: =C8 -> Small MVNO CRM vendor | L171: N/A | M171: N/A | N171: N/A | O171: N/A | P171: N/A | Q171: N/A | R171: N/A | S171: N/A | T171: N/A | U171: N/A | V171: 25 | W171: 15 | X171: 10 | Y171: 10 | Z171: 0 | AA171: Yes
A172: 1.3 | B172: =A4 -> Employee | C172: =A4 -> Employee | D172: =A4 -> Employee | E172: =A4 -> Employee | F172: =C4 -> External | G172: =A5 -> IT engineer | H172: =A5 -> IT engineer | I172: =A5 -> IT engineer | J172: =A5 -> IT engineer | K172: =C8 -> Small MVNO CRM vendor | L172: N/A | M172: N/A | N172: N/A | O172: N/A | P172: N/A | Q172: N/A | R172: N/A | S172: N/A | T172: N/A | U172: N/A | V172: 1 | W172: 1 | X172: 1 | Y172: 1 | Z172: 0 | AA172: Yes
A173: 1.4 | B173: =A4 -> Employee | C173: =A4 -> Employee | D173: =A4 -> Employee | E173: =A4 -> Employee | F173: =C4 -> External | G173: =A5 -> IT engineer | H173: =A5 -> IT engineer | I173: =A5 -> IT engineer | J173: =A5 -> IT engineer | K173: =C8 -> Small MVNO CRM vendor | L173: N/A | M173: N/A | N173: N/A | O173: N/A | P173: N/A | Q173: N/A | R173: N/A | S173: N/A | T173: N/A | U173: N/A | V173: 35 | W173: 20 | X173: 15 | Y173: 15 | Z173: 0 | AA173: No
A174: 1.5 | B174: =B4 -> Project management | C174: =B4 -> Project management | D174: =B4 -> Project management | E174: =B4 -> Project management | F174: =B4 -> Project management | G174: =B6 -> Middle manager | H174: =B6 -> Middle manager | I174: =B6 -> Middle manager | J174: =B6 -> Middle manager | K174: =B6 -> Middle manager | L174: N/A | M174: N/A | N174: N/A | O174: N/A | P174: N/A | Q174: N/A | R174: N/A | S174: N/A | T174: N/A | U174: N/A | V174: 15 | W174: 10 | X174: 7 | Y174: 7 | Z174: 0 | AA174: No
A175: 2.1 | B175: =B4 -> Project management | C175: =B4 -> Project management | D175: =B4 -> Project management | E175: =B4 -> Project management | F175: =C4 -> External | G175: =B7 -> Senior manager | H175: =B7 -> Senior manager | I175: =B6 -> Middle manager | J175: =B6 -> Middle manager | K175: =C8 -> Small MVNO CRM vendor | L175: N/A | M175: N/A | N175: N/A | O175: N/A | P175: N/A | Q175: N/A | R175: N/A | S175: N/A | T175: N/A | U175: N/A | V175: 15 | W175: 15 | X175: 12 | Y175: 12 | Z175: 0 | AA175: No
A176: 2.2 | B176: =C4 -> External | C176: =C4 -> External | D176: =C4 -> External | E176: =C4 -> External | F176: =C4 -> External | G176: =C5 -> MNO CRM vendor | H176: =C6 -> Large MVNO CRM vendor | I176: =C7 -> Medium MVNO CRM vendor | J176: =C7 -> Medium MVNO CRM vendor | K176: =C8 -> Small MVNO CRM vendor | L176: N/A | M176: N/A | N176: N/A | O176: N/A | P176: N/A | Q176: N/A | R176: N/A | S176: N/A | T176: N/A | U176: N/A | V176: 35 | W176: 25 | X176: 15 | Y176: 15 | Z176: 0 | AA176: Yes
A177: 2.3 | B177: =C4 -> External | C177: =C4 -> External | D177: =C4 -> External | E177: =C4 -> External | F177: =C4 -> External | G177: =C5 -> MNO CRM vendor | H177: =C6 -> Large MVNO CRM vendor | I177: =C7 -> Medium MVNO CRM vendor | J177: =C7 -> Medium MVNO CRM vendor | K177: =C8 -> Small MVNO CRM vendor | L177: N/A | M177: N/A | N177: N/A | O177: N/A | P177: N/A | Q177: N/A | R177: N/A | S177: N/A | T177: N/A | U177: N/A | V177: 60 | W177: 40 | X177: 25 | Y177: 25 | Z177: 0 | AA177: Yes
A178: 2.4 | B178: =C4 -> External | C178: =C4 -> External | D178: =C4 -> External | E178: =C4 -> External | F178: =C4 -> External | G178: =C5 -> MNO CRM vendor | H178: =C6 -> Large MVNO CRM vendor | I178: =C7 -> Medium MVNO CRM vendor | J178: =C7 -> Medium MVNO CRM vendor | K178: =C8 -> Small MVNO CRM vendor | L178: N/A | M178: N/A | N178: N/A | O178: N/A | P178: N/A | Q178: N/A | R178: N/A | S178: N/A | T178: N/A | U178: N/A | V178: 20 | W178: 10 | X178: 8 | Y178: 8 | Z178: 0 | AA178: Yes
A179: 2.5 | B179: =C4 -> External | C179: =C4 -> External | D179: =C4 -> External | E179: =C4 -> External | F179: =C4 -> External | G179: =C5 -> MNO CRM vendor | H179: =C6 -> Large MVNO CRM vendor | I179: =C7 -> Medium MVNO CRM vendor | J179: =C7 -> Medium MVNO CRM vendor | K179: =C8 -> Small MVNO CRM vendor | L179: N/A | M179: N/A | N179: N/A | O179: N/A | P179: N/A | Q179: N/A | R179: N/A | S179: N/A | T179: N/A | U179: N/A | V179: 20 | W179: 10 | X179: 8 | Y179: 8 | Z179: 0 | AA179: Yes
A180: 2.6 | B180: =C4 -> External | C180: =C4 -> External | D180: =C4 -> External | E180: =C4 -> External | F180: =C4 -> External | G180: =C5 -> MNO CRM vendor | H180: =C6 -> Large MVNO CRM vendor | I180: =C7 -> Medium MVNO CRM vendor | J180: =C7 -> Medium MVNO CRM vendor | K180: =C8 -> Small MVNO CRM vendor | L180: N/A | M180: N/A | N180: N/A | O180: N/A | P180: N/A | Q180: N/A | R180: N/A | S180: N/A | T180: N/A | U180: N/A | V180: 60 | W180: 40 | X180: 25 | Y180: 25 | Z180: 0 | AA180: Yes
A181: 2.7 | B181: =A4 -> Employee | C181: =A4 -> Employee | D181: =A4 -> Employee | E181: =A4 -> Employee | F181: =B4 -> Project management | G181: =A5 -> IT engineer | H181: =A5 -> IT engineer | I181: =A5 -> IT engineer | J181: =A5 -> IT engineer | K181: =B6 -> Middle manager | L181: N/A | M181: N/A | N181: N/A | O181: N/A | P181: N/A | Q181: N/A | R181: N/A | S181: N/A | T181: N/A | U181: N/A | V181: 40 | W181: 20 | X181: 15 | Y181: 15 | Z181: 2 | AA181: No
A182: 2.8 | B182: =B4 -> Project management | C182: =B4 -> Project management | D182: =B4 -> Project management | E182: =B4 -> Project management | F182: =B4 -> Project management | G182: =B6 -> Middle manager | H182: =B6 -> Middle manager | I182: =B6 -> Middle manager | J182: =B6 -> Middle manager | K182: =B6 -> Middle manager | L182: N/A | M182: N/A | N182: N/A | O182: N/A | P182: N/A | Q182: N/A | R182: N/A | S182: N/A | T182: N/A | U182: N/A | V182: 65 | W182: 15 | X182: 12 | Y182: 12 | Z182: 1 | AA182: No
A183: 3.1 | B183: =B4 -> Project management | C183: =B4 -> Project management | D183: =B4 -> Project management | E183: =B4 -> Project management | F183: =B4 -> Project management | G183: =B7 -> Senior manager | H183: =B7 -> Senior manager | I183: =B7 -> Senior manager | J183: =B7 -> Senior manager | K183: =B6 -> Middle manager | L183: N/A | M183: N/A | N183: N/A | O183: N/A | P183: N/A | Q183: N/A | R183: N/A | S183: N/A | T183: N/A | U183: N/A | V183: 14 | W183: 12 | X183: 8 | Y183: 8 | Z183: 0 | AA183: No
A184: 3.2 | B184: =C4 -> External | C184: =C4 -> External | D184: =C4 -> External | E184: =C4 -> External | F184: =C4 -> External | G184: =C5 -> MNO CRM vendor | H184: =C6 -> Large MVNO CRM vendor | I184: =C7 -> Medium MVNO CRM vendor | J184: =C7 -> Medium MVNO CRM vendor | K184: =C8 -> Small MVNO CRM vendor | L184: N/A | M184: N/A | N184: N/A | O184: N/A | P184: N/A | Q184: N/A | R184: N/A | S184: N/A | T184: N/A | U184: N/A | V184: 35 | W184: 25 | X184: 15 | Y184: 15 | Z184: 0 | AA184: Yes
A185: 3.4 | B185: =C4 -> External | C185: =C4 -> External | D185: =C4 -> External | E185: =C4 -> External | F185: =C4 -> External | G185: =C5 -> MNO CRM vendor | H185: =C6 -> Large MVNO CRM vendor | I185: =C7 -> Medium MVNO CRM vendor | J185: =C7 -> Medium MVNO CRM vendor | K185: =C8 -> Small MVNO CRM vendor | L185: N/A | M185: N/A | N185: N/A | O185: N/A | P185: N/A | Q185: N/A | R185: N/A | S185: N/A | T185: N/A | U185: N/A | V185: 25 | W185: 17 | X185: 35 | Y185: 35 | Z185: 0 | AA185: Yes
A186: 3.5 | B186: =C4 -> External | C186: =C4 -> External | D186: =C4 -> External | E186: =C4 -> External | F186: =C4 -> External | G186: =C5 -> MNO CRM vendor | H186: =C6 -> Large MVNO CRM vendor | I186: =C7 -> Medium MVNO CRM vendor | J186: =C7 -> Medium MVNO CRM vendor | K186: =C8 -> Small MVNO CRM vendor | L186: N/A | M186: N/A | N186: N/A | O186: N/A | P186: N/A | Q186: N/A | R186: N/A | S186: N/A | T186: N/A | U186: N/A | V186: 60 | W186: 35 | X186: 35 | Y186: 35 | Z186: 0 | AA186: Yes
A187: 3.6 | B187: =B4 -> Project management | C187: =B4 -> Project management | D187: =B4 -> Project management | E187: =B4 -> Project management | F187: =B4 -> Project management | G187: =B6 -> Middle manager | H187: =B6 -> Middle manager | I187: =B6 -> Middle manager | J187: =B6 -> Middle manager | K187: =B6 -> Middle manager | L187: N/A | M187: N/A | N187: N/A | O187: N/A | P187: N/A | Q187: N/A | R187: N/A | S187: N/A | T187: N/A | U187: N/A | V187: 25 | W187: 20 | X187: 15 | Y187: 15 | Z187: 2 | AA187: No
A188: 3.7 | B188: =A4 -> Employee | C188: =A4 -> Employee | D188: =A4 -> Employee | E188: =A4 -> Employee | F188: =B4 -> Project management | G188: =A5 -> IT engineer | H188: =A5 -> IT engineer | I188: =A5 -> IT engineer | J188: =A5 -> IT engineer | K188: =B6 -> Middle manager | L188: N/A | M188: N/A | N188: N/A | O188: N/A | P188: N/A | Q188: N/A | R188: N/A | S188: N/A | T188: N/A | U188: N/A | V188: 40 | W188: 25 | X188: 20 | Y188: 20 | Z188: 4 | AA188: No
A189: 4.1 | B189: =B4 -> Project management | C189: =B4 -> Project management | D189: =B4 -> Project management | E189: =B4 -> Project management | F189: =B4 -> Project management | G189: =B6 -> Middle manager | H189: =B6 -> Middle manager | I189: =B6 -> Middle manager | J189: =B6 -> Middle manager | K189: =B6 -> Middle manager | L189: N/A | M189: N/A | N189: N/A | O189: N/A | P189: N/A | Q189: N/A | R189: N/A | S189: N/A | T189: N/A | U189: N/A | V189: 0 | W189: 0 | X189: 0 | Y189: 0 | Z189: 0 | AA189: No
A190: 4.2 | B190: =B4 -> Project management | C190: =B4 -> Project management | D190: =B4 -> Project management | E190: =B4 -> Project management | F190: =B4 -> Project management | G190: =B6 -> Middle manager | H190: =B6 -> Middle manager | I190: =B6 -> Middle manager | J190: =B6 -> Middle manager | K190: =B6 -> Middle manager | L190: N/A | M190: N/A | N190: N/A | O190: N/A | P190: N/A | Q190: N/A | R190: N/A | S190: N/A | T190: N/A | U190: N/A | V190: 0 | W190: 0 | X190: 0 | Y190: 0 | Z190: 0 | AA190: No
A191: 4.3 | B191: =B4 -> Project management | C191: =B4 -> Project management | D191: =B4 -> Project management | E191: =B4 -> Project management | F191: =B4 -> Project management | G191: =B6 -> Middle manager | H191: =B6 -> Middle manager | I191: =B6 -> Middle manager | J191: =B6 -> Middle manager | K191: =B6 -> Middle manager | L191: N/A | M191: N/A | N191: N/A | O191: N/A | P191: N/A | Q191: N/A | R191: N/A | S191: N/A | T191: N/A | U191: N/A | V191: 0 | W191: 0 | X191: 0 | Y191: 0 | Z191: 0 | AA191: No
A192: 5.1 | B192: =B4 -> Project management | C192: =B4 -> Project management | D192: =B4 -> Project management | E192: =B4 -> Project management | F192: =B4 -> Project management | G192: =B6 -> Middle manager | H192: =B6 -> Middle manager | I192: =B6 -> Middle manager | J192: =B6 -> Middle manager | K192: =B6 -> Middle manager | L192: N/A | M192: N/A | N192: N/A | O192: N/A | P192: N/A | Q192: N/A | R192: N/A | S192: N/A | T192: N/A | U192: N/A | V192: 6 | W192: 3 | X192: 2 | Y192: 6 | Z192: 1 | AA192: No
A193: 5.2 | B193: =A4 -> Employee | C193: =A4 -> Employee | D193: =A4 -> Employee | E193: =A4 -> Employee | F193: =A4 -> Employee | G193: =A5 -> IT engineer | H193: =A5 -> IT engineer | I193: =A5 -> IT engineer | J193: =A5 -> IT engineer | K193: =A5 -> IT engineer | L193: N/A | M193: N/A | N193: N/A | O193: N/A | P193: N/A | Q193: N/A | R193: N/A | S193: N/A | T193: N/A | U193: N/A | V193: 35 | W193: 20 | X193: 10 | Y193: 45 | Z193: 3 | AA193: No
A194: 5.3 | B194: =B4 -> Project management | C194: =B4 -> Project management | D194: =B4 -> Project management | E194: =B4 -> Project management | F194: =B4 -> Project management | G194: =B6 -> Middle manager | H194: =B6 -> Middle manager | I194: =B6 -> Middle manager | J194: =B6 -> Middle manager | K194: =B6 -> Middle manager | L194: N/A | M194: N/A | N194: N/A | O194: N/A | P194: N/A | Q194: N/A | R194: N/A | S194: N/A | T194: N/A | U194: N/A | V194: 6 | W194: 3 | X194: 2 | Y194: 10 | Z194: 1 | AA194: No
A195: 6.1 | B195: =A4 -> Employee | C195: =A4 -> Employee | D195: =A4 -> Employee | E195: =A4 -> Employee | F195: =C4 -> External | G195: =A5 -> IT engineer | H195: =A5 -> IT engineer | I195: =A5 -> IT engineer | J195: =A5 -> IT engineer | K195: =C8 -> Small MVNO CRM vendor | L195: 2 | M195: 2 | N195: 1 | O195: 1 | P195: 1 | Q195: 7 | R195: 7 | S195: 7 | T195: 7 | U195: 7 | V195: =L195*Q195 -> 14 | W195: =M195*R195 -> 14 | X195: =N195*S195 -> 7 | Y195: =O195*T195 -> 7 | Z195: =P195*U195 -> 7 | AA195: No
A196: 6.2 | B196: =A4 -> Employee | C196: =A4 -> Employee | D196: =A4 -> Employee | E196: =A4 -> Employee | F196: =C4 -> External | G196: =A7 -> Training team | H196: =A7 -> Training team | I196: =A7 -> Training team | J196: =A7 -> Training team | K196: =C9 -> External training team | L196: 8 | M196: 2 | N196: 1 | O196: 1 | P196: 1 | Q196: 8 | R196: 5 | S196: 8 | T196: 8 | U196: 6 | V196: 64 | W196: 10 | X196: 8 | Y196: 8 | Z196: 6 | AA196: No
A197: 6.3 | B197: =A4 -> Employee | C197: =A4 -> Employee | D197: =A4 -> Employee | E197: =A4 -> Employee | F197: =C4 -> External | G197: =A7 -> Training team | H197: =A7 -> Training team | I197: =A7 -> Training team | J197: =A7 -> Training team | K197: =C9 -> External training team | L197: 8 | M197: 4 | N197: 4 | O197: 1 | P197: 1 | Q197: 30 | R197: 15 | S197: 2 | T197: 0.5 | U197: 0.5 | V197: 240 | W197: 60 | X197: 8 | Y197: 0.5 | Z197: 0.5 | AA197: No
A198: 6.4 | B198: =A4 -> Employee | C198: =A4 -> Employee | D198: =A4 -> Employee | E198: =A4 -> Employee | F198: =A4 -> Employee | G198: =A5 -> IT engineer | H198: =A5 -> IT engineer | I198: =A5 -> IT engineer | J198: =A5 -> IT engineer | K198: =A5 -> IT engineer | L198: 60 | M198: 30 | N198: 10 | O198: 10 | P198: 5 | Q198: 0.5 | R198: 0.5 | S198: 0.5 | T198: 0.5 | U198: 0.5 | V198: 30 | W198: 15 | X198: 5 | Y198: 5 | Z198: 2.5 | AA198: No
B199: =A4 -> Employee | C199: =A4 -> Employee | D199: =A4 -> Employee | E199: =A4 -> Employee | F199: =A4 -> Employee | G199: =A8 -> Billing administrators | H199: =A8 -> Billing administrators | I199: =A8 -> Billing administrators | J199: =A8 -> Billing administrators | K199: =A8 -> Billing administrators | L199: 30 | M199: 20 | N199: 15 | O199: 15 | P199: 5 | Q199: 0 | R199: 0 | S199: 0 | T199: 0 | U199: 0 | V199: 0 | W199: 0 | X199: 0 | Y199: 0 | Z199: 0 | AA199: No
B200: =A4 -> Employee | C200: =A4 -> Employee | D200: =A4 -> Employee | E200: =A4 -> Employee | F200: =A4 -> Employee | G200: =A9 -> CSAs | H200: =A9 -> CSAs | I200: =A9 -> CSAs | J200: =A9 -> CSAs | K200: =A9 -> CSAs | L200: ='Salary . staff rates'!$B$25 -> 10400 | M200: ='Salary . staff rates'!$B$26 -> 4000 | N200: ='Salary . staff rates'!$B$27 -> 500 | O200: 0 | P200: ='Salary . staff rates'!$B$28 -> 20 | Q200: 0.25 | R200: 0.25 | S200: 0.25 | T200: 0.25 | U200: 0.25 | V200: =L200*Q200 -> 2600 | W200: =M200*R200 -> 1000 | X200: =N200*S200 -> 125 | Y200: =O200*T200 -> 0 | Z200: =P200*U200 -> 5 | AA200: No
V202: =SUM(V185:V188)/#REF! ->  | W202: =SUM(W185:W188)/#REF! ->  | X202: =SUM(X185:X188)/#REF! ->  | Z202: =SUM(Z185:Z188)/#REF! ->  | AB202: Checksum: Ratio of trainers:staff
A203: 7.1 | B203: =A4 -> Employee | C203: N/A | D203: N/A | E203: =A4 -> Employee | F203: N/A | G203: =A5 -> IT engineer | H203: N/A | I203: N/A | J203: =A5 -> IT engineer | K203: N/A | L203: N/A | M203: N/A | N203: N/A | O203: N/A | P203: N/A | Q203: N/A | R203: N/A | S203: N/A | T203: N/A | U203: N/A | V203: 5 | W203: N/A | X203: N/A | Y203: 5 | Z203: N/A | AA203: No
A204: 7.2 | B204: =C4 -> External | C204: N/A | D204: N/A | E204: =C4 -> External | F204: N/A | G204: =C5 -> MNO CRM vendor | H204: N/A | I204: N/A | J204: =C7 -> Medium MVNO CRM vendor | K204: N/A | L204: N/A | M204: N/A | N204: N/A | O204: N/A | P204: N/A | Q204: N/A | R204: N/A | S204: N/A | T204: N/A | U204: N/A | V204: 40 | W204: N/A | X204: N/A | Y204: 40 | Z204: N/A | AA204: Yes
A205: 7.3 | B205: =A4 -> Employee | C205: N/A | D205: N/A | E205: =A4 -> Employee | F205: N/A | G205: =A5 -> IT engineer | H205: N/A | I205: N/A | J205: =A5 -> IT engineer | K205: N/A | L205: N/A | M205: N/A | N205: N/A | O205: N/A | P205: N/A | Q205: N/A | R205: N/A | S205: N/A | T205: N/A | U205: N/A | V205: 10 | W205: N/A | X205: N/A | Y205: 10 | Z205: N/A | AA205: No
A206: 7.4 | B206: =B4 -> Project management | C206: N/A | D206: N/A | E206: =B4 -> Project management | F206: N/A | G206: =B5 -> Junior manager | H206: N/A | I206: N/A | J206: =B5 -> Junior manager | K206: N/A | L206: N/A | M206: N/A | N206: N/A | O206: N/A | P206: N/A | Q206: N/A | R206: N/A | S206: N/A | T206: N/A | U206: N/A | V206: 20 | W206: N/A | X206: N/A | Y206: 20 | Z206: N/A | AA206: No
A207: 7.5 | B207: =B4 -> Project management | C207: N/A | D207: N/A | E207: =B4 -> Project management | F207: N/A | G207: =B5 -> Junior manager | H207: N/A | I207: N/A | J207: =B5 -> Junior manager | K207: N/A | L207: N/A | M207: N/A | N207: N/A | O207: N/A | P207: N/A | Q207: N/A | R207: N/A | S207: N/A | T207: N/A | U207: N/A | V207: 10 | W207: N/A | X207: N/A | Y207: 10 | Z207: N/A | AA207: No
A208: 7.6 | B208: =B4 -> Project management | C208: N/A | D208: N/A | E208: =B4 -> Project management | F208: N/A | G208: =B6 -> Middle manager | H208: N/A | I208: N/A | J208: =B6 -> Middle manager | K208: N/A | L208: N/A | M208: N/A | N208: N/A | O208: N/A | P208: N/A | Q208: N/A | R208: N/A | S208: N/A | T208: N/A | U208: N/A | V208: 10 | W208: N/A | X208: N/A | Y208: 10 | Z208: N/A | AA208: No
V210: =SUM(V198:V200)/V197 -> 10.95833333 | W210: =SUM(W198:W200)/W197 -> 16.91666667 | X210: =SUM(X198:X200)/X197 -> 16.25 | Z210: =SUM(Z198:Z200)/Z197 -> 15 | AB210: Checksum: Ratio of trainers:staff
A211: 8.1 | B211: N/A | C211: N/A | D211: N/A | E211: N/A | F211: =A4 -> Employee | G211: N/A | H211: N/A | I211: N/A | J211: N/A | K211: =A8 -> Billing administrators | L211: N/A | M211: N/A | N211: N/A | O211: N/A | P211: N/A | Q211: N/A | R211: N/A | S211: N/A | T211: N/A | U211: N/A | V211: N/A | W211: N/A | X211: N/A | Y211: N/A | Z211: 8 | AA211: No
A212: 8.2 | B212: N/A | C212: N/A | D212: N/A | E212: N/A | F212: =A4 -> Employee | G212: N/A | H212: N/A | I212: N/A | J212: N/A | K212: =A8 -> Billing administrators | L212: N/A | M212: N/A | N212: N/A | O212: N/A | P212: N/A | Q212: N/A | R212: N/A | S212: N/A | T212: N/A | U212: N/A | V212: N/A | W212: N/A | X212: N/A | Y212: N/A | Z212: 6 | AA212: Yes
A213: 8.3 | B213: N/A | C213: N/A | D213: N/A | E213: N/A | F213: =A4 -> Employee | G213: N/A | H213: N/A | I213: N/A | J213: N/A | K213: =A8 -> Billing administrators | L213: N/A | M213: N/A | N213: N/A | O213: N/A | P213: N/A | Q213: N/A | R213: N/A | S213: N/A | T213: N/A | U213: N/A | V213: N/A | W213: N/A | X213: N/A | Y213: N/A | Z213: 2 | AA213: No
A214: 8.4 | B214: N/A | C214: N/A | D214: N/A | E214: N/A | F214: =B4 -> Project management | G214: N/A | H214: N/A | I214: N/A | J214: N/A | K214: =B5 -> Junior manager | L214: N/A | M214: N/A | N214: N/A | O214: N/A | P214: N/A | Q214: N/A | R214: N/A | S214: N/A | T214: N/A | U214: N/A | V214: N/A | W214: N/A | X214: N/A | Y214: N/A | Z214: 2 | AA214: No
A219: 9.1 | B219: =A4 -> Employee | C219: =A4 -> Employee | D219: =A4 -> Employee | E219: =A4 -> Employee | F219: =C4 -> External | G219: =A5 -> IT engineer | H219: =A5 -> IT engineer | I219: =A5 -> IT engineer | J219: =A5 -> IT engineer | K219: =C8 -> Small MVNO CRM vendor | L219: N/A | M219: N/A | N219: N/A | O219: N/A | P219: N/A | Q219: N/A | R219: N/A | S219: N/A | T219: N/A | U219: N/A | V219: 0 | W219: 0 | X219: 0 | Y219: 0 | Z219: 0 | AA219: No
A220: 9.2 | B220: =A4 -> Employee | C220: =A4 -> Employee | D220: =A4 -> Employee | E220: =A4 -> Employee | F220: =C4 -> External | G220: =A5 -> IT engineer | H220: =A5 -> IT engineer | I220: =A5 -> IT engineer | J220: =A5 -> IT engineer | K220: =C8 -> Small MVNO CRM vendor | L220: N/A | M220: N/A | N220: N/A | O220: N/A | P220: N/A | Q220: N/A | R220: N/A | S220: N/A | T220: N/A | U220: N/A | V220: 0 | W220: 0 | X220: 0 | Y220: 0 | Z220: 0 | AA220: No
B221: =B4 -> Project management | C221: =B4 -> Project management | D221: =B4 -> Project management | E221: =B4 -> Project management | F221: =C4 -> External | G221: =B6 -> Middle manager | H221: =B6 -> Middle manager | I221: =B6 -> Middle manager | J221: =B6 -> Middle manager | K221: =C8 -> Small MVNO CRM vendor | L221: N/A | M221: N/A | N221: N/A | O221: N/A | P221: N/A | Q221: N/A | R221: N/A | S221: N/A | T221: N/A | U221: N/A | V221: 0 | W221: 0 | X221: 0 | Y221: 0 | Z221: 0 | AA221: No
A222: 9.3 | B222: =A4 -> Employee | C222: =A4 -> Employee | D222: =A4 -> Employee | E222: =A4 -> Employee | F222: =C4 -> External | G222: =A5 -> IT engineer | H222: =A5 -> IT engineer | I222: =A5 -> IT engineer | J222: =A5 -> IT engineer | K222: =C8 -> Small MVNO CRM vendor | L222: N/A | M222: N/A | N222: N/A | O222: N/A | P222: N/A | Q222: N/A | R222: N/A | S222: N/A | T222: N/A | U222: N/A | V222: 0 | W222: 0 | X222: 0 | Y222: 0 | Z222: 0 | AA222: No
B223: =B4 -> Project management | C223: =B4 -> Project management | D223: =B4 -> Project management | E223: =B4 -> Project management | F223: =C4 -> External | G223: =B6 -> Middle manager | H223: =B6 -> Middle manager | I223: =B6 -> Middle manager | J223: =B6 -> Middle manager | K223: =C8 -> Small MVNO CRM vendor | L223: N/A | M223: N/A | N223: N/A | O223: N/A | P223: N/A | Q223: N/A | R223: N/A | S223: N/A | T223: N/A | U223: N/A | V223: 0 | W223: 0 | X223: 0 | Y223: 0 | Z223: 0 | AA223: No
A224: 10.1 | B224: =A4 -> Employee | C224: =A4 -> Employee | D224: N/A | E224: =A4 -> Employee | F224: N/A | G224: =A5 -> IT engineer | H224: =A5 -> IT engineer | I224: N/A | J224: =A5 -> IT engineer | K224: N/A | L224: N/A | M224: N/A | N224: N/A | O224: N/A | P224: N/A | Q224: N/A | R224: N/A | S224: N/A | T224: N/A | U224: N/A | V224: 0 | W224: 0 | X224: N/A | Y224: 0 | Z224: N/A | AA224: No
A225: 10.2 | B225: =C4 -> External | C225: =C4 -> External | D225: N/A | E225: =C4 -> External | F225: N/A | G225: =C5 -> MNO CRM vendor | H225: =C6 -> Large MVNO CRM vendor | I225: N/A | J225: =C7 -> Medium MVNO CRM vendor | K225: N/A | L225: N/A | M225: N/A | N225: N/A | O225: N/A | P225: N/A | Q225: N/A | R225: N/A | S225: N/A | T225: N/A | U225: N/A | V225: 0 | W225: 0 | X225: N/A | Y225: 0 | Z225: N/A | AA225: Yes
A226: 10.3 | B226: =C4 -> External | C226: =C4 -> External | D226: N/A | E226: =C4 -> External | F226: N/A | G226: =C5 -> MNO CRM vendor | H226: =C6 -> Large MVNO CRM vendor | I226: N/A | J226: =C7 -> Medium MVNO CRM vendor | K226: N/A | L226: N/A | M226: N/A | N226: N/A | O226: N/A | P226: N/A | Q226: N/A | R226: N/A | S226: N/A | T226: N/A | U226: N/A | V226: 0 | W226: 0 | X226: N/A | Y226: 0 | Z226: N/A | AA226: Yes
A227: 10.4 | B227: =A4 -> Employee | C227: =A4 -> Employee | D227: N/A | E227: =A4 -> Employee | F227: N/A | G227: =A5 -> IT engineer | H227: =A5 -> IT engineer | I227: N/A | J227: =A5 -> IT engineer | K227: N/A | L227: N/A | M227: N/A | N227: N/A | O227: N/A | P227: N/A | Q227: N/A | R227: N/A | S227: N/A | T227: N/A | U227: N/A | V227: 0 | W227: 0 | X227: N/A | Y227: 0 | Z227: N/A | AA227: No
A228: 10.5 | B228: =B4 -> Project management | C228: =B4 -> Project management | D228: N/A | E228: =B4 -> Project management | F228: N/A | G228: =B6 -> Middle manager | H228: =B6 -> Middle manager | I228: N/A | J228: =B6 -> Middle manager | K228: N/A | L228: N/A | M228: N/A | N228: N/A | O228: N/A | P228: N/A | Q228: N/A | R228: N/A | S228: N/A | T228: N/A | U228: N/A | V228: 0 | W228: 0 | X228: N/A | Y228: 0 | Z228: N/A | AA228: No
A231: 11.1 | B231: =A4 -> Employee | C231: =A4 -> Employee | D231: =A4 -> Employee | E231: =A4 -> Employee | F231: =A4 -> Employee | G231: =A5 -> IT engineer | H231: =A5 -> IT engineer | I231: =A5 -> IT engineer | J231: =A5 -> IT engineer | K231: =A5 -> IT engineer | L231: N/A | M231: N/A | N231: N/A | O231: N/A | P231: N/A | Q231: N/A | R231: N/A | S231: N/A | T231: N/A | U231: N/A | V231: 0 | W231: 0 | X231: 0 | Y231: 0 | Z231: 0 | AA231: No
A232: 11.2 | B232: =C4 -> External | C232: =C4 -> External | D232: =C4 -> External | E232: =C4 -> External | F232: =C4 -> External | G232: =C5 -> MNO CRM vendor | H232: =C5 -> MNO CRM vendor | I232: =C7 -> Medium MVNO CRM vendor | J232: =C7 -> Medium MVNO CRM vendor | K232: =C8 -> Small MVNO CRM vendor | L232: N/A | M232: N/A | N232: N/A | O232: N/A | P232: N/A | Q232: N/A | R232: N/A | S232: N/A | T232: N/A | U232: N/A | V232: 0 | W232: 0 | X232: 0 | Y232: 0 | Z232: 0 | AA232: Yes
A233: 11.3 | B233: =B4 -> Project management | C233: =B4 -> Project management | D233: =B4 -> Project management | E233: =B4 -> Project management | F233: =B4 -> Project management | G233: =B6 -> Middle manager | H233: =B6 -> Middle manager | I233: =B6 -> Middle manager | J233: =B6 -> Middle manager | K233: =B6 -> Middle manager | L233: N/A | M233: N/A | N233: N/A | O233: N/A | P233: N/A | Q233: N/A | R233: N/A | S233: N/A | T233: N/A | U233: N/A | V233: 0 | W233: 0 | X233: 0 | Y233: 0 | Z233: 0 | AA233: No
A234: 11.4 | B234: =B4 -> Project management | C234: =B4 -> Project management | D234: =B4 -> Project management | E234: =B4 -> Project management | F234: =B4 -> Project management | G234: =B6 -> Middle manager | H234: =B6 -> Middle manager | I234: =B6 -> Middle manager | J234: =B6 -> Middle manager | K234: =B6 -> Middle manager | L234: N/A | M234: N/A | N234: N/A | O234: N/A | P234: N/A | Q234: N/A | R234: N/A | S234: N/A | T234: N/A | U234: N/A | V234: 0 | W234: 0 | X234: 0 | Y234: 0 | Z234: 0 | AA234: No
... 219 more rows

Sheet Outputs ---->>>>

Sheet Notice period reform
A2: Not charging for notice period beyond the switching date
A4: Source: Ofcom
E6: Setup | L6: Ongoing
A7: Activity | C7: Sub-activities | E7: Resource | F7: Resource type | G7: Daily cost (fully loaded) | H7: Number of employees | I7: Number of days training per employee | J7: Number of development days | K7: Total setup | L7: Ongoing support costs relevant? | M7: Total ongoing
A8: 1. Differentiate account closures resulting from switches / terminations | B8: Differentiate between account closure resulting from porting / switching versus account closure resulting from contract termination | C8: 1.1 | D8: Internal impact assessment on CRM systems | E8: =IF(scenario_choice=1,'Development days'!B14,IF(scenario_choice=2,'Development days'!C14,IF(scenario_choice=3,'Development days'!D14,IF(scenario_choice=4,'Development days'!E14,'Development days'!F14)))) -> Employee | F8: =IF(scenario_choice=1,'Development days'!G14,IF(scenario_choice=2,'Development days'!H14,IF(scenario_choice=3,'Development days'!I14,IF(scenario_choice=4,'Development days'!J14,'Development days'!K14)))) -> IT engineer | G8: =IF(E8="Employee",(INDEX('Salary . staff rates'!$B$6:$B$10,MATCH('Notice period reform'!F8,'Salary . staff rates'!$A$6:$A$10,0)))/working_days*(1+loading_factor),IF(E8="External",(INDEX('Salary . staff rates'!$B$18:$B$22,MATCH('Notice period reform'!F8,'Salary . staff rates'!$A$18:$A$22,0))),IF(E8="Project management",(INDEX('Salary . staff rates'!$B$13:$B$15,MATCH('Notice period reform'!F8,'Salary . staff rates'!$A$13:$A$15,0)))/working_days*(1+loading_factor),"N/A"))) -> 456.1403509 | H8: =IF(scenario_choice=1,'Development days'!L14,IF(scenario_choice=2,'Development days'!M14,IF(scenario_choice=3,'Development days'!N14,IF(scenario_choice=4,'Development days'!O14,'Development days'!P14)))) -> N/A | I8: =IF(scenario_choice=1,'Development days'!Q14,IF(scenario_choice=2,'Development days'!R14,IF(scenario_choice=3,'Development days'!S14,IF(scenario_choice=4,'Development days'!T14,'Development days'!U14)))) -> N/A | J8: =IF(scenario_choice=1,'Development days'!V14,IF(scenario_choice=2,'Development days'!W14,IF(scenario_choice=3,'Development days'!X14,IF(scenario_choice=4,'Development days'!Y14,'Development days'!Z14)))) -> 2 | K8: =G8*J8 -> 912.2807018 | L8: ='Development days'!AA14 -> No | M8: =IF(L8="Yes",K8*'Salary . staff rates'!$B$34,0) -> 0
C9: 1.2 | D9: CRM system functionality development | E9: =IF(scenario_choice=1,'Development days'!B15,IF(scenario_choice=2,'Development days'!C15,IF(scenario_choice=3,'Development days'!D15,IF(scenario_choice=4,'Development days'!E15,'Development days'!F15)))) -> External | F9: =IF(scenario_choice=1,'Development days'!G15,IF(scenario_choice=2,'Development days'!H15,IF(scenario_choice=3,'Development days'!I15,IF(scenario_choice=4,'Development days'!J15,'Development days'!K15)))) -> MNO CRM vendor | G9: =IF(E9="Employee",(INDEX('Salary . staff rates'!$B$6:$B$10,MATCH('Notice period reform'!F9,'Salary . staff rates'!$A$6:$A$10,0)))/working_days*(1+loading_factor),IF(E9="External",(INDEX('Salary . staff rates'!$B$18:$B$22,MATCH('Notice period reform'!F9,'Salary . staff rates'!$A$18:$A$22,0))),(INDEX('Salary . staff rates'!$B$13:$B$15,MATCH('Notice period reform'!F9,'Salary . staff rates'!$A$13:$A$15,0)))/working_days*(1+loading_factor))) -> 750 | H9: =IF(scenario_choice=1,'Development days'!L15,IF(scenario_choice=2,'Development days'!M15,IF(scenario_choice=3,'Development days'!N15,IF(scenario_choice=4,'Development days'!O15,'Development days'!P15)))) -> N/A | I9: =IF(scenario_choice=1,'Development days'!Q15,IF(scenario_choice=2,'Development days'!R15,IF(scenario_choice=3,'Development days'!S15,IF(scenario_choice=4,'Development days'!T15,'Development days'!U15)))) -> N/A | J9: =IF(scenario_choice=1,'Development days'!V15,IF(scenario_choice=2,'Development days'!W15,IF(scenario_choice=3,'Development days'!X15,IF(scenario_choice=4,'Development days'!Y15,'Development days'!Z15)))) -> 8 | K9: =G9*J9 -> 6000 | L9: ='Development days'!AA15 -> Yes | M9: =IF(L9="Yes",K9*'Salary . staff rates'!$B$34,0) -> 900
C10: 1.3 | D10: Acceptance testing / handover to live operation | E10: =IF(scenario_choice=1,'Development days'!B16,IF(scenario_choice=2,'Development days'!C16,IF(scenario_choice=3,'Development days'!D16,IF(scenario_choice=4,'Development days'!E16,'Development days'!F16)))) -> Employee | F10: =IF(scenario_choice=1,'Development days'!G16,IF(scenario_choice=2,'Development days'!H16,IF(scenario_choice=3,'Development days'!I16,IF(scenario_choice=4,'Development days'!J16,'Development days'!K16)))) -> IT engineer | G10: =IF(E10="Employee",(INDEX('Salary . staff rates'!$B$6:$B$10,MATCH('Notice period reform'!F10,'Salary . staff rates'!$A$6:$A$10,0)))/working_days*(1+loading_factor),IF(E10="External",(INDEX('Salary . staff rates'!$B$18:$B$22,MATCH('Notice period reform'!F10,'Salary . staff rates'!$A$18:$A$22,0))),(INDEX('Salary . staff rates'!$B$13:$B$15,MATCH('Notice period reform'!F10,'Salary . staff rates'!$A$13:$A$15,0)))/working_days*(1+loading_factor))) -> 456.1403509 | H10: =IF(scenario_choice=1,'Development days'!L16,IF(scenario_choice=2,'Development days'!M16,IF(scenario_choice=3,'Development days'!N16,IF(scenario_choice=4,'Development days'!O16,'Development days'!P16)))) -> N/A | I10: =IF(scenario_choice=1,'Development days'!Q16,IF(scenario_choice=2,'Development days'!R16,IF(scenario_choice=3,'Development days'!S16,IF(scenario_choice=4,'Development days'!T16,'Development days'!U16)))) -> N/A | J10: =IF(scenario_choice=1,'Development days'!V16,IF(scenario_choice=2,'Development days'!W16,IF(scenario_choice=3,'Development days'!X16,IF(scenario_choice=4,'Development days'!Y16,'Development days'!Z16)))) -> 3 | K10: 1368.421053 | L10: ='Development days'!AA16 -> No | M10: =IF(L10="Yes",K10*'Salary . staff rates'!$B$34,0) -> 0
C11: 1.4 | D11: Project management resource | E11: =IF(scenario_choice=1,'Development days'!B17,IF(scenario_choice=2,'Development days'!C17,IF(scenario_choice=3,'Development days'!D17,IF(scenario_choice=4,'Development days'!E17,'Development days'!F17)))) -> Project management | F11: =IF(scenario_choice=1,'Development days'!G17,IF(scenario_choice=2,'Development days'!H17,IF(scenario_choice=3,'Development days'!I17,IF(scenario_choice=4,'Development days'!J17,'Development days'!K17)))) -> Middle manager | G11: =IF(E11="Employee",(INDEX('Salary . staff rates'!$B$6:$B$10,MATCH('Notice period reform'!F11,'Salary . staff rates'!$A$6:$A$10,0)))/working_days*(1+loading_factor),IF(E11="External",(INDEX('Salary . staff rates'!$B$18:$B$22,MATCH('Notice period reform'!F11,'Salary . staff rates'!$A$18:$A$22,0))),(INDEX('Salary . staff rates'!$B$13:$B$15,MATCH('Notice period reform'!F11,'Salary . staff rates'!$A$13:$A$15,0)))/working_days*(1+loading_factor))) -> 526.3157895 | H11: =IF(scenario_choice=1,'Development days'!L17,IF(scenario_choice=2,'Development days'!M17,IF(scenario_choice=3,'Development days'!N17,IF(scenario_choice=4,'Development days'!O17,'Development days'!P17)))) -> N/A | I11: =IF(scenario_choice=1,'Development days'!Q17,IF(scenario_choice=2,'Development days'!R17,IF(scenario_choice=3,'Development days'!S17,IF(scenario_choice=4,'Development days'!T17,'Development days'!U17)))) -> N/A | J11: =IF(scenario_choice=1,'Development days'!V17,IF(scenario_choice=2,'Development days'!W17,IF(scenario_choice=3,'Development days'!X17,IF(scenario_choice=4,'Development days'!Y17,'Development days'!Z17)))) -> 3 | K11: 1578.947368 | L11: ='Development days'!AA17 -> No | M11: =IF(L11="Yes",K11*'Salary . staff rates'!$B$34,0) -> 0
A12: 2. Automatically close account at service deactivation | B12: Automatically close customer's account at the point the service is deactivated | C12: 2.1 | D12: Internal impact assessment on CRM systems | E12: =IF(scenario_choice=1,'Development days'!B18,IF(scenario_choice=2,'Development days'!C18,IF(scenario_choice=3,'Development days'!D18,IF(scenario_choice=4,'Development days'!E18,'Development days'!F18)))) -> Employee | F12: =IF(scenario_choice=1,'Development days'!G18,IF(scenario_choice=2,'Development days'!H18,IF(scenario_choice=3,'Development days'!I18,IF(scenario_choice=4,'Development days'!J18,'Development days'!K18)))) -> IT engineer | G12: =IF(E12="Employee",(INDEX('Salary . staff rates'!$B$6:$B$10,MATCH('Notice period reform'!F12,'Salary . staff rates'!$A$6:$A$10,0)))/working_days*(1+loading_factor),IF(E12="External",(INDEX('Salary . staff rates'!$B$18:$B$22,MATCH('Notice period reform'!F12,'Salary . staff rates'!$A$18:$A$22,0))),(INDEX('Salary . staff rates'!$B$13:$B$15,MATCH('Notice period reform'!F12,'Salary . staff rates'!$A$13:$A$15,0)))/working_days*(1+loading_factor))) -> 456.1403509 | H12: =IF(scenario_choice=1,'Development days'!L18,IF(scenario_choice=2,'Development days'!M18,IF(scenario_choice=3,'Development days'!N18,IF(scenario_choice=4,'Development days'!O18,'Development days'!P18)))) -> N/A | I12: =IF(scenario_choice=1,'Development days'!Q18,IF(scenario_choice=2,'Development days'!R18,IF(scenario_choice=3,'Development days'!S18,IF(scenario_choice=4,'Development days'!T18,'Development days'!U18)))) -> N/A | J12: =IF(scenario_choice=1,'Development days'!V18,IF(scenario_choice=2,'Development days'!W18,IF(scenario_choice=3,'Development days'!X18,IF(scenario_choice=4,'Development days'!Y18,'Development days'!Z18)))) -> 2 | K12: 912.2807018 | L12: ='Development days'!AA18 -> No | M12: =IF(L12="Yes",K12*'Salary . staff rates'!$B$34,0) -> 0
C13: 2.2 | D13: CRM system functionality development | E13: =IF(scenario_choice=1,'Development days'!B19,IF(scenario_choice=2,'Development days'!C19,IF(scenario_choice=3,'Development days'!D19,IF(scenario_choice=4,'Development days'!E19,'Development days'!F19)))) -> External | F13: =IF(scenario_choice=1,'Development days'!G19,IF(scenario_choice=2,'Development days'!H19,IF(scenario_choice=3,'Development days'!I19,IF(scenario_choice=4,'Development days'!J19,'Development days'!K19)))) -> MNO CRM vendor | G13: =IF(E13="Employee",(INDEX('Salary . staff rates'!$B$6:$B$10,MATCH('Notice period reform'!F13,'Salary . staff rates'!$A$6:$A$10,0)))/working_days*(1+loading_factor),IF(E13="External",(INDEX('Salary . staff rates'!$B$18:$B$22,MATCH('Notice period reform'!F13,'Salary . staff rates'!$A$18:$A$22,0))),(INDEX('Salary . staff rates'!$B$13:$B$15,MATCH('Notice period reform'!F13,'Salary . staff rates'!$A$13:$A$15,0)))/working_days*(1+loading_factor))) -> 750 | H13: =IF(scenario_choice=1,'Development days'!L19,IF(scenario_choice=2,'Development days'!M19,IF(scenario_choice=3,'Development days'!N19,IF(scenario_choice=4,'Development days'!O19,'Development days'!P19)))) -> N/A | I13: =IF(scenario_choice=1,'Development days'!Q19,IF(scenario_choice=2,'Development days'!R19,IF(scenario_choice=3,'Development days'!S19,IF(scenario_choice=4,'Development days'!T19,'Development days'!U19)))) -> N/A | J13: =IF(scenario_choice=1,'Development days'!V19,IF(scenario_choice=2,'Development days'!W19,IF(scenario_choice=3,'Development days'!X19,IF(scenario_choice=4,'Development days'!Y19,'Development days'!Z19)))) -> 10 | K13: 7500 | L13: ='Development days'!AA19 -> Yes | M13: =IF(L13="Yes",K13*'Salary . staff rates'!$B$34,0) -> 1125
C14: 2.3 | D14: Acceptance testing / handover to live operation | E14: =IF(scenario_choice=1,'Development days'!B20,IF(scenario_choice=2,'Development days'!C20,IF(scenario_choice=3,'Development days'!D20,IF(scenario_choice=4,'Development days'!E20,'Development days'!F20)))) -> Employee | F14: =IF(scenario_choice=1,'Development days'!G20,IF(scenario_choice=2,'Development days'!H20,IF(scenario_choice=3,'Development days'!I20,IF(scenario_choice=4,'Development days'!J20,'Development days'!K20)))) -> IT engineer | G14: =IF(E14="Employee",(INDEX('Salary . staff rates'!$B$6:$B$10,MATCH('Notice period reform'!F14,'Salary . staff rates'!$A$6:$A$10,0)))/working_days*(1+loading_factor),IF(E14="External",(INDEX('Salary . staff rates'!$B$18:$B$22,MATCH('Notice period reform'!F14,'Salary . staff rates'!$A$18:$A$22,0))),(INDEX('Salary . staff rates'!$B$13:$B$15,MATCH('Notice period reform'!F14,'Salary . staff rates'!$A$13:$A$15,0)))/working_days*(1+loading_factor))) -> 456.1403509 | H14: =IF(scenario_choice=1,'Development days'!L20,IF(scenario_choice=2,'Development days'!M20,IF(scenario_choice=3,'Development days'!N20,IF(scenario_choice=4,'Development days'!O20,'Development days'!P20)))) -> N/A | I14: =IF(scenario_choice=1,'Development days'!Q20,IF(scenario_choice=2,'Development days'!R20,IF(scenario_choice=3,'Development days'!S20,IF(scenario_choice=4,'Development days'!T20,'Development days'!U20)))) -> N/A | J14: =IF(scenario_choice=1,'Development days'!V20,IF(scenario_choice=2,'Development days'!W20,IF(scenario_choice=3,'Development days'!X20,IF(scenario_choice=4,'Development days'!Y20,'Development days'!Z20)))) -> 5 | K14: 2280.701754 | L14: ='Development days'!AA20 -> No | M14: =IF(L14="Yes",K14*'Salary . staff rates'!$B$34,0) -> 0
C15: 2.4 | D15: Project management resource | E15: =IF(scenario_choice=1,'Development days'!B21,IF(scenario_choice=2,'Development days'!C21,IF(scenario_choice=3,'Development days'!D21,IF(scenario_choice=4,'Development days'!E21,'Development days'!F21)))) -> Project management | F15: =IF(scenario_choice=1,'Development days'!G21,IF(scenario_choice=2,'Development days'!H21,IF(scenario_choice=3,'Development days'!I21,IF(scenario_choice=4,'Development days'!J21,'Development days'!K21)))) -> Middle manager | G15: =IF(E15="Employee",(INDEX('Salary . staff rates'!$B$6:$B$10,MATCH('Notice period reform'!F15,'Salary . staff rates'!$A$6:$A$10,0)))/working_days*(1+loading_factor),IF(E15="External",(INDEX('Salary . staff rates'!$B$18:$B$22,MATCH('Notice period reform'!F15,'Salary . staff rates'!$A$18:$A$22,0))),(INDEX('Salary . staff rates'!$B$13:$B$15,MATCH('Notice period reform'!F15,'Salary . staff rates'!$A$13:$A$15,0)))/working_days*(1+loading_factor))) -> 526.3157895 | H15: =IF(scenario_choice=1,'Development days'!L21,IF(scenario_choice=2,'Development days'!M21,IF(scenario_choice=3,'Development days'!N21,IF(scenario_choice=4,'Development days'!O21,'Development days'!P21)))) -> N/A | I15: =IF(scenario_choice=1,'Development days'!Q21,IF(scenario_choice=2,'Development days'!R21,IF(scenario_choice=3,'Development days'!S21,IF(scenario_choice=4,'Development days'!T21,'Development days'!U21)))) -> N/A | J15: =IF(scenario_choice=1,'Development days'!V21,IF(scenario_choice=2,'Development days'!W21,IF(scenario_choice=3,'Development days'!X21,IF(scenario_choice=4,'Development days'!Y21,'Development days'!Z21)))) -> 4 | K15: 2105.263158 | L15: ='Development days'!AA21 -> No | M15: =IF(L15="Yes",K15*'Salary . staff rates'!$B$34,0) -> 0
A16: 3. Calculate final bill | B16: Calculate the remaining unused portion of the monthly service charge collected in advance and crediting the unused portion against the calculated final usage charges | C16: 3.1 | D16: Internal impact assessment on CRM systems | E16: =IF(scenario_choice=1,'Development days'!B22,IF(scenario_choice=2,'Development days'!C22,IF(scenario_choice=3,'Development days'!D22,IF(scenario_choice=4,'Development days'!E22,'Development days'!F22)))) -> Employee | F16: =IF(scenario_choice=1,'Development days'!G22,IF(scenario_choice=2,'Development days'!H22,IF(scenario_choice=3,'Development days'!I22,IF(scenario_choice=4,'Development days'!J22,'Development days'!K22)))) -> IT engineer | G16: =IF(E16="Employee",(INDEX('Salary . staff rates'!$B$6:$B$10,MATCH('Notice period reform'!F16,'Salary . staff rates'!$A$6:$A$10,0)))/working_days*(1+loading_factor),IF(E16="External",(INDEX('Salary . staff rates'!$B$18:$B$22,MATCH('Notice period reform'!F16,'Salary . staff rates'!$A$18:$A$22,0))),(INDEX('Salary . staff rates'!$B$13:$B$15,MATCH('Notice period reform'!F16,'Salary . staff rates'!$A$13:$A$15,0)))/working_days*(1+loading_factor))) -> 456.1403509 | H16: =IF(scenario_choice=1,'Development days'!L22,IF(scenario_choice=2,'Development days'!M22,IF(scenario_choice=3,'Development days'!N22,IF(scenario_choice=4,'Development days'!O22,'Development days'!P22)))) -> N/A | I16: =IF(scenario_choice=1,'Development days'!Q22,IF(scenario_choice=2,'Development days'!R22,IF(scenario_choice=3,'Development days'!S22,IF(scenario_choice=4,'Development days'!T22,'Development days'!U22)))) -> N/A | J16: =IF(scenario_choice=1,'Development days'!V22,IF(scenario_choice=2,'Development days'!W22,IF(scenario_choice=3,'Development days'!X22,IF(scenario_choice=4,'Development days'!Y22,'Development days'!Z22)))) -> 8 | K16: 3649.122807 | L16: ='Development days'!AA22 -> No | M16: =IF(L16="Yes",K16*'Salary . staff rates'!$B$34,0) -> 0
C17: 3.2 | D17: CRM system functionality development | E17: =IF(scenario_choice=1,'Development days'!B23,IF(scenario_choice=2,'Development days'!C23,IF(scenario_choice=3,'Development days'!D23,IF(scenario_choice=4,'Development days'!E23,'Development days'!F23)))) -> External | F17: =IF(scenario_choice=1,'Development days'!G23,IF(scenario_choice=2,'Development days'!H23,IF(scenario_choice=3,'Development days'!I23,IF(scenario_choice=4,'Development days'!J23,'Development days'!K23)))) -> MNO CRM vendor | G17: =IF(E17="Employee",(INDEX('Salary . staff rates'!$B$6:$B$10,MATCH('Notice period reform'!F17,'Salary . staff rates'!$A$6:$A$10,0)))/working_days*(1+loading_factor),IF(E17="External",(INDEX('Salary . staff rates'!$B$18:$B$22,MATCH('Notice period reform'!F17,'Salary . staff rates'!$A$18:$A$22,0))),(INDEX('Salary . staff rates'!$B$13:$B$15,MATCH('Notice period reform'!F17,'Salary . staff rates'!$A$13:$A$15,0)))/working_days*(1+loading_factor))) -> 750 | H17: =IF(scenario_choice=1,'Development days'!L23,IF(scenario_choice=2,'Development days'!M23,IF(scenario_choice=3,'Development days'!N23,IF(scenario_choice=4,'Development days'!O23,'Development days'!P23)))) -> N/A | I17: =IF(scenario_choice=1,'Development days'!Q23,IF(scenario_choice=2,'Development days'!R23,IF(scenario_choice=3,'Development days'!S23,IF(scenario_choice=4,'Development days'!T23,'Development days'!U23)))) -> N/A | J17: =IF(scenario_choice=1,'Development days'!V23,IF(scenario_choice=2,'Development days'!W23,IF(scenario_choice=3,'Development days'!X23,IF(scenario_choice=4,'Development days'!Y23,'Development days'!Z23)))) -> 25 | K17: 18750 | L17: ='Development days'!AA23 -> Yes | M17: =IF(L17="Yes",K17*'Salary . staff rates'!$B$34,0) -> 2812.5
C18: 3.3 | D18: Acceptance testing / handover to live operation | E18: =IF(scenario_choice=1,'Development days'!B24,IF(scenario_choice=2,'Development days'!C24,IF(scenario_choice=3,'Development days'!D24,IF(scenario_choice=4,'Development days'!E24,'Development days'!F24)))) -> Employee | F18: =IF(scenario_choice=1,'Development days'!G24,IF(scenario_choice=2,'Development days'!H24,IF(scenario_choice=3,'Development days'!I24,IF(scenario_choice=4,'Development days'!J24,'Development days'!K24)))) -> IT engineer | G18: =IF(E18="Employee",(INDEX('Salary . staff rates'!$B$6:$B$10,MATCH('Notice period reform'!F18,'Salary . staff rates'!$A$6:$A$10,0)))/working_days*(1+loading_factor),IF(E18="External",(INDEX('Salary . staff rates'!$B$18:$B$22,MATCH('Notice period reform'!F18,'Salary . staff rates'!$A$18:$A$22,0))),(INDEX('Salary . staff rates'!$B$13:$B$15,MATCH('Notice period reform'!F18,'Salary . staff rates'!$A$13:$A$15,0)))/working_days*(1+loading_factor))) -> 456.1403509 | H18: =IF(scenario_choice=1,'Development days'!L24,IF(scenario_choice=2,'Development days'!M24,IF(scenario_choice=3,'Development days'!N24,IF(scenario_choice=4,'Development days'!O24,'Development days'!P24)))) -> N/A | I18: =IF(scenario_choice=1,'Development days'!Q24,IF(scenario_choice=2,'Development days'!R24,IF(scenario_choice=3,'Development days'!S24,IF(scenario_choice=4,'Development days'!T24,'Development days'!U24)))) -> N/A | J18: =IF(scenario_choice=1,'Development days'!V24,IF(scenario_choice=2,'Development days'!W24,IF(scenario_choice=3,'Development days'!X24,IF(scenario_choice=4,'Development days'!Y24,'Development days'!Z24)))) -> 15 | K18: 6842.105263 | L18: ='Development days'!AA24 -> No | M18: =IF(L18="Yes",K18*'Salary . staff rates'!$B$34,0) -> 0
C19: 3.4 | D19: Project management resource | E19: =IF(scenario_choice=1,'Development days'!B25,IF(scenario_choice=2,'Development days'!C25,IF(scenario_choice=3,'Development days'!D25,IF(scenario_choice=4,'Development days'!E25,'Development days'!F25)))) -> Project management | F19: =IF(scenario_choice=1,'Development days'!G25,IF(scenario_choice=2,'Development days'!H25,IF(scenario_choice=3,'Development days'!I25,IF(scenario_choice=4,'Development days'!J25,'Development days'!K25)))) -> Middle manager | G19: =IF(E19="Employee",(INDEX('Salary . staff rates'!$B$6:$B$10,MATCH('Notice period reform'!F19,'Salary . staff rates'!$A$6:$A$10,0)))/working_days*(1+loading_factor),IF(E19="External",(INDEX('Salary . staff rates'!$B$18:$B$22,MATCH('Notice period reform'!F19,'Salary . staff rates'!$A$18:$A$22,0))),(INDEX('Salary . staff rates'!$B$13:$B$15,MATCH('Notice period reform'!F19,'Salary . staff rates'!$A$13:$A$15,0)))/working_days*(1+loading_factor))) -> 526.3157895 | H19: =IF(scenario_choice=1,'Development days'!L25,IF(scenario_choice=2,'Development days'!M25,IF(scenario_choice=3,'Development days'!N25,IF(scenario_choice=4,'Development days'!O25,'Development days'!P25)))) -> N/A | I19: =IF(scenario_choice=1,'Development days'!Q25,IF(scenario_choice=2,'Development days'!R25,IF(scenario_choice=3,'Development days'!S25,IF(scenario_choice=4,'Development days'!T25,'Development days'!U25)))) -> N/A | J19: =IF(scenario_choice=1,'Development days'!V25,IF(scenario_choice=2,'Development days'!W25,IF(scenario_choice=3,'Development days'!X25,IF(scenario_choice=4,'Development days'!Y25,'Development days'!Z25)))) -> 12 | K19: 6315.789474 | L19: ='Development days'!AA25 -> No | M19: =IF(L19="Yes",K19*'Salary . staff rates'!$B$34,0) -> 0
A21: 4. Training | B21: Ensure that IT system admin, billing system admin and CSA staff understand implications of new notice period policy | C21: 4.1 | D21: Impact assessment | E21: =IF(scenario_choice=1,'Development days'!B27,IF(scenario_choice=2,'Development days'!C27,IF(scenario_choice=3,'Development days'!D27,IF(scenario_choice=4,'Development days'!E27,'Development days'!F27)))) -> Employee | F21: =IF(scenario_choice=1,'Development days'!G27,IF(scenario_choice=2,'Development days'!H27,IF(scenario_choice=3,'Development days'!I27,IF(scenario_choice=4,'Development days'!J27,'Development days'!K27)))) -> IT engineer | G21: =IF(E21="Employee",(INDEX('Salary . staff rates'!$B$6:$B$10,MATCH('Notice period reform'!F21,'Salary . staff rates'!$A$6:$A$10,0)))/working_days*(1+loading_factor),IF(E21="External",(INDEX('Salary . staff rates'!$B$18:$B$22,MATCH('Notice period reform'!F21,'Salary . staff rates'!$A$18:$A$22,0))),(INDEX('Salary . staff rates'!$B$13:$B$15,MATCH('Notice period reform'!F21,'Salary . staff rates'!$A$13:$A$15,0)))/working_days*(1+loading_factor))) -> 456.1403509 | H21: =IF(scenario_choice=1,'Development days'!L27,IF(scenario_choice=2,'Development days'!M27,IF(scenario_choice=3,'Development days'!N27,IF(scenario_choice=4,'Development days'!O27,'Development days'!P27)))) -> 2 | I21: =IF(scenario_choice=1,'Development days'!Q27,IF(scenario_choice=2,'Development days'!R27,IF(scenario_choice=3,'Development days'!S27,IF(scenario_choice=4,'Development days'!T27,'Development days'!U27)))) -> 7 | J21: =IF(scenario_choice=1,'Development days'!V27,IF(scenario_choice=2,'Development days'!W27,IF(scenario_choice=3,'Development days'!X27,IF(scenario_choice=4,'Development days'!Y27,'Development days'!Z27)))) -> 14 | K21: 6385.964912 | L21: ='Development days'!AA27 -> No | M21: =IF(L21="Yes",K21*'Salary . staff rates'!$B$34,0) -> 0
C22: 4.2 | D22: Develop training materials | E22: =IF(scenario_choice=1,'Development days'!B28,IF(scenario_choice=2,'Development days'!C28,IF(scenario_choice=3,'Development days'!D28,IF(scenario_choice=4,'Development days'!E28,'Development days'!F28)))) -> Employee | F22: =IF(scenario_choice=1,'Development days'!G28,IF(scenario_choice=2,'Development days'!H28,IF(scenario_choice=3,'Development days'!I28,IF(scenario_choice=4,'Development days'!J28,'Development days'!K28)))) -> Training team | G22: =IF(E22="Employee",(INDEX('Salary . staff rates'!$B$6:$B$10,MATCH('Notice period reform'!F22,'Salary . staff rates'!$A$6:$A$10,0)))/working_days*(1+loading_factor),IF(E22="External",(INDEX('Salary . staff rates'!$B$18:$B$22,MATCH('Notice period reform'!F22,'Salary . staff rates'!$A$18:$A$22,0))),(INDEX('Salary . staff rates'!$B$13:$B$15,MATCH('Notice period reform'!F22,'Salary . staff rates'!$A$13:$A$15,0)))/working_days*(1+loading_factor))) -> 315.7894737 | H22: =IF(scenario_choice=1,'Development days'!L28,IF(scenario_choice=2,'Development days'!M28,IF(scenario_choice=3,'Development days'!N28,IF(scenario_choice=4,'Development days'!O28,'Development days'!P28)))) -> 2 | I22: =IF(scenario_choice=1,'Development days'!Q28,IF(scenario_choice=2,'Development days'!R28,IF(scenario_choice=3,'Development days'!S28,IF(scenario_choice=4,'Development days'!T28,'Development days'!U28)))) -> 1 | J22: =IF(scenario_choice=1,'Development days'!V28,IF(scenario_choice=2,'Development days'!W28,IF(scenario_choice=3,'Development days'!X28,IF(scenario_choice=4,'Development days'!Y28,'Development days'!Z28)))) -> 2 | K22: 631.5789474 | L22: ='Development days'!AA28 -> No | M22: =IF(L22="Yes",K22*'Salary . staff rates'!$B$34,0) -> 0
C23: 4.3 | D23: Delivery costs | E23: =IF(scenario_choice=1,'Development days'!B29,IF(scenario_choice=2,'Development days'!C29,IF(scenario_choice=3,'Development days'!D29,IF(scenario_choice=4,'Development days'!E29,'Development days'!F29)))) -> Employee | F23: =IF(scenario_choice=1,'Development days'!G29,IF(scenario_choice=2,'Development days'!H29,IF(scenario_choice=3,'Development days'!I29,IF(scenario_choice=4,'Development days'!J29,'Development days'!K29)))) -> Training team | G23: =IF(E23="Employee",(INDEX('Salary . staff rates'!$B$6:$B$10,MATCH('Notice period reform'!F23,'Salary . staff rates'!$A$6:$A$10,0)))/working_days*(1+loading_factor),IF(E23="External",(INDEX('Salary . staff rates'!$B$18:$B$22,MATCH('Notice period reform'!F23,'Salary . staff rates'!$A$18:$A$22,0))),(INDEX('Salary . staff rates'!$B$13:$B$15,MATCH('Notice period reform'!F23,'Salary . staff rates'!$A$13:$A$15,0)))/working_days*(1+loading_factor))) -> 315.7894737 | H23: =IF(scenario_choice=1,'Development days'!L29,IF(scenario_choice=2,'Development days'!M29,IF(scenario_choice=3,'Development days'!N29,IF(scenario_choice=4,'Development days'!O29,'Development days'!P29)))) -> 6 | I23: =IF(scenario_choice=1,'Development days'!Q29,IF(scenario_choice=2,'Development days'!R29,IF(scenario_choice=3,'Development days'!S29,IF(scenario_choice=4,'Development days'!T29,'Development days'!U29)))) -> 15 | J23: =IF(scenario_choice=1,'Development days'!V29,IF(scenario_choice=2,'Development days'!W29,IF(scenario_choice=3,'Development days'!X29,IF(scenario_choice=4,'Development days'!Y29,'Development days'!Z29)))) -> 90 | K23: 28421.05263 | L23: ='Development days'!AA29 -> No | M23: =IF(L23="Yes",K23*'Salary . staff rates'!$B$34,0) -> 0
C24: 4.4 | D24: Delivery of training | E24: =IF(scenario_choice=1,'Development days'!B30,IF(scenario_choice=2,'Development days'!C30,IF(scenario_choice=3,'Development days'!D30,IF(scenario_choice=4,'Development days'!E30,'Development days'!F30)))) -> Employee | F24: =IF(scenario_choice=1,'Development days'!G30,IF(scenario_choice=2,'Development days'!H30,IF(scenario_choice=3,'Development days'!I30,IF(scenario_choice=4,'Development days'!J30,'Development days'!K30)))) -> IT engineer | G24: =IF(E24="Employee",(INDEX('Salary . staff rates'!$B$6:$B$10,MATCH('Notice period reform'!F24,'Salary . staff rates'!$A$6:$A$10,0)))/working_days*(1+loading_factor),IF(E24="External",(INDEX('Salary . staff rates'!$B$18:$B$22,MATCH('Notice period reform'!F24,'Salary . staff rates'!$A$18:$A$22,0))),(INDEX('Salary . staff rates'!$B$13:$B$15,MATCH('Notice period reform'!F24,'Salary . staff rates'!$A$13:$A$15,0)))/working_days*(1+loading_factor))) -> 456.1403509 | H24: =IF(scenario_choice=1,'Development days'!L30,IF(scenario_choice=2,'Development days'!M30,IF(scenario_choice=3,'Development days'!N30,IF(scenario_choice=4,'Development days'!O30,'Development days'!P30)))) -> 60 | I24: =IF(scenario_choice=1,'Development days'!Q30,IF(scenario_choice=2,'Development days'!R30,IF(scenario_choice=3,'Development days'!S30,IF(scenario_choice=4,'Development days'!T30,'Development days'!U30)))) -> 1 | J24: =IF(scenario_choice=1,'Development days'!V30,IF(scenario_choice=2,'Development days'!W30,IF(scenario_choice=3,'Development days'!X30,IF(scenario_choice=4,'Development days'!Y30,'Development days'!Z30)))) -> 60 | K24: 27368.42105 | L24: ='Development days'!AA30 -> No | M24: =IF(L24="Yes",K24*'Salary . staff rates'!$B$34,0) -> 0
E25: =IF(scenario_choice=1,'Development days'!B31,IF(scenario_choice=2,'Development days'!C31,IF(scenario_choice=3,'Development days'!D31,IF(scenario_choice=4,'Development days'!E31,'Development days'!F31)))) -> Employee | F25: =IF(scenario_choice=1,'Development days'!G31,IF(scenario_choice=2,'Development days'!H31,IF(scenario_choice=3,'Development days'!I31,IF(scenario_choice=4,'Development days'!J31,'Development days'!K31)))) -> Billing administrators | G25: =IF(E25="Employee",(INDEX('Salary . staff rates'!$B$6:$B$10,MATCH('Notice period reform'!F25,'Salary . staff rates'!$A$6:$A$10,0)))/working_days*(1+loading_factor),IF(E25="External",(INDEX('Salary . staff rates'!$B$18:$B$22,MATCH('Notice period reform'!F25,'Salary . staff rates'!$A$18:$A$22,0))),(INDEX('Salary . staff rates'!$B$13:$B$15,MATCH('Notice period reform'!F25,'Salary . staff rates'!$A$13:$A$15,0)))/working_days*(1+loading_factor))) -> 259.6491228 | H25: =IF(scenario_choice=1,'Development days'!L31,IF(scenario_choice=2,'Development days'!M31,IF(scenario_choice=3,'Development days'!N31,IF(scenario_choice=4,'Development days'!O31,'Development days'!P31)))) -> 30 | I25: =IF(scenario_choice=1,'Development days'!Q31,IF(scenario_choice=2,'Development days'!R31,IF(scenario_choice=3,'Development days'!S31,IF(scenario_choice=4,'Development days'!T31,'Development days'!U31)))) -> 0 | J25: =IF(scenario_choice=1,'Development days'!V31,IF(scenario_choice=2,'Development days'!W31,IF(scenario_choice=3,'Development days'!X31,IF(scenario_choice=4,'Development days'!Y31,'Development days'!Z31)))) -> 0 | K25: 0 | L25: ='Development days'!AA31 -> No | M25: =IF(L25="Yes",K25*'Salary . staff rates'!$B$34,0) -> 0
E26: =IF(scenario_choice=1,'Development days'!B32,IF(scenario_choice=2,'Development days'!C32,IF(scenario_choice=3,'Development days'!D32,IF(scenario_choice=4,'Development days'!E32,'Development days'!F32)))) -> Employee | F26: =IF(scenario_choice=1,'Development days'!G32,IF(scenario_choice=2,'Development days'!H32,IF(scenario_choice=3,'Development days'!I32,IF(scenario_choice=4,'Development days'!J32,'Development days'!K32)))) -> CSAs | G26: =IF(E26="Employee",(INDEX('Salary . staff rates'!$B$6:$B$10,MATCH('Notice period reform'!F26,'Salary . staff rates'!$A$6:$A$10,0)))/working_days*(1+loading_factor),IF(E26="External",(INDEX('Salary . staff rates'!$B$18:$B$22,MATCH('Notice period reform'!F26,'Salary . staff rates'!$A$18:$A$22,0))),(INDEX('Salary . staff rates'!$B$13:$B$15,MATCH('Notice period reform'!F26,'Salary . staff rates'!$A$13:$A$15,0)))/working_days*(1+loading_factor))) -> 140.5988406 | H26: =IF(scenario_choice=1,'Development days'!L32,IF(scenario_choice=2,'Development days'!M32,IF(scenario_choice=3,'Development days'!N32,IF(scenario_choice=4,'Development days'!O32,'Development days'!P32)))) -> 10400 | I26: =IF(scenario_choice=1,'Development days'!Q32,IF(scenario_choice=2,'Development days'!R32,IF(scenario_choice=3,'Development days'!S32,IF(scenario_choice=4,'Development days'!T32,'Development days'!U32)))) -> 0.125 | J26: =IF(scenario_choice=1,'Development days'!V32,IF(scenario_choice=2,'Development days'!W32,IF(scenario_choice=3,'Development days'!X32,IF(scenario_choice=4,'Development days'!Y32,'Development days'!Z32)))) -> 1300 | K26: 182778.4928 | L26: ='Development days'!AA32 -> No | M26: =IF(L26="Yes",K26*'Salary . staff rates'!$B$34,0) -> 0

Sheet Auto-PAC CPS variant
A2: Auto-PAC CPS variant
A4: Source: Ofcom
E6: Setup | L6: Ongoing
A7: Activity | C7: Sub-activities | E7: Resource | F7: Resource type | G7: Daily cost (fully loaded) | H7: Number of employees | I7: Number of days training per employee | J7: Number of development days | K7: Total setup | L7: Ongoing support costs relevant? | M7: Total ongoing
A8: PAC SMS process - single number ports / cancellations
A9: 1. Set up SMSC connections | B9: Set-up SMSC connections to the nominated short-code number and configure SMS to be zero rated, to enable customers to request PAC via SMS to the CPS | C9: 1.1 | D9: Internal impact assessment | E9: =IF(scenario_choice=1,'Development days'!B37,IF(scenario_choice=2,'Development days'!C37,IF(scenario_choice=3,'Development days'!D37,IF(scenario_choice=4,'Development days'!E37,'Development days'!F37)))) -> Employee | F9: =IF(scenario_choice=1,'Development days'!G37,IF(scenario_choice=2,'Development days'!H37,IF(scenario_choice=3,'Development days'!I37,IF(scenario_choice=4,'Development days'!J37,'Development days'!K37)))) -> IT engineer | G9: =IF(E9="Employee",(INDEX('Salary . staff rates'!$B$6:$B$10,MATCH('Auto-PAC CPS variant'!F9,'Salary . staff rates'!$A$6:$A$10,0)))/working_days*(1+loading_factor),IF(E9="External",(INDEX('Salary . staff rates'!$B$18:$B$22,MATCH('Auto-PAC CPS variant'!F9,'Salary . staff rates'!$A$18:$A$22,0))),IF(E9="Project management",INDEX('Salary . staff rates'!$B$13:$B$15,MATCH('Auto-PAC CPS variant'!F9,'Salary . staff rates'!$A$13:$A$15,0))/working_days*(1+loading_factor),"N/A"))) -> 456.1403509 | H9: =IF(scenario_choice=1,'Development days'!L37,IF(scenario_choice=2,'Development days'!M37,IF(scenario_choice=3,'Development days'!N37,IF(scenario_choice=4,'Development days'!O37,'Development days'!P37)))) -> N/A | I9: =IF(scenario_choice=1,'Development days'!Q37,IF(scenario_choice=2,'Development days'!R37,IF(scenario_choice=3,'Development days'!S37,IF(scenario_choice=4,'Development days'!T37,'Development days'!U37)))) -> N/A | J9: =IF(scenario_choice=1,'Development days'!V37,IF(scenario_choice=2,'Development days'!W37,IF(scenario_choice=3,'Development days'!X37,IF(scenario_choice=4,'Development days'!Y37,'Development days'!Z37)))) -> 8 | K9: =IF(J9="N/A","",G9*J9) -> 3649.122807 | L9: ='Development days'!AA37 -> No | M9: =IF(L9="Yes",K9*'Salary . staff rates'!$B$34,0) -> 0
C10: 1.2 | D10: Set-up SMSC connections to the CPS and update billing systems to zero rate PAC request SMS to nominated PAC shortcode | E10: =IF(scenario_choice=1,'Development days'!B38,IF(scenario_choice=2,'Development days'!C38,IF(scenario_choice=3,'Development days'!D38,IF(scenario_choice=4,'Development days'!E38,'Development days'!F38)))) -> Employee | F10: =IF(scenario_choice=1,'Development days'!G38,IF(scenario_choice=2,'Development days'!H38,IF(scenario_choice=3,'Development days'!I38,IF(scenario_choice=4,'Development days'!J38,'Development days'!K38)))) -> IT engineer | G10: =IF(E10="Employee",(INDEX('Salary . staff rates'!$B$6:$B$10,MATCH('Auto-PAC CPS variant'!F10,'Salary . staff rates'!$A$6:$A$10,0)))/working_days*(1+loading_factor),IF(E10="External",(INDEX('Salary . staff rates'!$B$18:$B$22,MATCH('Auto-PAC CPS variant'!F10,'Salary . staff rates'!$A$18:$A$22,0))),IF(E10="Project management",INDEX('Salary . staff rates'!$B$13:$B$15,MATCH('Auto-PAC CPS variant'!F10,'Salary . staff rates'!$A$13:$A$15,0))/working_days*(1+loading_factor),"N/A"))) -> 456.1403509 | H10: =IF(scenario_choice=1,'Development days'!L38,IF(scenario_choice=2,'Development days'!M38,IF(scenario_choice=3,'Development days'!N38,IF(scenario_choice=4,'Development days'!O38,'Development days'!P38)))) -> N/A | I10: =IF(scenario_choice=1,'Development days'!Q38,IF(scenario_choice=2,'Development days'!R38,IF(scenario_choice=3,'Development days'!S38,IF(scenario_choice=4,'Development days'!T38,'Development days'!U38)))) -> N/A | J10: =IF(scenario_choice=1,'Development days'!V38,IF(scenario_choice=2,'Development days'!W38,IF(scenario_choice=3,'Development days'!X38,IF(scenario_choice=4,'Development days'!Y38,'Development days'!Z38)))) -> 25 | K10: =IF(J10="N/A","",G10*J10) -> 11403.50877 | L10: ='Development days'!AA38 -> Yes | M10: =IF(L10="Yes",K10*'Salary . staff rates'!$B$34,0) -> 1710.526316
C11: 1.3 | D11: Set up separate SMSC connection for cancellation code request | E11: =IF(scenario_choice=1,'Development days'!B39,IF(scenario_choice=2,'Development days'!C39,IF(scenario_choice=3,'Development days'!D39,IF(scenario_choice=4,'Development days'!E39,'Development days'!F39)))) -> Employee | F11: =IF(scenario_choice=1,'Development days'!G39,IF(scenario_choice=2,'Development days'!H39,IF(scenario_choice=3,'Development days'!I39,IF(scenario_choice=4,'Development days'!J39,'Development days'!K39)))) -> IT engineer | G11: =IF(E11="Employee",(INDEX('Salary . staff rates'!$B$6:$B$10,MATCH('Auto-PAC CPS variant'!F11,'Salary . staff rates'!$A$6:$A$10,0)))/working_days*(1+loading_factor),IF(E11="External",(INDEX('Salary . staff rates'!$B$18:$B$22,MATCH('Auto-PAC CPS variant'!F11,'Salary . staff rates'!$A$18:$A$22,0))),IF(E11="Project management",INDEX('Salary . staff rates'!$B$13:$B$15,MATCH('Auto-PAC CPS variant'!F11,'Salary . staff rates'!$A$13:$A$15,0))/working_days*(1+loading_factor),"N/A"))) -> 456.1403509 | H11: =IF(scenario_choice=1,'Development days'!L39,IF(scenario_choice=2,'Development days'!M39,IF(scenario_choice=3,'Development days'!N39,IF(scenario_choice=4,'Development days'!O39,'Development days'!P39)))) -> N/A | I11: =IF(scenario_choice=1,'Development days'!Q39,IF(scenario_choice=2,'Development days'!R39,IF(scenario_choice=3,'Development days'!S39,IF(scenario_choice=4,'Development days'!T39,'Development days'!U39)))) -> N/A | J11: =IF(scenario_choice=1,'Development days'!V39,IF(scenario_choice=2,'Development days'!W39,IF(scenario_choice=3,'Development days'!X39,IF(scenario_choice=4,'Development days'!Y39,'Development days'!Z39)))) -> 1 | K11: =IF(J11="N/A","",G11*J11) -> 456.1403509 | L11: ='Development days'!AA39 -> Yes | M11: =IF(L11="Yes",K11*'Salary . staff rates'!$B$34,0) -> 68.42105263
C12: 1.4 | D12: Test and validate SMSC function with the CPS | E12: =IF(scenario_choice=1,'Development days'!B40,IF(scenario_choice=2,'Development days'!C40,IF(scenario_choice=3,'Development days'!D40,IF(scenario_choice=4,'Development days'!E40,'Development days'!F40)))) -> Employee | F12: =IF(scenario_choice=1,'Development days'!G40,IF(scenario_choice=2,'Development days'!H40,IF(scenario_choice=3,'Development days'!I40,IF(scenario_choice=4,'Development days'!J40,'Development days'!K40)))) -> IT engineer | G12: =IF(E12="Employee",(INDEX('Salary . staff rates'!$B$6:$B$10,MATCH('Auto-PAC CPS variant'!F12,'Salary . staff rates'!$A$6:$A$10,0)))/working_days*(1+loading_factor),IF(E12="External",(INDEX('Salary . staff rates'!$B$18:$B$22,MATCH('Auto-PAC CPS variant'!F12,'Salary . staff rates'!$A$18:$A$22,0))),IF(E12="Project management",INDEX('Salary . staff rates'!$B$13:$B$15,MATCH('Auto-PAC CPS variant'!F12,'Salary . staff rates'!$A$13:$A$15,0))/working_days*(1+loading_factor),"N/A"))) -> 456.1403509 | H12: =IF(scenario_choice=1,'Development days'!L40,IF(scenario_choice=2,'Development days'!M40,IF(scenario_choice=3,'Development days'!N40,IF(scenario_choice=4,'Development days'!O40,'Development days'!P40)))) -> N/A | I12: =IF(scenario_choice=1,'Development days'!Q40,IF(scenario_choice=2,'Development days'!R40,IF(scenario_choice=3,'Development days'!S40,IF(scenario_choice=4,'Development days'!T40,'Development days'!U40)))) -> N/A | J12: =IF(scenario_choice=1,'Development days'!V40,IF(scenario_choice=2,'Development days'!W40,IF(scenario_choice=3,'Development days'!X40,IF(scenario_choice=4,'Development days'!Y40,'Development days'!Z40)))) -> 35 | K12: 15964.91228 | L12: ='Development days'!AA40 -> No | M12: =IF(L12="Yes",K12*'Salary . staff rates'!$B$34,0) -> 0
C13: 1.5 | D13: Project management resource | E13: =IF(scenario_choice=1,'Development days'!B41,IF(scenario_choice=2,'Development days'!C41,IF(scenario_choice=3,'Development days'!D41,IF(scenario_choice=4,'Development days'!E41,'Development days'!F41)))) -> Project management | F13: =IF(scenario_choice=1,'Development days'!G41,IF(scenario_choice=2,'Development days'!H41,IF(scenario_choice=3,'Development days'!I41,IF(scenario_choice=4,'Development days'!J41,'Development days'!K41)))) -> Middle manager | G13: =IF(E13="Employee",(INDEX('Salary . staff rates'!$B$6:$B$10,MATCH('Auto-PAC CPS variant'!F13,'Salary . staff rates'!$A$6:$A$10,0)))/working_days*(1+loading_factor),IF(E13="External",(INDEX('Salary . staff rates'!$B$18:$B$22,MATCH('Auto-PAC CPS variant'!F13,'Salary . staff rates'!$A$18:$A$22,0))),IF(E13="Project management",INDEX('Salary . staff rates'!$B$13:$B$15,MATCH('Auto-PAC CPS variant'!F13,'Salary . staff rates'!$A$13:$A$15,0))/working_days*(1+loading_factor),"N/A"))) -> 526.3157895 | H13: =IF(scenario_choice=1,'Development days'!L41,IF(scenario_choice=2,'Development days'!M41,IF(scenario_choice=3,'Development days'!N41,IF(scenario_choice=4,'Development days'!O41,'Development days'!P41)))) -> N/A | I13: =IF(scenario_choice=1,'Development days'!Q41,IF(scenario_choice=2,'Development days'!R41,IF(scenario_choice=3,'Development days'!S41,IF(scenario_choice=4,'Development days'!T41,'Development days'!U41)))) -> N/A | J13: =IF(scenario_choice=1,'Development days'!V41,IF(scenario_choice=2,'Development days'!W41,IF(scenario_choice=3,'Development days'!X41,IF(scenario_choice=4,'Development days'!Y41,'Development days'!Z41)))) -> 15 | K13: 7894.736842 | L13: ='Development days'!AA41 -> No | M13: =IF(L13="Yes",K13*'Salary . staff rates'!$B$34,0) -> 0
A14: 2. Functionality to develop real-time ETC / credit balance | B14: Update CRM/ billing systems to collate and calculate summary of the current billing and termination charge information in real-time for each number, on demand | C14: 2.1 | D14: Internal impact assessment | E14: =IF(scenario_choice=1,'Development days'!B42,IF(scenario_choice=2,'Development days'!C42,IF(scenario_choice=3,'Development days'!D42,IF(scenario_choice=4,'Development days'!E42,'Development days'!F42)))) -> Project management | F14: =IF(scenario_choice=1,'Development days'!G42,IF(scenario_choice=2,'Development days'!H42,IF(scenario_choice=3,'Development days'!I42,IF(scenario_choice=4,'Development days'!J42,'Development days'!K42)))) -> Senior manager | G14: =IF(E14="Employee",(INDEX('Salary . staff rates'!$B$6:$B$10,MATCH('Auto-PAC CPS variant'!F14,'Salary . staff rates'!$A$6:$A$10,0)))/working_days*(1+loading_factor),IF(E14="External",(INDEX('Salary . staff rates'!$B$18:$B$22,MATCH('Auto-PAC CPS variant'!F14,'Salary . staff rates'!$A$18:$A$22,0))),IF(E14="Project management",INDEX('Salary . staff rates'!$B$13:$B$15,MATCH('Auto-PAC CPS variant'!F14,'Salary . staff rates'!$A$13:$A$15,0))/working_days*(1+loading_factor),"N/A"))) -> 596.4912281 | H14: =IF(scenario_choice=1,'Development days'!L42,IF(scenario_choice=2,'Development days'!M42,IF(scenario_choice=3,'Development days'!N42,IF(scenario_choice=4,'Development days'!O42,'Development days'!P42)))) -> N/A | I14: =IF(scenario_choice=1,'Development days'!Q42,IF(scenario_choice=2,'Development days'!R42,IF(scenario_choice=3,'Development days'!S42,IF(scenario_choice=4,'Development days'!T42,'Development days'!U42)))) -> N/A | J14: =IF(scenario_choice=1,'Development days'!V42,IF(scenario_choice=2,'Development days'!W42,IF(scenario_choice=3,'Development days'!X42,IF(scenario_choice=4,'Development days'!Y42,'Development days'!Z42)))) -> 15 | K14: 8947.368421 | L14: ='Development days'!AA42 -> No | M14: =IF(L14="Yes",K14*'Salary . staff rates'!$B$34,0) -> 0
C15: 2.2 | D15: Develop functionality to validate the customer account against the requested number within the CRM systems | E15: =IF(scenario_choice=1,'Development days'!B43,IF(scenario_choice=2,'Development days'!C43,IF(scenario_choice=3,'Development days'!D43,IF(scenario_choice=4,'Development days'!E43,'Development days'!F43)))) -> External | F15: =IF(scenario_choice=1,'Development days'!G43,IF(scenario_choice=2,'Development days'!H43,IF(scenario_choice=3,'Development days'!I43,IF(scenario_choice=4,'Development days'!J43,'Development days'!K43)))) -> MNO CRM vendor | G15: =IF(E15="Employee",(INDEX('Salary . staff rates'!$B$6:$B$10,MATCH('Auto-PAC CPS variant'!F15,'Salary . staff rates'!$A$6:$A$10,0)))/working_days*(1+loading_factor),IF(E15="External",(INDEX('Salary . staff rates'!$B$18:$B$22,MATCH('Auto-PAC CPS variant'!F15,'Salary . staff rates'!$A$18:$A$22,0))),IF(E15="Project management",INDEX('Salary . staff rates'!$B$13:$B$15,MATCH('Auto-PAC CPS variant'!F15,'Salary . staff rates'!$A$13:$A$15,0))/working_days*(1+loading_factor),"N/A"))) -> 750 | H15: =IF(scenario_choice=1,'Development days'!L43,IF(scenario_choice=2,'Development days'!M43,IF(scenario_choice=3,'Development days'!N43,IF(scenario_choice=4,'Development days'!O43,'Development days'!P43)))) -> N/A | I15: =IF(scenario_choice=1,'Development days'!Q43,IF(scenario_choice=2,'Development days'!R43,IF(scenario_choice=3,'Development days'!S43,IF(scenario_choice=4,'Development days'!T43,'Development days'!U43)))) -> N/A | J15: =IF(scenario_choice=1,'Development days'!V43,IF(scenario_choice=2,'Development days'!W43,IF(scenario_choice=3,'Development days'!X43,IF(scenario_choice=4,'Development days'!Y43,'Development days'!Z43)))) -> 35 | K15: 26250 | L15: ='Development days'!AA43 -> Yes | M15: =IF(L15="Yes",K15*'Salary . staff rates'!$B$34,0) -> 3937.5
C16: 2.3 | D16: Develop functionality to request and collate current billed and unbilled data for the customer's number from billing systems | E16: =IF(scenario_choice=1,'Development days'!B44,IF(scenario_choice=2,'Development days'!C44,IF(scenario_choice=3,'Development days'!D44,IF(scenario_choice=4,'Development days'!E44,'Development days'!F44)))) -> External | F16: =IF(scenario_choice=1,'Development days'!G44,IF(scenario_choice=2,'Development days'!H44,IF(scenario_choice=3,'Development days'!I44,IF(scenario_choice=4,'Development days'!J44,'Development days'!K44)))) -> MNO CRM vendor | G16: =IF(E16="Employee",(INDEX('Salary . staff rates'!$B$6:$B$10,MATCH('Auto-PAC CPS variant'!F16,'Salary . staff rates'!$A$6:$A$10,0)))/working_days*(1+loading_factor),IF(E16="External",(INDEX('Salary . staff rates'!$B$18:$B$22,MATCH('Auto-PAC CPS variant'!F16,'Salary . staff rates'!$A$18:$A$22,0))),IF(E16="Project management",INDEX('Salary . staff rates'!$B$13:$B$15,MATCH('Auto-PAC CPS variant'!F16,'Salary . staff rates'!$A$13:$A$15,0))/working_days*(1+loading_factor),"N/A"))) -> 750 | H16: =IF(scenario_choice=1,'Development days'!L44,IF(scenario_choice=2,'Development days'!M44,IF(scenario_choice=3,'Development days'!N44,IF(scenario_choice=4,'Development days'!O44,'Development days'!P44)))) -> N/A | I16: =IF(scenario_choice=1,'Development days'!Q44,IF(scenario_choice=2,'Development days'!R44,IF(scenario_choice=3,'Development days'!S44,IF(scenario_choice=4,'Development days'!T44,'Development days'!U44)))) -> N/A | J16: =IF(scenario_choice=1,'Development days'!V44,IF(scenario_choice=2,'Development days'!W44,IF(scenario_choice=3,'Development days'!X44,IF(scenario_choice=4,'Development days'!Y44,'Development days'!Z44)))) -> 60 | K16: 45000 | L16: ='Development days'!AA44 -> Yes | M16: =IF(L16="Yes",K16*'Salary . staff rates'!$B$34,0) -> 6750
C17: 2.4 | D17: Develop functionality to check if the requested number is subject to residential or business product | E17: =IF(scenario_choice=1,'Development days'!B45,IF(scenario_choice=2,'Development days'!C45,IF(scenario_choice=3,'Development days'!D45,IF(scenario_choice=4,'Development days'!E45,'Development days'!F45)))) -> External | F17: =IF(scenario_choice=1,'Development days'!G45,IF(scenario_choice=2,'Development days'!H45,IF(scenario_choice=3,'Development days'!I45,IF(scenario_choice=4,'Development days'!J45,'Development days'!K45)))) -> MNO CRM vendor | G17: =IF(E17="Employee",(INDEX('Salary . staff rates'!$B$6:$B$10,MATCH('Auto-PAC CPS variant'!F17,'Salary . staff rates'!$A$6:$A$10,0)))/working_days*(1+loading_factor),IF(E17="External",(INDEX('Salary . staff rates'!$B$18:$B$22,MATCH('Auto-PAC CPS variant'!F17,'Salary . staff rates'!$A$18:$A$22,0))),IF(E17="Project management",INDEX('Salary . staff rates'!$B$13:$B$15,MATCH('Auto-PAC CPS variant'!F17,'Salary . staff rates'!$A$13:$A$15,0))/working_days*(1+loading_factor),"N/A"))) -> 750 | H17: =IF(scenario_choice=1,'Development days'!L45,IF(scenario_choice=2,'Development days'!M45,IF(scenario_choice=3,'Development days'!N45,IF(scenario_choice=4,'Development days'!O45,'Development days'!P45)))) -> N/A | I17: =IF(scenario_choice=1,'Development days'!Q45,IF(scenario_choice=2,'Development days'!R45,IF(scenario_choice=3,'Development days'!S45,IF(scenario_choice=4,'Development days'!T45,'Development days'!U45)))) -> N/A | J17: =IF(scenario_choice=1,'Development days'!V45,IF(scenario_choice=2,'Development days'!W45,IF(scenario_choice=3,'Development days'!X45,IF(scenario_choice=4,'Development days'!Y45,'Development days'!Z45)))) -> 20 | K17: =IF('Industry cost summary'!C53="No","",IF(J17="N/A","",G17*J17)) ->  | L17: ='Development days'!AA45 -> Yes | M17: =IF('Industry cost summary'!C53="No","",IF(L17="Yes",K17*'Salary . staff rates'!$B$34,0)) ->  | N17: Activity only relevant if businesses excluded from obligation
C18: 2.5 | D18: If product is business, then bypass requirement for the development of functionality to a) calculate current billed and unbilled data for the customer's number from CRM/billing systems (and instead send rejection message to CPS) | E18: =IF(scenario_choice=1,'Development days'!B46,IF(scenario_choice=2,'Development days'!C46,IF(scenario_choice=3,'Development days'!D46,IF(scenario_choice=4,'Development days'!E46,'Development days'!F46)))) -> External | F18: =IF(scenario_choice=1,'Development days'!G46,IF(scenario_choice=2,'Development days'!H46,IF(scenario_choice=3,'Development days'!I46,IF(scenario_choice=4,'Development days'!J46,'Development days'!K46)))) -> MNO CRM vendor | G18: =IF(E18="Employee",(INDEX('Salary . staff rates'!$B$6:$B$10,MATCH('Auto-PAC CPS variant'!F18,'Salary . staff rates'!$A$6:$A$10,0)))/working_days*(1+loading_factor),IF(E18="External",(INDEX('Salary . staff rates'!$B$18:$B$22,MATCH('Auto-PAC CPS variant'!F18,'Salary . staff rates'!$A$18:$A$22,0))),IF(E18="Project management",INDEX('Salary . staff rates'!$B$13:$B$15,MATCH('Auto-PAC CPS variant'!F18,'Salary . staff rates'!$A$13:$A$15,0))/working_days*(1+loading_factor),"N/A"))) -> 750 | H18: =IF(scenario_choice=1,'Development days'!L46,IF(scenario_choice=2,'Development days'!M46,IF(scenario_choice=3,'Development days'!N46,IF(scenario_choice=4,'Development days'!O46,'Development days'!P46)))) -> N/A | I18: =IF(scenario_choice=1,'Development days'!Q46,IF(scenario_choice=2,'Development days'!R46,IF(scenario_choice=3,'Development days'!S46,IF(scenario_choice=4,'Development days'!T46,'Development days'!U46)))) -> N/A | J18: =IF(scenario_choice=1,'Development days'!V46,IF(scenario_choice=2,'Development days'!W46,IF(scenario_choice=3,'Development days'!X46,IF(scenario_choice=4,'Development days'!Y46,'Development days'!Z46)))) -> 20 | K18: =IF('Industry cost summary'!C54="No","",IF(J18="N/A","",G18*J18)) ->  | L18: ='Development days'!AA46 -> Yes | M18: =IF('Industry cost summary'!C54="No","",IF(L18="Yes",K18*'Salary . staff rates'!$B$34,0)) ->  | N18: Activity only relevant if businesses excluded from obligation
C19: 2.6 | D19: If product is residential, then develop functionality to interrogate CRM/ billing systems to identify customer's contract start and end dates and set-up algorithm to calculate current ETC based on customer specific contract term features & remaining contract period | E19: =IF(scenario_choice=1,'Development days'!B47,IF(scenario_choice=2,'Development days'!C47,IF(scenario_choice=3,'Development days'!D47,IF(scenario_choice=4,'Development days'!E47,'Development days'!F47)))) -> External | F19: =IF(scenario_choice=1,'Development days'!G47,IF(scenario_choice=2,'Development days'!H47,IF(scenario_choice=3,'Development days'!I47,IF(scenario_choice=4,'Development days'!J47,'Development days'!K47)))) -> MNO CRM vendor | G19: =IF(E19="Employee",(INDEX('Salary . staff rates'!$B$6:$B$10,MATCH('Auto-PAC CPS variant'!F19,'Salary . staff rates'!$A$6:$A$10,0)))/working_days*(1+loading_factor),IF(E19="External",(INDEX('Salary . staff rates'!$B$18:$B$22,MATCH('Auto-PAC CPS variant'!F19,'Salary . staff rates'!$A$18:$A$22,0))),IF(E19="Project management",INDEX('Salary . staff rates'!$B$13:$B$15,MATCH('Auto-PAC CPS variant'!F19,'Salary . staff rates'!$A$13:$A$15,0))/working_days*(1+loading_factor),"N/A"))) -> 750 | H19: =IF(scenario_choice=1,'Development days'!L47,IF(scenario_choice=2,'Development days'!M47,IF(scenario_choice=3,'Development days'!N47,IF(scenario_choice=4,'Development days'!O47,'Development days'!P47)))) -> N/A | I19: =IF(scenario_choice=1,'Development days'!Q47,IF(scenario_choice=2,'Development days'!R47,IF(scenario_choice=3,'Development days'!S47,IF(scenario_choice=4,'Development days'!T47,'Development days'!U47)))) -> N/A | J19: =IF(scenario_choice=1,'Development days'!V47,IF(scenario_choice=2,'Development days'!W47,IF(scenario_choice=3,'Development days'!X47,IF(scenario_choice=4,'Development days'!Y47,'Development days'!Z47)))) -> 60 | K19: 45000 | L19: ='Development days'!AA47 -> Yes | M19: =IF(L19="Yes",K19*'Salary . staff rates'!$B$34,0) -> 6750
C20: 2.7 | D20: Develop functionality to collate customer's ETC/ contract information into standard format to be sent to SMS | E20: =IF(scenario_choice=1,'Development days'!B48,IF(scenario_choice=2,'Development days'!C48,IF(scenario_choice=3,'Development days'!D48,IF(scenario_choice=4,'Development days'!E48,'Development days'!F48)))) -> External | F20: =IF(scenario_choice=1,'Development days'!G48,IF(scenario_choice=2,'Development days'!H48,IF(scenario_choice=3,'Development days'!I48,IF(scenario_choice=4,'Development days'!J48,'Development days'!K48)))) -> MNO CRM vendor | G20: =IF(E20="Employee",(INDEX('Salary . staff rates'!$B$6:$B$10,MATCH('Auto-PAC CPS variant'!F20,'Salary . staff rates'!$A$6:$A$10,0)))/working_days*(1+loading_factor),IF(E20="External",(INDEX('Salary . staff rates'!$B$18:$B$22,MATCH('Auto-PAC CPS variant'!F20,'Salary . staff rates'!$A$18:$A$22,0))),IF(E20="Project management",INDEX('Salary . staff rates'!$B$13:$B$15,MATCH('Auto-PAC CPS variant'!F20,'Salary . staff rates'!$A$13:$A$15,0))/working_days*(1+loading_factor),"N/A"))) -> 750 | H20: =IF(scenario_choice=1,'Development days'!L48,IF(scenario_choice=2,'Development days'!M48,IF(scenario_choice=3,'Development days'!N48,IF(scenario_choice=4,'Development days'!O48,'Development days'!P48)))) -> N/A | I20: =IF(scenario_choice=1,'Development days'!Q48,IF(scenario_choice=2,'Development days'!R48,IF(scenario_choice=3,'Development days'!S48,IF(scenario_choice=4,'Development days'!T48,'Development days'!U48)))) -> N/A | J20: =IF(scenario_choice=1,'Development days'!V48,IF(scenario_choice=2,'Development days'!W48,IF(scenario_choice=3,'Development days'!X48,IF(scenario_choice=4,'Development days'!Y48,'Development days'!Z48)))) -> 40 | K20: 30000 | L20: ='Development days'!AA48 -> Yes | M20: =IF(L20="Yes",K20*'Salary . staff rates'!$B$34,0) -> 4500
C21: 2.8 | D21: Test and validate ETC / credit balance calculation functionality | E21: =IF(scenario_choice=1,'Development days'!B49,IF(scenario_choice=2,'Development days'!C49,IF(scenario_choice=3,'Development days'!D49,IF(scenario_choice=4,'Development days'!E49,'Development days'!F49)))) -> Employee | F21: =IF(scenario_choice=1,'Development days'!G49,IF(scenario_choice=2,'Development days'!H49,IF(scenario_choice=3,'Development days'!I49,IF(scenario_choice=4,'Development days'!J49,'Development days'!K49)))) -> IT engineer | G21: =IF(E21="Employee",(INDEX('Salary . staff rates'!$B$6:$B$10,MATCH('Auto-PAC CPS variant'!F21,'Salary . staff rates'!$A$6:$A$10,0)))/working_days*(1+loading_factor),IF(E21="External",(INDEX('Salary . staff rates'!$B$18:$B$22,MATCH('Auto-PAC CPS variant'!F21,'Salary . staff rates'!$A$18:$A$22,0))),IF(E21="Project management",INDEX('Salary . staff rates'!$B$13:$B$15,MATCH('Auto-PAC CPS variant'!F21,'Salary . staff rates'!$A$13:$A$15,0))/working_days*(1+loading_factor),"N/A"))) -> 456.1403509 | H21: =IF(scenario_choice=1,'Development days'!L49,IF(scenario_choice=2,'Development days'!M49,IF(scenario_choice=3,'Development days'!N49,IF(scenario_choice=4,'Development days'!O49,'Development days'!P49)))) -> N/A | I21: =IF(scenario_choice=1,'Development days'!Q49,IF(scenario_choice=2,'Development days'!R49,IF(scenario_choice=3,'Development days'!S49,IF(scenario_choice=4,'Development days'!T49,'Development days'!U49)))) -> N/A | J21: =IF(scenario_choice=1,'Development days'!V49,IF(scenario_choice=2,'Development days'!W49,IF(scenario_choice=3,'Development days'!X49,IF(scenario_choice=4,'Development days'!Y49,'Development days'!Z49)))) -> 40 | K21: 18245.61404 | L21: ='Development days'!AA49 -> No | M21: =IF(L21="Yes",K21*'Salary . staff rates'!$B$34,0) -> 0
C22: 2.9 | D22: Project management resource | E22: =IF(scenario_choice=1,'Development days'!B50,IF(scenario_choice=2,'Development days'!C50,IF(scenario_choice=3,'Development days'!D50,IF(scenario_choice=4,'Development days'!E50,'Development days'!F50)))) -> Project management | F22: =IF(scenario_choice=1,'Development days'!G50,IF(scenario_choice=2,'Development days'!H50,IF(scenario_choice=3,'Development days'!I50,IF(scenario_choice=4,'Development days'!J50,'Development days'!K50)))) -> Middle manager | G22: =IF(E22="Employee",(INDEX('Salary . staff rates'!$B$6:$B$10,MATCH('Auto-PAC CPS variant'!F22,'Salary . staff rates'!$A$6:$A$10,0)))/working_days*(1+loading_factor),IF(E22="External",(INDEX('Salary . staff rates'!$B$18:$B$22,MATCH('Auto-PAC CPS variant'!F22,'Salary . staff rates'!$A$18:$A$22,0))),IF(E22="Project management",INDEX('Salary . staff rates'!$B$13:$B$15,MATCH('Auto-PAC CPS variant'!F22,'Salary . staff rates'!$A$13:$A$15,0))/working_days*(1+loading_factor),"N/A"))) -> 526.3157895 | H22: =IF(scenario_choice=1,'Development days'!L50,IF(scenario_choice=2,'Development days'!M50,IF(scenario_choice=3,'Development days'!N50,IF(scenario_choice=4,'Development days'!O50,'Development days'!P50)))) -> N/A | I22: =IF(scenario_choice=1,'Development days'!Q50,IF(scenario_choice=2,'Development days'!R50,IF(scenario_choice=3,'Development days'!S50,IF(scenario_choice=4,'Development days'!T50,'Development days'!U50)))) -> N/A | J22: =IF(scenario_choice=1,'Development days'!V50,IF(scenario_choice=2,'Development days'!W50,IF(scenario_choice=3,'Development days'!X50,IF(scenario_choice=4,'Development days'!Y50,'Development days'!Z50)))) -> 65 | K22: 34210.52632 | L22: ='Development days'!AA50 -> No | M22: =IF(L22="Yes",K22*'Salary . staff rates'!$B$34,0) -> 0
A23: 3. Functionality to deliver ETC / credit balance to CPS | B23: Update the linkages between the porting/ CRM systems to process requests for real-time switching information received via the CPS, and deliver to the CPS | C23: 3.1 | D23: Internal impact assessment | E23: =IF(scenario_choice=1,'Development days'!B51,IF(scenario_choice=2,'Development days'!C51,IF(scenario_choice=3,'Development days'!D51,IF(scenario_choice=4,'Development days'!E51,'Development days'!F51)))) -> Project management | F23: =IF(scenario_choice=1,'Development days'!G51,IF(scenario_choice=2,'Development days'!H51,IF(scenario_choice=3,'Development days'!I51,IF(scenario_choice=4,'Development days'!J51,'Development days'!K51)))) -> Senior manager | G23: =IF(E23="Employee",(INDEX('Salary . staff rates'!$B$6:$B$10,MATCH('Auto-PAC CPS variant'!F23,'Salary . staff rates'!$A$6:$A$10,0)))/working_days*(1+loading_factor),IF(E23="External",(INDEX('Salary . staff rates'!$B$18:$B$22,MATCH('Auto-PAC CPS variant'!F23,'Salary . staff rates'!$A$18:$A$22,0))),IF(E23="Project management",INDEX('Salary . staff rates'!$B$13:$B$15,MATCH('Auto-PAC CPS variant'!F23,'Salary . staff rates'!$A$13:$A$15,0))/working_days*(1+loading_factor),"N/A"))) -> 596.4912281 | H23: =IF(scenario_choice=1,'Development days'!L51,IF(scenario_choice=2,'Development days'!M51,IF(scenario_choice=3,'Development days'!N51,IF(scenario_choice=4,'Development days'!O51,'Development days'!P51)))) -> N/A | I23: =IF(scenario_choice=1,'Development days'!Q51,IF(scenario_choice=2,'Development days'!R51,IF(scenario_choice=3,'Development days'!S51,IF(scenario_choice=4,'Development days'!T51,'Development days'!U51)))) -> N/A | J23: =IF(scenario_choice=1,'Development days'!V51,IF(scenario_choice=2,'Development days'!W51,IF(scenario_choice=3,'Development days'!X51,IF(scenario_choice=4,'Development days'!Y51,'Development days'!Z51)))) -> 12 | K23: 7157.894737 | L23: ='Development days'!AA51 -> No | M23: =IF(L23="Yes",K23*'Salary . staff rates'!$B$34,0) -> 0
C24: 3.2 | D24: Update CRM/ NP gateway with CPS to receive incoming ETC information messages | E24: =IF(scenario_choice=1,'Development days'!B52,IF(scenario_choice=2,'Development days'!C52,IF(scenario_choice=3,'Development days'!D52,IF(scenario_choice=4,'Development days'!E52,'Development days'!F52)))) -> External | F24: =IF(scenario_choice=1,'Development days'!G52,IF(scenario_choice=2,'Development days'!H52,IF(scenario_choice=3,'Development days'!I52,IF(scenario_choice=4,'Development days'!J52,'Development days'!K52)))) -> MNO CRM vendor | G24: =IF(E24="Employee",(INDEX('Salary . staff rates'!$B$6:$B$10,MATCH('Auto-PAC CPS variant'!F24,'Salary . staff rates'!$A$6:$A$10,0)))/working_days*(1+loading_factor),IF(E24="External",(INDEX('Salary . staff rates'!$B$18:$B$22,MATCH('Auto-PAC CPS variant'!F24,'Salary . staff rates'!$A$18:$A$22,0))),IF(E24="Project management",INDEX('Salary . staff rates'!$B$13:$B$15,MATCH('Auto-PAC CPS variant'!F24,'Salary . staff rates'!$A$13:$A$15,0))/working_days*(1+loading_factor),"N/A"))) -> 750 | H24: =IF(scenario_choice=1,'Development days'!L52,IF(scenario_choice=2,'Development days'!M52,IF(scenario_choice=3,'Development days'!N52,IF(scenario_choice=4,'Development days'!O52,'Development days'!P52)))) -> N/A | I24: =IF(scenario_choice=1,'Development days'!Q52,IF(scenario_choice=2,'Development days'!R52,IF(scenario_choice=3,'Development days'!S52,IF(scenario_choice=4,'Development days'!T52,'Development days'!U52)))) -> N/A | J24: =IF(scenario_choice=1,'Development days'!V52,IF(scenario_choice=2,'Development days'!W52,IF(scenario_choice=3,'Development days'!X52,IF(scenario_choice=4,'Development days'!Y52,'Development days'!Z52)))) -> 35 | K24: 26250 | L24: ='Development days'!AA52 -> Yes | M24: =IF(L24="Yes",K24*'Salary . staff rates'!$B$34,0) -> 3937.5
C25: 3.3 | D25: Develop CRM/ NP Gateway functionality to submit ETC / credit balance to CPS and confirm receipt | E25: =IF(scenario_choice=1,'Development days'!B53,IF(scenario_choice=2,'Development days'!C53,IF(scenario_choice=3,'Development days'!D53,IF(scenario_choice=4,'Development days'!E53,'Development days'!F53)))) -> External | F25: =IF(scenario_choice=1,'Development days'!G53,IF(scenario_choice=2,'Development days'!H53,IF(scenario_choice=3,'Development days'!I53,IF(scenario_choice=4,'Development days'!J53,'Development days'!K53)))) -> MNO CRM vendor | G25: =IF(E25="Employee",(INDEX('Salary . staff rates'!$B$6:$B$10,MATCH('Auto-PAC CPS variant'!F25,'Salary . staff rates'!$A$6:$A$10,0)))/working_days*(1+loading_factor),IF(E25="External",(INDEX('Salary . staff rates'!$B$18:$B$22,MATCH('Auto-PAC CPS variant'!F25,'Salary . staff rates'!$A$18:$A$22,0))),IF(E25="Project management",INDEX('Salary . staff rates'!$B$13:$B$15,MATCH('Auto-PAC CPS variant'!F25,'Salary . staff rates'!$A$13:$A$15,0))/working_days*(1+loading_factor),"N/A"))) -> 750 | H25: =IF(scenario_choice=1,'Development days'!L53,IF(scenario_choice=2,'Development days'!M53,IF(scenario_choice=3,'Development days'!N53,IF(scenario_choice=4,'Development days'!O53,'Development days'!P53)))) -> N/A | I25: =IF(scenario_choice=1,'Development days'!Q53,IF(scenario_choice=2,'Development days'!R53,IF(scenario_choice=3,'Development days'!S53,IF(scenario_choice=4,'Development days'!T53,'Development days'!U53)))) -> N/A | J25: =IF(scenario_choice=1,'Development days'!V53,IF(scenario_choice=2,'Development days'!W53,IF(scenario_choice=3,'Development days'!X53,IF(scenario_choice=4,'Development days'!Y53,'Development days'!Z53)))) -> 35 | K25: 26250 | L25: ='Development days'!AA53 -> Yes | M25: =IF(L25="Yes",K25*'Salary . staff rates'!$B$34,0) -> 3937.5
C26: 3.4 | D26: Test and validate ETC/ Contract interworking functionality | E26: =IF(scenario_choice=1,'Development days'!B54,IF(scenario_choice=2,'Development days'!C54,IF(scenario_choice=3,'Development days'!D54,IF(scenario_choice=4,'Development days'!E54,'Development days'!F54)))) -> Employee | F26: =IF(scenario_choice=1,'Development days'!G54,IF(scenario_choice=2,'Development days'!H54,IF(scenario_choice=3,'Development days'!I54,IF(scenario_choice=4,'Development days'!J54,'Development days'!K54)))) -> IT engineer | G26: =IF(E26="Employee",(INDEX('Salary . staff rates'!$B$6:$B$10,MATCH('Auto-PAC CPS variant'!F26,'Salary . staff rates'!$A$6:$A$10,0)))/working_days*(1+loading_factor),IF(E26="External",(INDEX('Salary . staff rates'!$B$18:$B$22,MATCH('Auto-PAC CPS variant'!F26,'Salary . staff rates'!$A$18:$A$22,0))),IF(E26="Project management",INDEX('Salary . staff rates'!$B$13:$B$15,MATCH('Auto-PAC CPS variant'!F26,'Salary . staff rates'!$A$13:$A$15,0))/working_days*(1+loading_factor),"N/A"))) -> 456.1403509 | H26: =IF(scenario_choice=1,'Development days'!L54,IF(scenario_choice=2,'Development days'!M54,IF(scenario_choice=3,'Development days'!N54,IF(scenario_choice=4,'Development days'!O54,'Development days'!P54)))) -> N/A | I26: =IF(scenario_choice=1,'Development days'!Q54,IF(scenario_choice=2,'Development days'!R54,IF(scenario_choice=3,'Development days'!S54,IF(scenario_choice=4,'Development days'!T54,'Development days'!U54)))) -> N/A | J26: =IF(scenario_choice=1,'Development days'!V54,IF(scenario_choice=2,'Development days'!W54,IF(scenario_choice=3,'Development days'!X54,IF(scenario_choice=4,'Development days'!Y54,'Development days'!Z54)))) -> 30 | K26: 13684.21053 | L26: ='Development days'!AA54 -> No | M26: =IF(L26="Yes",K26*'Salary . staff rates'!$B$34,0) -> 0
C27: 3.5 | D27: Project management resource | E27: =IF(scenario_choice=1,'Development days'!B55,IF(scenario_choice=2,'Development days'!C55,IF(scenario_choice=3,'Development days'!D55,IF(scenario_choice=4,'Development days'!E55,'Development days'!F55)))) -> Project management | F27: =IF(scenario_choice=1,'Development days'!G55,IF(scenario_choice=2,'Development days'!H55,IF(scenario_choice=3,'Development days'!I55,IF(scenario_choice=4,'Development days'!J55,'Development days'!K55)))) -> Middle manager | G27: =IF(E27="Employee",(INDEX('Salary . staff rates'!$B$6:$B$10,MATCH('Auto-PAC CPS variant'!F27,'Salary . staff rates'!$A$6:$A$10,0)))/working_days*(1+loading_factor),IF(E27="External",(INDEX('Salary . staff rates'!$B$18:$B$22,MATCH('Auto-PAC CPS variant'!F27,'Salary . staff rates'!$A$18:$A$22,0))),IF(E27="Project management",INDEX('Salary . staff rates'!$B$13:$B$15,MATCH('Auto-PAC CPS variant'!F27,'Salary . staff rates'!$A$13:$A$15,0))/working_days*(1+loading_factor),"N/A"))) -> 526.3157895 | H27: =IF(scenario_choice=1,'Development days'!L55,IF(scenario_choice=2,'Development days'!M55,IF(scenario_choice=3,'Development days'!N55,IF(scenario_choice=4,'Development days'!O55,'Development days'!P55)))) -> N/A | I27: =IF(scenario_choice=1,'Development days'!Q55,IF(scenario_choice=2,'Development days'!R55,IF(scenario_choice=3,'Development days'!S55,IF(scenario_choice=4,'Development days'!T55,'Development days'!U55)))) -> N/A | J27: =IF(scenario_choice=1,'Development days'!V55,IF(scenario_choice=2,'Development days'!W55,IF(scenario_choice=3,'Development days'!X55,IF(scenario_choice=4,'Development days'!Y55,'Development days'!Z55)))) -> 35 | K27: 18421.05263 | L27: ='Development days'!AA55 -> No | M27: =IF(L27="Yes",K27*'Salary . staff rates'!$B$34,0) -> 0
A28: 4. MNP OSG engagement | B28: Resource dedicated to implementation discussions with OSG or similar industry body | C28: 4.1 | D28: Support MNP OSG Discussions on Key MNP process/ functionality changes | E28: =IF(scenario_choice=1,'Development days'!B56,IF(scenario_choice=2,'Development days'!C56,IF(scenario_choice=3,'Development days'!D56,IF(scenario_choice=4,'Development days'!E56,'Development days'!F56)))) -> Project management | F28: =IF(scenario_choice=1,'Development days'!G56,IF(scenario_choice=2,'Development days'!H56,IF(scenario_choice=3,'Development days'!I56,IF(scenario_choice=4,'Development days'!J56,'Development days'!K56)))) -> Middle manager | G28: =IF(E28="Employee",(INDEX('Salary . staff rates'!$B$6:$B$10,MATCH('Auto-PAC CPS variant'!F28,'Salary . staff rates'!$A$6:$A$10,0)))/working_days*(1+loading_factor),IF(E28="External",(INDEX('Salary . staff rates'!$B$18:$B$22,MATCH('Auto-PAC CPS variant'!F28,'Salary . staff rates'!$A$18:$A$22,0))),IF(E28="Project management",INDEX('Salary . staff rates'!$B$13:$B$15,MATCH('Auto-PAC CPS variant'!F28,'Salary . staff rates'!$A$13:$A$15,0))/working_days*(1+loading_factor),"N/A"))) -> 526.3157895 | H28: =IF(scenario_choice=1,'Development days'!L56,IF(scenario_choice=2,'Development days'!M56,IF(scenario_choice=3,'Development days'!N56,IF(scenario_choice=4,'Development days'!O56,'Development days'!P56)))) -> N/A | I28: =IF(scenario_choice=1,'Development days'!Q56,IF(scenario_choice=2,'Development days'!R56,IF(scenario_choice=3,'Development days'!S56,IF(scenario_choice=4,'Development days'!T56,'Development days'!U56)))) -> N/A | J28: =IF(scenario_choice=1,'Development days'!V56,IF(scenario_choice=2,'Development days'!W56,IF(scenario_choice=3,'Development days'!X56,IF(scenario_choice=4,'Development days'!Y56,'Development days'!Z56)))) -> 10 | K28: 5263.157895 | L28: ='Development days'!AA56 -> No | M28: =IF(L28="Yes",K28*'Salary . staff rates'!$B$34,0) -> 0
C29: 4.2 | D29: Review MNP OSG documents and provide feedback/ comments | E29: =IF(scenario_choice=1,'Development days'!B57,IF(scenario_choice=2,'Development days'!C57,IF(scenario_choice=3,'Development days'!D57,IF(scenario_choice=4,'Development days'!E57,'Development days'!F57)))) -> Project management | F29: =IF(scenario_choice=1,'Development days'!G57,IF(scenario_choice=2,'Development days'!H57,IF(scenario_choice=3,'Development days'!I57,IF(scenario_choice=4,'Development days'!J57,'Development days'!K57)))) -> Middle manager | G29: =IF(E29="Employee",(INDEX('Salary . staff rates'!$B$6:$B$10,MATCH('Auto-PAC CPS variant'!F29,'Salary . staff rates'!$A$6:$A$10,0)))/working_days*(1+loading_factor),IF(E29="External",(INDEX('Salary . staff rates'!$B$18:$B$22,MATCH('Auto-PAC CPS variant'!F29,'Salary . staff rates'!$A$18:$A$22,0))),IF(E29="Project management",INDEX('Salary . staff rates'!$B$13:$B$15,MATCH('Auto-PAC CPS variant'!F29,'Salary . staff rates'!$A$13:$A$15,0))/working_days*(1+loading_factor),"N/A"))) -> 526.3157895 | H29: =IF(scenario_choice=1,'Development days'!L57,IF(scenario_choice=2,'Development days'!M57,IF(scenario_choice=3,'Development days'!N57,IF(scenario_choice=4,'Development days'!O57,'Development days'!P57)))) -> N/A | I29: =IF(scenario_choice=1,'Development days'!Q57,IF(scenario_choice=2,'Development days'!R57,IF(scenario_choice=3,'Development days'!S57,IF(scenario_choice=4,'Development days'!T57,'Development days'!U57)))) -> N/A | J29: =IF(scenario_choice=1,'Development days'!V57,IF(scenario_choice=2,'Development days'!W57,IF(scenario_choice=3,'Development days'!X57,IF(scenario_choice=4,'Development days'!Y57,'Development days'!Z57)))) -> 14 | K29: 7368.421053 | L29: ='Development days'!AA57 -> No | M29: =IF(L29="Yes",K29*'Salary . staff rates'!$B$34,0) -> 0
C30: 4.3 | D30: Support MNP OSG implementation activities, including providing readiness assessment, and progress reviews | E30: =IF(scenario_choice=1,'Development days'!B58,IF(scenario_choice=2,'Development days'!C58,IF(scenario_choice=3,'Development days'!D58,IF(scenario_choice=4,'Development days'!E58,'Development days'!F58)))) -> Project management | F30: =IF(scenario_choice=1,'Development days'!G58,IF(scenario_choice=2,'Development days'!H58,IF(scenario_choice=3,'Development days'!I58,IF(scenario_choice=4,'Development days'!J58,'Development days'!K58)))) -> Middle manager | G30: =IF(E30="Employee",(INDEX('Salary . staff rates'!$B$6:$B$10,MATCH('Auto-PAC CPS variant'!F30,'Salary . staff rates'!$A$6:$A$10,0)))/working_days*(1+loading_factor),IF(E30="External",(INDEX('Salary . staff rates'!$B$18:$B$22,MATCH('Auto-PAC CPS variant'!F30,'Salary . staff rates'!$A$18:$A$22,0))),IF(E30="Project management",INDEX('Salary . staff rates'!$B$13:$B$15,MATCH('Auto-PAC CPS variant'!F30,'Salary . staff rates'!$A$13:$A$15,0))/working_days*(1+loading_factor),"N/A"))) -> 526.3157895 | H30: =IF(scenario_choice=1,'Development days'!L58,IF(scenario_choice=2,'Development days'!M58,IF(scenario_choice=3,'Development days'!N58,IF(scenario_choice=4,'Development days'!O58,'Development days'!P58)))) -> N/A | I30: =IF(scenario_choice=1,'Development days'!Q58,IF(scenario_choice=2,'Development days'!R58,IF(scenario_choice=3,'Development days'!S58,IF(scenario_choice=4,'Development days'!T58,'Development days'!U58)))) -> N/A | J30: =IF(scenario_choice=1,'Development days'!V58,IF(scenario_choice=2,'Development days'!W58,IF(scenario_choice=3,'Development days'!X58,IF(scenario_choice=4,'Development days'!Y58,'Development days'!Z58)))) -> 16 | K30: 8421.052632 | L30: ='Development days'!AA58 -> No | M30: =IF(L30="Yes",K30*'Salary . staff rates'!$B$34,0) -> 0
A31: 5. Inter-operator testing | B31: End-to-end testing between operators to ensure that changes are compatible, prior to go-live. Asssumed that MNOs will test with all large / medium MVNOs and MVNEs; large / medium MVNOs and MVNEs with some of the other providers in these categories; and small MVNOs will support their MVNE testing | C31: 5.1 | D31: Support MNP OSG definition of testing specifications, scheduling and inter-operator engagement/ management | E31: =IF(scenario_choice=1,'Development days'!B59,IF(scenario_choice=2,'Development days'!C59,IF(scenario_choice=3,'Development days'!D59,IF(scenario_choice=4,'Development days'!E59,'Development days'!F59)))) -> Project management | F31: =IF(scenario_choice=1,'Development days'!G59,IF(scenario_choice=2,'Development days'!H59,IF(scenario_choice=3,'Development days'!I59,IF(scenario_choice=4,'Development days'!J59,'Development days'!K59)))) -> Middle manager | G31: =IF(E31="Employee",(INDEX('Salary . staff rates'!$B$6:$B$10,MATCH('Auto-PAC CPS variant'!F31,'Salary . staff rates'!$A$6:$A$10,0)))/working_days*(1+loading_factor),IF(E31="External",(INDEX('Salary . staff rates'!$B$18:$B$22,MATCH('Auto-PAC CPS variant'!F31,'Salary . staff rates'!$A$18:$A$22,0))),IF(E31="Project management",INDEX('Salary . staff rates'!$B$13:$B$15,MATCH('Auto-PAC CPS variant'!F31,'Salary . staff rates'!$A$13:$A$15,0))/working_days*(1+loading_factor),"N/A"))) -> 526.3157895 | H31: =IF(scenario_choice=1,'Development days'!L59,IF(scenario_choice=2,'Development days'!M59,IF(scenario_choice=3,'Development days'!N59,IF(scenario_choice=4,'Development days'!O59,'Development days'!P59)))) -> N/A | I31: =IF(scenario_choice=1,'Development days'!Q59,IF(scenario_choice=2,'Development days'!R59,IF(scenario_choice=3,'Development days'!S59,IF(scenario_choice=4,'Development days'!T59,'Development days'!U59)))) -> N/A | J31: =IF(scenario_choice=1,'Development days'!V59,IF(scenario_choice=2,'Development days'!W59,IF(scenario_choice=3,'Development days'!X59,IF(scenario_choice=4,'Development days'!Y59,'Development days'!Z59)))) -> 6 | K31: 3157.894737 | L31: ='Development days'!AA59 -> No | M31: =IF(L31="Yes",K31*'Salary . staff rates'!$B$34,0) -> 0
C32: 5.2 | D32: Participate in inter-operator testing of revised porting functionality and system / process developments | E32: =IF(scenario_choice=1,'Development days'!B60,IF(scenario_choice=2,'Development days'!C60,IF(scenario_choice=3,'Development days'!D60,IF(scenario_choice=4,'Development days'!E60,'Development days'!F60)))) -> Employee | F32: =IF(scenario_choice=1,'Development days'!G60,IF(scenario_choice=2,'Development days'!H60,IF(scenario_choice=3,'Development days'!I60,IF(scenario_choice=4,'Development days'!J60,'Development days'!K60)))) -> IT engineer | G32: =IF(E32="Employee",(INDEX('Salary . staff rates'!$B$6:$B$10,MATCH('Auto-PAC CPS variant'!F32,'Salary . staff rates'!$A$6:$A$10,0)))/working_days*(1+loading_factor),IF(E32="External",(INDEX('Salary . staff rates'!$B$18:$B$22,MATCH('Auto-PAC CPS variant'!F32,'Salary . staff rates'!$A$18:$A$22,0))),IF(E32="Project management",INDEX('Salary . staff rates'!$B$13:$B$15,MATCH('Auto-PAC CPS variant'!F32,'Salary . staff rates'!$A$13:$A$15,0))/working_days*(1+loading_factor),"N/A"))) -> 456.1403509 | H32: =IF(scenario_choice=1,'Development days'!L60,IF(scenario_choice=2,'Development days'!M60,IF(scenario_choice=3,'Development days'!N60,IF(scenario_choice=4,'Development days'!O60,'Development days'!P60)))) -> N/A | I32: =IF(scenario_choice=1,'Development days'!Q60,IF(scenario_choice=2,'Development days'!R60,IF(scenario_choice=3,'Development days'!S60,IF(scenario_choice=4,'Development days'!T60,'Development days'!U60)))) -> N/A | J32: =IF(scenario_choice=1,'Development days'!V60,IF(scenario_choice=2,'Development days'!W60,IF(scenario_choice=3,'Development days'!X60,IF(scenario_choice=4,'Development days'!Y60,'Development days'!Z60)))) -> 35 | K32: 15964.91228 | L32: ='Development days'!AA60 -> No | M32: =IF(L32="Yes",K32*'Salary . staff rates'!$B$34,0) -> 0
C33: 5.3 | D33: Project management resource | E33: =IF(scenario_choice=1,'Development days'!B61,IF(scenario_choice=2,'Development days'!C61,IF(scenario_choice=3,'Development days'!D61,IF(scenario_choice=4,'Development days'!E61,'Development days'!F61)))) -> Project management | F33: =IF(scenario_choice=1,'Development days'!G61,IF(scenario_choice=2,'Development days'!H61,IF(scenario_choice=3,'Development days'!I61,IF(scenario_choice=4,'Development days'!J61,'Development days'!K61)))) -> Middle manager | G33: =IF(E33="Employee",(INDEX('Salary . staff rates'!$B$6:$B$10,MATCH('Auto-PAC CPS variant'!F33,'Salary . staff rates'!$A$6:$A$10,0)))/working_days*(1+loading_factor),IF(E33="External",(INDEX('Salary . staff rates'!$B$18:$B$22,MATCH('Auto-PAC CPS variant'!F33,'Salary . staff rates'!$A$18:$A$22,0))),IF(E33="Project management",INDEX('Salary . staff rates'!$B$13:$B$15,MATCH('Auto-PAC CPS variant'!F33,'Salary . staff rates'!$A$13:$A$15,0))/working_days*(1+loading_factor),"N/A"))) -> 526.3157895 | H33: =IF(scenario_choice=1,'Development days'!L61,IF(scenario_choice=2,'Development days'!M61,IF(scenario_choice=3,'Development days'!N61,IF(scenario_choice=4,'Development days'!O61,'Development days'!P61)))) -> N/A | I33: =IF(scenario_choice=1,'Development days'!Q61,IF(scenario_choice=2,'Development days'!R61,IF(scenario_choice=3,'Development days'!S61,IF(scenario_choice=4,'Development days'!T61,'Development days'!U61)))) -> N/A | J33: =IF(scenario_choice=1,'Development days'!V61,IF(scenario_choice=2,'Development days'!W61,IF(scenario_choice=3,'Development days'!X61,IF(scenario_choice=4,'Development days'!Y61,'Development days'!Z61)))) -> 6 | K33: 3157.894737 | L33: ='Development days'!AA61 -> No | M33: =IF(L33="Yes",K33*'Salary . staff rates'!$B$34,0) -> 0
A34: 6. Training | B34: Ensure that IT system admin, billing system admin and CSA understand implications of new PAC process | C34: 6.1 | D34: Internal impact assessment | E34: =IF(scenario_choice=1,'Development days'!B62,IF(scenario_choice=2,'Development days'!C62,IF(scenario_choice=3,'Development days'!D62,IF(scenario_choice=4,'Development days'!E62,'Development days'!F62)))) -> Employee | F34: =IF(scenario_choice=1,'Development days'!G62,IF(scenario_choice=2,'Development days'!H62,IF(scenario_choice=3,'Development days'!I62,IF(scenario_choice=4,'Development days'!J62,'Development days'!K62)))) -> IT engineer | G34: =IF(E34="Employee",(INDEX('Salary . staff rates'!$B$6:$B$10,MATCH('Auto-PAC CPS variant'!F34,'Salary . staff rates'!$A$6:$A$10,0)))/working_days*(1+loading_factor),IF(E34="External",(INDEX('Salary . staff rates'!$B$18:$B$22,MATCH('Auto-PAC CPS variant'!F34,'Salary . staff rates'!$A$18:$A$22,0))),IF(E34="Project management",INDEX('Salary . staff rates'!$B$13:$B$15,MATCH('Auto-PAC CPS variant'!F34,'Salary . staff rates'!$A$13:$A$15,0))/working_days*(1+loading_factor),"N/A"))) -> 456.1403509 | H34: =IF(scenario_choice=1,'Development days'!L62,IF(scenario_choice=2,'Development days'!M62,IF(scenario_choice=3,'Development days'!N62,IF(scenario_choice=4,'Development days'!O62,'Development days'!P62)))) -> 2 | I34: =IF(scenario_choice=1,'Development days'!Q62,IF(scenario_choice=2,'Development days'!R62,IF(scenario_choice=3,'Development days'!S62,IF(scenario_choice=4,'Development days'!T62,'Development days'!U62)))) -> 7 | J34: =IF(scenario_choice=1,'Development days'!V62,IF(scenario_choice=2,'Development days'!W62,IF(scenario_choice=3,'Development days'!X62,IF(scenario_choice=4,'Development days'!Y62,'Development days'!Z62)))) -> 14 | K34: 6385.964912 | L34: ='Development days'!AA62 -> No | M34: =IF(L34="Yes",K34*'Salary . staff rates'!$B$34,0) -> 0
C35: 6.2 | D35: Develop training materials | E35: =IF(scenario_choice=1,'Development days'!B63,IF(scenario_choice=2,'Development days'!C63,IF(scenario_choice=3,'Development days'!D63,IF(scenario_choice=4,'Development days'!E63,'Development days'!F63)))) -> Employee | F35: =IF(scenario_choice=1,'Development days'!G63,IF(scenario_choice=2,'Development days'!H63,IF(scenario_choice=3,'Development days'!I63,IF(scenario_choice=4,'Development days'!J63,'Development days'!K63)))) -> Training team | G35: =IF(E35="Employee",(INDEX('Salary . staff rates'!$B$6:$B$10,MATCH('Auto-PAC CPS variant'!F35,'Salary . staff rates'!$A$6:$A$10,0)))/working_days*(1+loading_factor),IF(E35="External",(INDEX('Salary . staff rates'!$B$18:$B$22,MATCH('Auto-PAC CPS variant'!F35,'Salary . staff rates'!$A$18:$A$22,0))),IF(E35="Project management",INDEX('Salary . staff rates'!$B$13:$B$15,MATCH('Auto-PAC CPS variant'!F35,'Salary . staff rates'!$A$13:$A$15,0))/working_days*(1+loading_factor),"N/A"))) -> 315.7894737 | H35: =IF(scenario_choice=1,'Development days'!L63,IF(scenario_choice=2,'Development days'!M63,IF(scenario_choice=3,'Development days'!N63,IF(scenario_choice=4,'Development days'!O63,'Development days'!P63)))) -> 8 | I35: =IF(scenario_choice=1,'Development days'!Q63,IF(scenario_choice=2,'Development days'!R63,IF(scenario_choice=3,'Development days'!S63,IF(scenario_choice=4,'Development days'!T63,'Development days'!U63)))) -> 8 | J35: =IF(scenario_choice=1,'Development days'!V63,IF(scenario_choice=2,'Development days'!W63,IF(scenario_choice=3,'Development days'!X63,IF(scenario_choice=4,'Development days'!Y63,'Development days'!Z63)))) -> 64 | K35: 20210.52632 | L35: ='Development days'!AA63 -> No | M35: =IF(L35="Yes",K35*'Salary . staff rates'!$B$34,0) -> 0
C36: 6.3 | D36: Delivery of training | E36: =IF(scenario_choice=1,'Development days'!B64,IF(scenario_choice=2,'Development days'!C64,IF(scenario_choice=3,'Development days'!D64,IF(scenario_choice=4,'Development days'!E64,'Development days'!F64)))) -> Employee | F36: =IF(scenario_choice=1,'Development days'!G64,IF(scenario_choice=2,'Development days'!H64,IF(scenario_choice=3,'Development days'!I64,IF(scenario_choice=4,'Development days'!J64,'Development days'!K64)))) -> Training team | G36: =IF(E36="Employee",(INDEX('Salary . staff rates'!$B$6:$B$10,MATCH('Auto-PAC CPS variant'!F36,'Salary . staff rates'!$A$6:$A$10,0)))/working_days*(1+loading_factor),IF(E36="External",(INDEX('Salary . staff rates'!$B$18:$B$22,MATCH('Auto-PAC CPS variant'!F36,'Salary . staff rates'!$A$18:$A$22,0))),IF(E36="Project management",INDEX('Salary . staff rates'!$B$13:$B$15,MATCH('Auto-PAC CPS variant'!F36,'Salary . staff rates'!$A$13:$A$15,0))/working_days*(1+loading_factor),"N/A"))) -> 315.7894737 | H36: =IF(scenario_choice=1,'Development days'!L64,IF(scenario_choice=2,'Development days'!M64,IF(scenario_choice=3,'Development days'!N64,IF(scenario_choice=4,'Development days'!O64,'Development days'!P64)))) -> 8 | I36: =IF(scenario_choice=1,'Development days'!Q64,IF(scenario_choice=2,'Development days'!R64,IF(scenario_choice=3,'Development days'!S64,IF(scenario_choice=4,'Development days'!T64,'Development days'!U64)))) -> 30 | J36: =IF(scenario_choice=1,'Development days'!V64,IF(scenario_choice=2,'Development days'!W64,IF(scenario_choice=3,'Development days'!X64,IF(scenario_choice=4,'Development days'!Y64,'Development days'!Z64)))) -> 240 | K36: 75789.47368 | L36: ='Development days'!AA64 -> No | M36: =IF(L36="Yes",K36*'Salary . staff rates'!$B$34,0) -> 0
C37: 6.4 | D37: Delivery of training | E37: =IF(scenario_choice=1,'Development days'!B65,IF(scenario_choice=2,'Development days'!C65,IF(scenario_choice=3,'Development days'!D65,IF(scenario_choice=4,'Development days'!E65,'Development days'!F65)))) -> Employee | F37: =IF(scenario_choice=1,'Development days'!G65,IF(scenario_choice=2,'Development days'!H65,IF(scenario_choice=3,'Development days'!I65,IF(scenario_choice=4,'Development days'!J65,'Development days'!K65)))) -> IT engineer | G37: =IF(E37="Employee",(INDEX('Salary . staff rates'!$B$6:$B$10,MATCH('Auto-PAC CPS variant'!F37,'Salary . staff rates'!$A$6:$A$10,0)))/working_days*(1+loading_factor),IF(E37="External",(INDEX('Salary . staff rates'!$B$18:$B$22,MATCH('Auto-PAC CPS variant'!F37,'Salary . staff rates'!$A$18:$A$22,0))),IF(E37="Project management",INDEX('Salary . staff rates'!$B$13:$B$15,MATCH('Auto-PAC CPS variant'!F37,'Salary . staff rates'!$A$13:$A$15,0))/working_days*(1+loading_factor),"N/A"))) -> 456.1403509 | H37: =IF(scenario_choice=1,'Development days'!L65,IF(scenario_choice=2,'Development days'!M65,IF(scenario_choice=3,'Development days'!N65,IF(scenario_choice=4,'Development days'!O65,'Development days'!P65)))) -> 60 | I37: =IF(scenario_choice=1,'Development days'!Q65,IF(scenario_choice=2,'Development days'!R65,IF(scenario_choice=3,'Development days'!S65,IF(scenario_choice=4,'Development days'!T65,'Development days'!U65)))) -> 0.5 | J37: =IF(scenario_choice=1,'Development days'!V65,IF(scenario_choice=2,'Development days'!W65,IF(scenario_choice=3,'Development days'!X65,IF(scenario_choice=4,'Development days'!Y65,'Development days'!Z65)))) -> 30 | K37: 13684.21053 | L37: ='Development days'!AA65 -> No | M37: =IF(L37="Yes",K37*'Salary . staff rates'!$B$34,0) -> 0
E38: =IF(scenario_choice=1,'Development days'!B66,IF(scenario_choice=2,'Development days'!C66,IF(scenario_choice=3,'Development days'!D66,IF(scenario_choice=4,'Development days'!E66,'Development days'!F66)))) -> Employee | F38: =IF(scenario_choice=1,'Development days'!G66,IF(scenario_choice=2,'Development days'!H66,IF(scenario_choice=3,'Development days'!I66,IF(scenario_choice=4,'Development days'!J66,'Development days'!K66)))) -> Billing administrators | G38: =IF(E38="Employee",(INDEX('Salary . staff rates'!$B$6:$B$10,MATCH('Auto-PAC CPS variant'!F38,'Salary . staff rates'!$A$6:$A$10,0)))/working_days*(1+loading_factor),IF(E38="External",(INDEX('Salary . staff rates'!$B$18:$B$22,MATCH('Auto-PAC CPS variant'!F38,'Salary . staff rates'!$A$18:$A$22,0))),IF(E38="Project management",INDEX('Salary . staff rates'!$B$13:$B$15,MATCH('Auto-PAC CPS variant'!F38,'Salary . staff rates'!$A$13:$A$15,0))/working_days*(1+loading_factor),"N/A"))) -> 259.6491228 | H38: =IF(scenario_choice=1,'Development days'!L66,IF(scenario_choice=2,'Development days'!M66,IF(scenario_choice=3,'Development days'!N66,IF(scenario_choice=4,'Development days'!O66,'Development days'!P66)))) -> 30 | I38: =IF(scenario_choice=1,'Development days'!Q66,IF(scenario_choice=2,'Development days'!R66,IF(scenario_choice=3,'Development days'!S66,IF(scenario_choice=4,'Development days'!T66,'Development days'!U66)))) -> 0 | J38: =IF(scenario_choice=1,'Development days'!V66,IF(scenario_choice=2,'Development days'!W66,IF(scenario_choice=3,'Development days'!X66,IF(scenario_choice=4,'Development days'!Y66,'Development days'!Z66)))) -> 0 | K38: 0 | L38: ='Development days'!AA66 -> No | M38: =IF(L38="Yes",K38*'Salary . staff rates'!$B$34,0) -> 0
E39: =IF(scenario_choice=1,'Development days'!B67,IF(scenario_choice=2,'Development days'!C67,IF(scenario_choice=3,'Development days'!D67,IF(scenario_choice=4,'Development days'!E67,'Development days'!F67)))) -> Employee | F39: =IF(scenario_choice=1,'Development days'!G67,IF(scenario_choice=2,'Development days'!H67,IF(scenario_choice=3,'Development days'!I67,IF(scenario_choice=4,'Development days'!J67,'Development days'!K67)))) -> CSAs | G39: =IF(E39="Employee",(INDEX('Salary . staff rates'!$B$6:$B$10,MATCH('Auto-PAC CPS variant'!F39,'Salary . staff rates'!$A$6:$A$10,0)))/working_days*(1+loading_factor),IF(E39="External",(INDEX('Salary . staff rates'!$B$18:$B$22,MATCH('Auto-PAC CPS variant'!F39,'Salary . staff rates'!$A$18:$A$22,0))),IF(E39="Project management",INDEX('Salary . staff rates'!$B$13:$B$15,MATCH('Auto-PAC CPS variant'!F39,'Salary . staff rates'!$A$13:$A$15,0))/working_days*(1+loading_factor),"N/A"))) -> 140.5988406 | H39: =IF(scenario_choice=1,'Development days'!L67,IF(scenario_choice=2,'Development days'!M67,IF(scenario_choice=3,'Development days'!N67,IF(scenario_choice=4,'Development days'!O67,'Development days'!P67)))) -> 10400 | I39: =IF(scenario_choice=1,'Development days'!Q67,IF(scenario_choice=2,'Development days'!R67,IF(scenario_choice=3,'Development days'!S67,IF(scenario_choice=4,'Development days'!T67,'Development days'!U67)))) -> 0.25 | J39: =IF(scenario_choice=1,'Development days'!V67,IF(scenario_choice=2,'Development days'!W67,IF(scenario_choice=3,'Development days'!X67,IF(scenario_choice=4,'Development days'!Y67,'Development days'!Z67)))) -> 2600 | K39: 365556.9855 | L39: ='Development days'!AA67 -> No | M39: =IF(L39="Yes",K39*'Salary . staff rates'!$B$34,0) -> 0
A41: MNOs and MVNEs/MVNAs
A42: 7. Establish Small MVNO Account Management Portal | B42: Establish or update small MVNO Account Management portal to enable Small MVNOs to register customer account information (contract start date, duration, monthly charge & account type - business or residential), in order to generate real-time ETC / credit balance on their behalf, and also to enable Small MVNOs to offer basic online account management functionality to customers/ subscribers to view usage and contract information | C42: 7.1 | D42: Internal impact assessment | E42: =IF(scenario_choice=1,'Development days'!B70,IF(scenario_choice=2,'Development days'!C70,IF(scenario_choice=3,'Development days'!D70,IF(scenario_choice=4,'Development days'!E70,'Development days'!F70)))) -> Employee | F42: =IF(scenario_choice=1,'Development days'!G70,IF(scenario_choice=2,'Development days'!H70,IF(scenario_choice=3,'Development days'!I70,IF(scenario_choice=4,'Development days'!J70,'Development days'!K70)))) -> IT engineer | G42: =IF(E42="Employee",(INDEX('Salary . staff rates'!$B$6:$B$10,MATCH('Auto-PAC CPS variant'!F42,'Salary . staff rates'!$A$6:$A$10,0)))/working_days*(1+loading_factor),IF(E42="External",(INDEX('Salary . staff rates'!$B$18:$B$22,MATCH('Auto-PAC CPS variant'!F42,'Salary . staff rates'!$A$18:$A$22,0))),IF(E42="Project management",INDEX('Salary . staff rates'!$B$13:$B$15,MATCH('Auto-PAC CPS variant'!F42,'Salary . staff rates'!$A$13:$A$15,0))/working_days*(1+loading_factor),"N/A"))) -> 456.1403509 | H42: =IF(scenario_choice=1,'Development days'!L70,IF(scenario_choice=2,'Development days'!M70,IF(scenario_choice=3,'Development days'!N70,IF(scenario_choice=4,'Development days'!O70,'Development days'!P70)))) -> N/A | I42: =IF(scenario_choice=1,'Development days'!Q70,IF(scenario_choice=2,'Development days'!R70,IF(scenario_choice=3,'Development days'!S70,IF(scenario_choice=4,'Development days'!T70,'Development days'!U70)))) -> N/A | J42: =IF(scenario_choice=1,'Development days'!V70,IF(scenario_choice=2,'Development days'!W70,IF(scenario_choice=3,'Development days'!X70,IF(scenario_choice=4,'Development days'!Y70,'Development days'!Z70)))) -> 5 | K42: 2280.701754 | L42: ='Development days'!AA70 -> No | M42: =IF(J42="N/A",0,IF(L42="Yes",K42*'Salary . staff rates'!$B$34,0)) -> 0
C43: 7.2 | D43: CRM system functionality development - account information registration and management | E43: =IF(scenario_choice=1,'Development days'!B71,IF(scenario_choice=2,'Development days'!C71,IF(scenario_choice=3,'Development days'!D71,IF(scenario_choice=4,'Development days'!E71,'Development days'!F71)))) -> External | F43: =IF(scenario_choice=1,'Development days'!G71,IF(scenario_choice=2,'Development days'!H71,IF(scenario_choice=3,'Development days'!I71,IF(scenario_choice=4,'Development days'!J71,'Development days'!K71)))) -> MNO CRM vendor | G43: =IF(E43="Employee",(INDEX('Salary . staff rates'!$B$6:$B$10,MATCH('Auto-PAC CPS variant'!F43,'Salary . staff rates'!$A$6:$A$10,0)))/working_days*(1+loading_factor),IF(E43="External",(INDEX('Salary . staff rates'!$B$18:$B$22,MATCH('Auto-PAC CPS variant'!F43,'Salary . staff rates'!$A$18:$A$22,0))),IF(E43="Project management",INDEX('Salary . staff rates'!$B$13:$B$15,MATCH('Auto-PAC CPS variant'!F43,'Salary . staff rates'!$A$13:$A$15,0))/working_days*(1+loading_factor),"N/A"))) -> 750 | H43: =IF(scenario_choice=1,'Development days'!L71,IF(scenario_choice=2,'Development days'!M71,IF(scenario_choice=3,'Development days'!N71,IF(scenario_choice=4,'Development days'!O71,'Development days'!P71)))) -> N/A | I43: =IF(scenario_choice=1,'Development days'!Q71,IF(scenario_choice=2,'Development days'!R71,IF(scenario_choice=3,'Development days'!S71,IF(scenario_choice=4,'Development days'!T71,'Development days'!U71)))) -> N/A | J43: =IF(scenario_choice=1,'Development days'!V71,IF(scenario_choice=2,'Development days'!W71,IF(scenario_choice=3,'Development days'!X71,IF(scenario_choice=4,'Development days'!Y71,'Development days'!Z71)))) -> 40 | K43: 30000 | L43: ='Development days'!AA71 -> Yes | M43: =IF(J43="N/A",0,IF(L43="Yes",K43*'Salary . staff rates'!$B$34,0)) -> 4500
C44: 7.3 | D44: Acceptance testing / handover to live operation, including testing with Small MVNO clients - assume 20 Small MVNOs | E44: =IF(scenario_choice=1,'Development days'!B72,IF(scenario_choice=2,'Development days'!C72,IF(scenario_choice=3,'Development days'!D72,IF(scenario_choice=4,'Development days'!E72,'Development days'!F72)))) -> Employee | F44: =IF(scenario_choice=1,'Development days'!G72,IF(scenario_choice=2,'Development days'!H72,IF(scenario_choice=3,'Development days'!I72,IF(scenario_choice=4,'Development days'!J72,'Development days'!K72)))) -> IT engineer | G44: =IF(E44="Employee",(INDEX('Salary . staff rates'!$B$6:$B$10,MATCH('Auto-PAC CPS variant'!F44,'Salary . staff rates'!$A$6:$A$10,0)))/working_days*(1+loading_factor),IF(E44="External",(INDEX('Salary . staff rates'!$B$18:$B$22,MATCH('Auto-PAC CPS variant'!F44,'Salary . staff rates'!$A$18:$A$22,0))),IF(E44="Project management",INDEX('Salary . staff rates'!$B$13:$B$15,MATCH('Auto-PAC CPS variant'!F44,'Salary . staff rates'!$A$13:$A$15,0))/working_days*(1+loading_factor),"N/A"))) -> 456.1403509 | H44: =IF(scenario_choice=1,'Development days'!L72,IF(scenario_choice=2,'Development days'!M72,IF(scenario_choice=3,'Development days'!N72,IF(scenario_choice=4,'Development days'!O72,'Development days'!P72)))) -> N/A | I44: =IF(scenario_choice=1,'Development days'!Q72,IF(scenario_choice=2,'Development days'!R72,IF(scenario_choice=3,'Development days'!S72,IF(scenario_choice=4,'Development days'!T72,'Development days'!U72)))) -> N/A | J44: =IF(scenario_choice=1,'Development days'!V72,IF(scenario_choice=2,'Development days'!W72,IF(scenario_choice=3,'Development days'!X72,IF(scenario_choice=4,'Development days'!Y72,'Development days'!Z72)))) -> 10 | K44: 4561.403509 | L44: ='Development days'!AA72 -> No | M44: =IF(J44="N/A",0,IF(L44="Yes",K44*'Salary . staff rates'!$B$34,0)) -> 0
C45: 7.4 | D45: Support entry of Small MVNO account data | E45: =IF(scenario_choice=1,'Development days'!B73,IF(scenario_choice=2,'Development days'!C73,IF(scenario_choice=3,'Development days'!D73,IF(scenario_choice=4,'Development days'!E73,'Development days'!F73)))) -> Project management | F45: =IF(scenario_choice=1,'Development days'!G73,IF(scenario_choice=2,'Development days'!H73,IF(scenario_choice=3,'Development days'!I73,IF(scenario_choice=4,'Development days'!J73,'Development days'!K73)))) -> Junior manager | G45: =IF(E45="Employee",(INDEX('Salary . staff rates'!$B$6:$B$10,MATCH('Auto-PAC CPS variant'!F45,'Salary . staff rates'!$A$6:$A$10,0)))/working_days*(1+loading_factor),IF(E45="External",(INDEX('Salary . staff rates'!$B$18:$B$22,MATCH('Auto-PAC CPS variant'!F45,'Salary . staff rates'!$A$18:$A$22,0))),IF(E45="Project management",INDEX('Salary . staff rates'!$B$13:$B$15,MATCH('Auto-PAC CPS variant'!F45,'Salary . staff rates'!$A$13:$A$15,0))/working_days*(1+loading_factor),"N/A"))) -> 421.0526316 | H45: =IF(scenario_choice=1,'Development days'!L73,IF(scenario_choice=2,'Development days'!M73,IF(scenario_choice=3,'Development days'!N73,IF(scenario_choice=4,'Development days'!O73,'Development days'!P73)))) -> N/A | I45: =IF(scenario_choice=1,'Development days'!Q73,IF(scenario_choice=2,'Development days'!R73,IF(scenario_choice=3,'Development days'!S73,IF(scenario_choice=4,'Development days'!T73,'Development days'!U73)))) -> N/A | J45: =IF(scenario_choice=1,'Development days'!V73,IF(scenario_choice=2,'Development days'!W73,IF(scenario_choice=3,'Development days'!X73,IF(scenario_choice=4,'Development days'!Y73,'Development days'!Z73)))) -> 20 | K45: 8421.052632 | L45: ='Development days'!AA73 -> No | M45: =IF(J45="N/A",0,IF(L45="Yes",K45*'Salary . staff rates'!$B$34,0)) -> 0
C46: 7.5 | D46: Audit accuracy & integrity of Small MVNO account data | E46: =IF(scenario_choice=1,'Development days'!B74,IF(scenario_choice=2,'Development days'!C74,IF(scenario_choice=3,'Development days'!D74,IF(scenario_choice=4,'Development days'!E74,'Development days'!F74)))) -> Project management | F46: =IF(scenario_choice=1,'Development days'!G74,IF(scenario_choice=2,'Development days'!H74,IF(scenario_choice=3,'Development days'!I74,IF(scenario_choice=4,'Development days'!J74,'Development days'!K74)))) -> Junior manager | G46: =IF(E46="Employee",(INDEX('Salary . staff rates'!$B$6:$B$10,MATCH('Auto-PAC CPS variant'!F46,'Salary . staff rates'!$A$6:$A$10,0)))/working_days*(1+loading_factor),IF(E46="External",(INDEX('Salary . staff rates'!$B$18:$B$22,MATCH('Auto-PAC CPS variant'!F46,'Salary . staff rates'!$A$18:$A$22,0))),IF(E46="Project management",INDEX('Salary . staff rates'!$B$13:$B$15,MATCH('Auto-PAC CPS variant'!F46,'Salary . staff rates'!$A$13:$A$15,0))/working_days*(1+loading_factor),"N/A"))) -> 421.0526316 | H46: =IF(scenario_choice=1,'Development days'!L74,IF(scenario_choice=2,'Development days'!M74,IF(scenario_choice=3,'Development days'!N74,IF(scenario_choice=4,'Development days'!O74,'Development days'!P74)))) -> N/A | I46: =IF(scenario_choice=1,'Development days'!Q74,IF(scenario_choice=2,'Development days'!R74,IF(scenario_choice=3,'Development days'!S74,IF(scenario_choice=4,'Development days'!T74,'Development days'!U74)))) -> N/A | J46: =IF(scenario_choice=1,'Development days'!V74,IF(scenario_choice=2,'Development days'!W74,IF(scenario_choice=3,'Development days'!X74,IF(scenario_choice=4,'Development days'!Y74,'Development days'!Z74)))) -> 10 | K46: 4210.526316 | L46: ='Development days'!AA74 -> No | M46: =IF(J46="N/A",0,IF(L46="Yes",K46*'Salary . staff rates'!$B$34,0)) -> 0
C47: 7.6 | D47: Project management resource | E47: =IF(scenario_choice=1,'Development days'!B75,IF(scenario_choice=2,'Development days'!C75,IF(scenario_choice=3,'Development days'!D75,IF(scenario_choice=4,'Development days'!E75,'Development days'!F75)))) -> Project management | F47: =IF(scenario_choice=1,'Development days'!G75,IF(scenario_choice=2,'Development days'!H75,IF(scenario_choice=3,'Development days'!I75,IF(scenario_choice=4,'Development days'!J75,'Development days'!K75)))) -> Middle manager | G47: =IF(E47="Employee",(INDEX('Salary . staff rates'!$B$6:$B$10,MATCH('Auto-PAC CPS variant'!F47,'Salary . staff rates'!$A$6:$A$10,0)))/working_days*(1+loading_factor),IF(E47="External",(INDEX('Salary . staff rates'!$B$18:$B$22,MATCH('Auto-PAC CPS variant'!F47,'Salary . staff rates'!$A$18:$A$22,0))),IF(E47="Project management",INDEX('Salary . staff rates'!$B$13:$B$15,MATCH('Auto-PAC CPS variant'!F47,'Salary . staff rates'!$A$13:$A$15,0))/working_days*(1+loading_factor),"N/A"))) -> 526.3157895 | H47: =IF(scenario_choice=1,'Development days'!L75,IF(scenario_choice=2,'Development days'!M75,IF(scenario_choice=3,'Development days'!N75,IF(scenario_choice=4,'Development days'!O75,'Development days'!P75)))) -> N/A | I47: =IF(scenario_choice=1,'Development days'!Q75,IF(scenario_choice=2,'Development days'!R75,IF(scenario_choice=3,'Development days'!S75,IF(scenario_choice=4,'Development days'!T75,'Development days'!U75)))) -> N/A | J47: =IF(scenario_choice=1,'Development days'!V75,IF(scenario_choice=2,'Development days'!W75,IF(scenario_choice=3,'Development days'!X75,IF(scenario_choice=4,'Development days'!Y75,'Development days'!Z75)))) -> 10 | K47: 5263.157895 | L47: ='Development days'!AA75 -> No | M47: =IF(J47="N/A",0,IF(L47="Yes",K47*'Salary . staff rates'!$B$34,0)) -> 0
A49: Small MVNOs
A50: 8. Input customer data into MNO / MVNE CRM portal | B50: Collate & input key customer account parameters for each MVNO customer, ie contract start date, contract duration, monthly contract charge & residential or business product | C50: 8.1 | D50: Collate required customer data | E50: =IF(scenario_choice=1,'Development days'!B78,IF(scenario_choice=2,'Development days'!C78,IF(scenario_choice=3,'Development days'!D78,IF(scenario_choice=4,'Development days'!E78,'Development days'!F78)))) -> N/A | F50: =IF(scenario_choice=1,'Development days'!G78,IF(scenario_choice=2,'Development days'!H78,IF(scenario_choice=3,'Development days'!I78,IF(scenario_choice=4,'Development days'!J78,'Development days'!K78)))) -> N/A | G50: =IF(E50="Employee",(INDEX('Salary . staff rates'!$B$6:$B$10,MATCH('Auto-PAC CPS variant'!F50,'Salary . staff rates'!$A$6:$A$10,0)))/working_days*(1+loading_factor),IF(E50="External",(INDEX('Salary . staff rates'!$B$18:$B$22,MATCH('Auto-PAC CPS variant'!F50,'Salary . staff rates'!$A$18:$A$22,0))),IF(E50="Project management",INDEX('Salary . staff rates'!$B$13:$B$15,MATCH('Auto-PAC CPS variant'!F50,'Salary . staff rates'!$A$13:$A$15,0))/working_days*(1+loading_factor),"N/A"))) -> N/A | H50: =IF(scenario_choice=1,'Development days'!L78,IF(scenario_choice=2,'Development days'!M78,IF(scenario_choice=3,'Development days'!N78,IF(scenario_choice=4,'Development days'!O78,'Development days'!P78)))) -> N/A | I50: =IF(scenario_choice=1,'Development days'!Q78,IF(scenario_choice=2,'Development days'!R78,IF(scenario_choice=3,'Development days'!S78,IF(scenario_choice=4,'Development days'!T78,'Development days'!U78)))) -> N/A | J50: =IF(scenario_choice=1,'Development days'!V78,IF(scenario_choice=2,'Development days'!W78,IF(scenario_choice=3,'Development days'!X78,IF(scenario_choice=4,'Development days'!Y78,'Development days'!Z78)))) -> N/A | L50: ='Development days'!AA78 -> No | M50: =IF(L50="Yes",K50*'Salary . staff rates'!$B$34,0) -> 0
C51: 8.2 | D51: Input required customer data - assume average of 25,000 customers/ accounts uploaded by batch file into MVNA/ MVNE CRM | E51: =IF(scenario_choice=1,'Development days'!B79,IF(scenario_choice=2,'Development days'!C79,IF(scenario_choice=3,'Development days'!D79,IF(scenario_choice=4,'Development days'!E79,'Development days'!F79)))) -> N/A | F51: =IF(scenario_choice=1,'Development days'!G79,IF(scenario_choice=2,'Development days'!H79,IF(scenario_choice=3,'Development days'!I79,IF(scenario_choice=4,'Development days'!J79,'Development days'!K79)))) -> N/A | G51: =IF(E51="Employee",(INDEX('Salary . staff rates'!$B$6:$B$10,MATCH('Auto-PAC CPS variant'!F51,'Salary . staff rates'!$A$6:$A$10,0)))/working_days*(1+loading_factor),IF(E51="External",(INDEX('Salary . staff rates'!$B$18:$B$22,MATCH('Auto-PAC CPS variant'!F51,'Salary . staff rates'!$A$18:$A$22,0))),IF(E51="Project management",INDEX('Salary . staff rates'!$B$13:$B$15,MATCH('Auto-PAC CPS variant'!F51,'Salary . staff rates'!$A$13:$A$15,0))/working_days*(1+loading_factor),"N/A"))) -> N/A | H51: =IF(scenario_choice=1,'Development days'!L79,IF(scenario_choice=2,'Development days'!M79,IF(scenario_choice=3,'Development days'!N79,IF(scenario_choice=4,'Development days'!O79,'Development days'!P79)))) -> N/A | I51: =IF(scenario_choice=1,'Development days'!Q79,IF(scenario_choice=2,'Development days'!R79,IF(scenario_choice=3,'Development days'!S79,IF(scenario_choice=4,'Development days'!T79,'Development days'!U79)))) -> N/A | J51: =IF(scenario_choice=1,'Development days'!V79,IF(scenario_choice=2,'Development days'!W79,IF(scenario_choice=3,'Development days'!X79,IF(scenario_choice=4,'Development days'!Y79,'Development days'!Z79)))) -> N/A | L51: ='Development days'!AA79 -> Yes | M51: =IF(J51="N/A",0,G51*12) -> 0
C52: 8.3 | D52: Validate accuracy of inputted customer data | E52: =IF(scenario_choice=1,'Development days'!B80,IF(scenario_choice=2,'Development days'!C80,IF(scenario_choice=3,'Development days'!D80,IF(scenario_choice=4,'Development days'!E80,'Development days'!F80)))) -> N/A | F52: =IF(scenario_choice=1,'Development days'!G80,IF(scenario_choice=2,'Development days'!H80,IF(scenario_choice=3,'Development days'!I80,IF(scenario_choice=4,'Development days'!J80,'Development days'!K80)))) -> N/A | G52: =IF(E52="Employee",(INDEX('Salary . staff rates'!$B$6:$B$10,MATCH('Auto-PAC CPS variant'!F52,'Salary . staff rates'!$A$6:$A$10,0)))/working_days*(1+loading_factor),IF(E52="External",(INDEX('Salary . staff rates'!$B$18:$B$22,MATCH('Auto-PAC CPS variant'!F52,'Salary . staff rates'!$A$18:$A$22,0))),IF(E52="Project management",INDEX('Salary . staff rates'!$B$13:$B$15,MATCH('Auto-PAC CPS variant'!F52,'Salary . staff rates'!$A$13:$A$15,0))/working_days*(1+loading_factor),"N/A"))) -> N/A | H52: =IF(scenario_choice=1,'Development days'!L80,IF(scenario_choice=2,'Development days'!M80,IF(scenario_choice=3,'Development days'!N80,IF(scenario_choice=4,'Development days'!O80,'Development days'!P80)))) -> N/A | I52: =IF(scenario_choice=1,'Development days'!Q80,IF(scenario_choice=2,'Development days'!R80,IF(scenario_choice=3,'Development days'!S80,IF(scenario_choice=4,'Development days'!T80,'Development days'!U80)))) -> N/A | J52: =IF(scenario_choice=1,'Development days'!V80,IF(scenario_choice=2,'Development days'!W80,IF(scenario_choice=3,'Development days'!X80,IF(scenario_choice=4,'Development days'!Y80,'Development days'!Z80)))) -> N/A | L52: ='Development days'!AA80 -> No | M52: =IF(L52="Yes",K52*'Salary . staff rates'!$B$34,0) -> 0
C53: 8.4 | D53: Project management resource | E53: =IF(scenario_choice=1,'Development days'!B81,IF(scenario_choice=2,'Development days'!C81,IF(scenario_choice=3,'Development days'!D81,IF(scenario_choice=4,'Development days'!E81,'Development days'!F81)))) -> N/A | F53: =IF(scenario_choice=1,'Development days'!G81,IF(scenario_choice=2,'Development days'!H81,IF(scenario_choice=3,'Development days'!I81,IF(scenario_choice=4,'Development days'!J81,'Development days'!K81)))) -> N/A | G53: =IF(E53="Employee",(INDEX('Salary . staff rates'!$B$6:$B$10,MATCH('Auto-PAC CPS variant'!F53,'Salary . staff rates'!$A$6:$A$10,0)))/working_days*(1+loading_factor),IF(E53="External",(INDEX('Salary . staff rates'!$B$18:$B$22,MATCH('Auto-PAC CPS variant'!F53,'Salary . staff rates'!$A$18:$A$22,0))),IF(E53="Project management",INDEX('Salary . staff rates'!$B$13:$B$15,MATCH('Auto-PAC CPS variant'!F53,'Salary . staff rates'!$A$13:$A$15,0))/working_days*(1+loading_factor),"N/A"))) -> N/A | H53: =IF(scenario_choice=1,'Development days'!L81,IF(scenario_choice=2,'Development days'!M81,IF(scenario_choice=3,'Development days'!N81,IF(scenario_choice=4,'Development days'!O81,'Development days'!P81)))) -> N/A | I53: =IF(scenario_choice=1,'Development days'!Q81,IF(scenario_choice=2,'Development days'!R81,IF(scenario_choice=3,'Development days'!S81,IF(scenario_choice=4,'Development days'!T81,'Development days'!U81)))) -> N/A | J53: =IF(scenario_choice=1,'Development days'!V81,IF(scenario_choice=2,'Development days'!W81,IF(scenario_choice=3,'Development days'!X81,IF(scenario_choice=4,'Development days'!Y81,'Development days'!Z81)))) -> N/A | L53: ='Development days'!AA81 -> No | M53: =IF(L53="Yes",K53*'Salary . staff rates'!$B$34,0) -> 0
A55: Activities related to CPS and central ported number database (CPND)
A57: Routing operators only (assume all MNOs, 6 large MVNOs, 6 MVNE/MVNAs)
A58: 9. Central ported number database | B58: Develop, set-up & configure central Ported Number Database | C58: 9.1 | D58: Internal impact assessment | E58: =IF(scenario_choice=1,'Development days'!B86,IF(scenario_choice=2,'Development days'!C86,IF(scenario_choice=3,'Development days'!D86,IF(scenario_choice=4,'Development days'!E86,'Development days'!F86)))) -> Employee | F58: =IF(scenario_choice=1,'Development days'!G86,IF(scenario_choice=2,'Development days'!H86,IF(scenario_choice=3,'Development days'!I86,IF(scenario_choice=4,'Development days'!J86,'Development days'!K86)))) -> IT engineer | G58: =IF(E58="Employee",(INDEX('Salary . staff rates'!$B$6:$B$10,MATCH('Auto-PAC CPS variant'!F58,'Salary . staff rates'!$A$6:$A$10,0)))/working_days*(1+loading_factor),IF(E58="External",(INDEX('Salary . staff rates'!$B$18:$B$22,MATCH('Auto-PAC CPS variant'!F58,'Salary . staff rates'!$A$18:$A$22,0))),IF(E58="Project management",INDEX('Salary . staff rates'!$B$13:$B$15,MATCH('Auto-PAC CPS variant'!F58,'Salary . staff rates'!$A$13:$A$15,0))/working_days*(1+loading_factor),"N/A"))) -> 456.1403509 | H58: =IF(scenario_choice=1,'Development days'!L86,IF(scenario_choice=2,'Development days'!M86,IF(scenario_choice=3,'Development days'!N86,IF(scenario_choice=4,'Development days'!O86,'Development days'!P86)))) -> N/A | I58: =IF(scenario_choice=1,'Development days'!Q86,IF(scenario_choice=2,'Development days'!R86,IF(scenario_choice=3,'Development days'!S86,IF(scenario_choice=4,'Development days'!T86,'Development days'!U86)))) -> N/A | J58: =IF(scenario_choice=1,'Development days'!V86,IF(scenario_choice=2,'Development days'!W86,IF(scenario_choice=3,'Development days'!X86,IF(scenario_choice=4,'Development days'!Y86,'Development days'!Z86)))) -> 5 | K58: 2280.701754 | L58: ='Development days'!AA86 -> No | M58: =IF(L58="Yes",K58*'Salary . staff rates'!$B$34,0) -> 0
C59: 9.2 | D59: Collate, analyse and cleanse ported number data from MNP onward routing data | E59: =IF(scenario_choice=1,'Development days'!B87,IF(scenario_choice=2,'Development days'!C87,IF(scenario_choice=3,'Development days'!D87,IF(scenario_choice=4,'Development days'!E87,'Development days'!F87)))) -> Employee | F59: =IF(scenario_choice=1,'Development days'!G87,IF(scenario_choice=2,'Development days'!H87,IF(scenario_choice=3,'Development days'!I87,IF(scenario_choice=4,'Development days'!J87,'Development days'!K87)))) -> IT engineer | G59: =IF(E59="Employee",(INDEX('Salary . staff rates'!$B$6:$B$10,MATCH('Auto-PAC CPS variant'!F59,'Salary . staff rates'!$A$6:$A$10,0)))/working_days*(1+loading_factor),IF(E59="External",(INDEX('Salary . staff rates'!$B$18:$B$22,MATCH('Auto-PAC CPS variant'!F59,'Salary . staff rates'!$A$18:$A$22,0))),IF(E59="Project management",INDEX('Salary . staff rates'!$B$13:$B$15,MATCH('Auto-PAC CPS variant'!F59,'Salary . staff rates'!$A$13:$A$15,0))/working_days*(1+loading_factor),"N/A"))) -> 456.1403509 | H59: =IF(scenario_choice=1,'Development days'!L87,IF(scenario_choice=2,'Development days'!M87,IF(scenario_choice=3,'Development days'!N87,IF(scenario_choice=4,'Development days'!O87,'Development days'!P87)))) -> N/A | I59: =IF(scenario_choice=1,'Development days'!Q87,IF(scenario_choice=2,'Development days'!R87,IF(scenario_choice=3,'Development days'!S87,IF(scenario_choice=4,'Development days'!T87,'Development days'!U87)))) -> N/A | J59: =IF(scenario_choice=1,'Development days'!V87,IF(scenario_choice=2,'Development days'!W87,IF(scenario_choice=3,'Development days'!X87,IF(scenario_choice=4,'Development days'!Y87,'Development days'!Z87)))) -> 50 | K59: 22807.01754 | L59: ='Development days'!AA87 -> No | M59: =IF(L59="Yes",K59*'Salary . staff rates'!$B$34,0) -> 0
E60: =IF(scenario_choice=1,'Development days'!B88,IF(scenario_choice=2,'Development days'!C88,IF(scenario_choice=3,'Development days'!D88,IF(scenario_choice=4,'Development days'!E88,'Development days'!F88)))) -> Project management | F60: =IF(scenario_choice=1,'Development days'!G88,IF(scenario_choice=2,'Development days'!H88,IF(scenario_choice=3,'Development days'!I88,IF(scenario_choice=4,'Development days'!J88,'Development days'!K88)))) -> Middle manager | G60: =IF(E60="Employee",(INDEX('Salary . staff rates'!$B$6:$B$10,MATCH('Auto-PAC CPS variant'!F60,'Salary . staff rates'!$A$6:$A$10,0)))/working_days*(1+loading_factor),IF(E60="External",(INDEX('Salary . staff rates'!$B$18:$B$22,MATCH('Auto-PAC CPS variant'!F60,'Salary . staff rates'!$A$18:$A$22,0))),IF(E60="Project management",INDEX('Salary . staff rates'!$B$13:$B$15,MATCH('Auto-PAC CPS variant'!F60,'Salary . staff rates'!$A$13:$A$15,0))/working_days*(1+loading_factor),"N/A"))) -> 526.3157895 | H60: =IF(scenario_choice=1,'Development days'!L88,IF(scenario_choice=2,'Development days'!M88,IF(scenario_choice=3,'Development days'!N88,IF(scenario_choice=4,'Development days'!O88,'Development days'!P88)))) -> N/A | I60: =IF(scenario_choice=1,'Development days'!Q88,IF(scenario_choice=2,'Development days'!R88,IF(scenario_choice=3,'Development days'!S88,IF(scenario_choice=4,'Development days'!T88,'Development days'!U88)))) -> N/A | J60: =IF(scenario_choice=1,'Development days'!V88,IF(scenario_choice=2,'Development days'!W88,IF(scenario_choice=3,'Development days'!X88,IF(scenario_choice=4,'Development days'!Y88,'Development days'!Z88)))) -> 5 | K60: 2631.578947 | L60: ='Development days'!AA88 -> No | M60: =IF(L60="Yes",K60*'Salary . staff rates'!$B$34,0) -> 0
C61: 9.3 | D61: Upload ported number data to CPS and support CPS consolidation and data cleanse. | E61: =IF(scenario_choice=1,'Development days'!B89,IF(scenario_choice=2,'Development days'!C89,IF(scenario_choice=3,'Development days'!D89,IF(scenario_choice=4,'Development days'!E89,'Development days'!F89)))) -> Employee | F61: =IF(scenario_choice=1,'Development days'!G89,IF(scenario_choice=2,'Development days'!H89,IF(scenario_choice=3,'Development days'!I89,IF(scenario_choice=4,'Development days'!J89,'Development days'!K89)))) -> IT engineer | G61: =IF(E61="Employee",(INDEX('Salary . staff rates'!$B$6:$B$10,MATCH('Auto-PAC CPS variant'!F61,'Salary . staff rates'!$A$6:$A$10,0)))/working_days*(1+loading_factor),IF(E61="External",(INDEX('Salary . staff rates'!$B$18:$B$22,MATCH('Auto-PAC CPS variant'!F61,'Salary . staff rates'!$A$18:$A$22,0))),IF(E61="Project management",INDEX('Salary . staff rates'!$B$13:$B$15,MATCH('Auto-PAC CPS variant'!F61,'Salary . staff rates'!$A$13:$A$15,0))/working_days*(1+loading_factor),"N/A"))) -> 456.1403509 | H61: =IF(scenario_choice=1,'Development days'!L89,IF(scenario_choice=2,'Development days'!M89,IF(scenario_choice=3,'Development days'!N89,IF(scenario_choice=4,'Development days'!O89,'Development days'!P89)))) -> N/A | I61: =IF(scenario_choice=1,'Development days'!Q89,IF(scenario_choice=2,'Development days'!R89,IF(scenario_choice=3,'Development days'!S89,IF(scenario_choice=4,'Development days'!T89,'Development days'!U89)))) -> N/A | J61: =IF(scenario_choice=1,'Development days'!V89,IF(scenario_choice=2,'Development days'!W89,IF(scenario_choice=3,'Development days'!X89,IF(scenario_choice=4,'Development days'!Y89,'Development days'!Z89)))) -> 30 | K61: 13684.21053 | L61: ='Development days'!AA89 -> No | M61: =IF(L61="Yes",K61*'Salary . staff rates'!$B$34,0) -> 0
E62: =IF(scenario_choice=1,'Development days'!B90,IF(scenario_choice=2,'Development days'!C90,IF(scenario_choice=3,'Development days'!D90,IF(scenario_choice=4,'Development days'!E90,'Development days'!F90)))) -> Project management | F62: =IF(scenario_choice=1,'Development days'!G90,IF(scenario_choice=2,'Development days'!H90,IF(scenario_choice=3,'Development days'!I90,IF(scenario_choice=4,'Development days'!J90,'Development days'!K90)))) -> Middle manager | G62: =IF(E62="Employee",(INDEX('Salary . staff rates'!$B$6:$B$10,MATCH('Auto-PAC CPS variant'!F62,'Salary . staff rates'!$A$6:$A$10,0)))/working_days*(1+loading_factor),IF(E62="External",(INDEX('Salary . staff rates'!$B$18:$B$22,MATCH('Auto-PAC CPS variant'!F62,'Salary . staff rates'!$A$18:$A$22,0))),IF(E62="Project management",INDEX('Salary . staff rates'!$B$13:$B$15,MATCH('Auto-PAC CPS variant'!F62,'Salary . staff rates'!$A$13:$A$15,0))/working_days*(1+loading_factor),"N/A"))) -> 526.3157895 | H62: =IF(scenario_choice=1,'Development days'!L90,IF(scenario_choice=2,'Development days'!M90,IF(scenario_choice=3,'Development days'!N90,IF(scenario_choice=4,'Development days'!O90,'Development days'!P90)))) -> N/A | I62: =IF(scenario_choice=1,'Development days'!Q90,IF(scenario_choice=2,'Development days'!R90,IF(scenario_choice=3,'Development days'!S90,IF(scenario_choice=4,'Development days'!T90,'Development days'!U90)))) -> N/A | J62: =IF(scenario_choice=1,'Development days'!V90,IF(scenario_choice=2,'Development days'!W90,IF(scenario_choice=3,'Development days'!X90,IF(scenario_choice=4,'Development days'!Y90,'Development days'!Z90)))) -> 10 | K62: 5263.157895 | L62: ='Development days'!AA90 -> No | M62: =IF(L62="Yes",K62*'Salary . staff rates'!$B$34,0) -> 0
A63: 10. Notify CPS once routing of porting numbers is updated to GP | B63: Develop functionality to receive routing update broadcast files and generate routing updated messages to the CPS | C63: 10.1 | D63: Internal impact assessment | E63: =IF(scenario_choice=1,'Development days'!B91,IF(scenario_choice=2,'Development days'!C91,IF(scenario_choice=3,'Development days'!D91,IF(scenario_choice=4,'Development days'!E91,'Development days'!F91)))) -> Employee | F63: =IF(scenario_choice=1,'Development days'!G91,IF(scenario_choice=2,'Development days'!H91,IF(scenario_choice=3,'Development days'!I91,IF(scenario_choice=4,'Development days'!J91,'Development days'!K91)))) -> IT engineer | G63: =IF(E63="Employee",(INDEX('Salary . staff rates'!$B$6:$B$10,MATCH('Auto-PAC CPS variant'!F63,'Salary . staff rates'!$A$6:$A$10,0)))/working_days*(1+loading_factor),IF(E63="External",(INDEX('Salary . staff rates'!$B$18:$B$22,MATCH('Auto-PAC CPS variant'!F63,'Salary . staff rates'!$A$18:$A$22,0))),IF(E63="Project management",INDEX('Salary . staff rates'!$B$13:$B$15,MATCH('Auto-PAC CPS variant'!F63,'Salary . staff rates'!$A$13:$A$15,0))/working_days*(1+loading_factor),"N/A"))) -> 456.1403509 | H63: =IF(scenario_choice=1,'Development days'!L91,IF(scenario_choice=2,'Development days'!M91,IF(scenario_choice=3,'Development days'!N91,IF(scenario_choice=4,'Development days'!O91,'Development days'!P91)))) -> N/A | I63: =IF(scenario_choice=1,'Development days'!Q91,IF(scenario_choice=2,'Development days'!R91,IF(scenario_choice=3,'Development days'!S91,IF(scenario_choice=4,'Development days'!T91,'Development days'!U91)))) -> N/A | J63: =IF(scenario_choice=1,'Development days'!V91,IF(scenario_choice=2,'Development days'!W91,IF(scenario_choice=3,'Development days'!X91,IF(scenario_choice=4,'Development days'!Y91,'Development days'!Z91)))) -> 12 | K63: 5473.684211 | L63: ='Development days'!AA91 -> No | M63: =IF(J63="N/A",0,IF(L63="Yes",K63*'Salary . staff rates'!$B$34,0)) -> 0
C64: 10.2 | D64: Porting portal/ provisioning system functionality development to receive routing update messages and process routing changes | E64: =IF(scenario_choice=1,'Development days'!B92,IF(scenario_choice=2,'Development days'!C92,IF(scenario_choice=3,'Development days'!D92,IF(scenario_choice=4,'Development days'!E92,'Development days'!F92)))) -> External | F64: =IF(scenario_choice=1,'Development days'!G92,IF(scenario_choice=2,'Development days'!H92,IF(scenario_choice=3,'Development days'!I92,IF(scenario_choice=4,'Development days'!J92,'Development days'!K92)))) -> MNO CRM vendor | G64: =IF(E64="Employee",(INDEX('Salary . staff rates'!$B$6:$B$10,MATCH('Auto-PAC CPS variant'!F64,'Salary . staff rates'!$A$6:$A$10,0)))/working_days*(1+loading_factor),IF(E64="External",(INDEX('Salary . staff rates'!$B$18:$B$22,MATCH('Auto-PAC CPS variant'!F64,'Salary . staff rates'!$A$18:$A$22,0))),IF(E64="Project management",INDEX('Salary . staff rates'!$B$13:$B$15,MATCH('Auto-PAC CPS variant'!F64,'Salary . staff rates'!$A$13:$A$15,0))/working_days*(1+loading_factor),"N/A"))) -> 750 | H64: =IF(scenario_choice=1,'Development days'!L92,IF(scenario_choice=2,'Development days'!M92,IF(scenario_choice=3,'Development days'!N92,IF(scenario_choice=4,'Development days'!O92,'Development days'!P92)))) -> N/A | I64: =IF(scenario_choice=1,'Development days'!Q92,IF(scenario_choice=2,'Development days'!R92,IF(scenario_choice=3,'Development days'!S92,IF(scenario_choice=4,'Development days'!T92,'Development days'!U92)))) -> N/A | J64: =IF(scenario_choice=1,'Development days'!V92,IF(scenario_choice=2,'Development days'!W92,IF(scenario_choice=3,'Development days'!X92,IF(scenario_choice=4,'Development days'!Y92,'Development days'!Z92)))) -> 125 | K64: 93750 | L64: ='Development days'!AA92 -> Yes | M64: =IF(J64="N/A",0,IF(L64="Yes",K64*'Salary . staff rates'!$B$34,0)) -> 14062.5
C65: 10.3 | D65: Porting portal/ provisioning system functionality development to generate and send routing updated messages to the CPS | E65: =IF(scenario_choice=1,'Development days'!B93,IF(scenario_choice=2,'Development days'!C93,IF(scenario_choice=3,'Development days'!D93,IF(scenario_choice=4,'Development days'!E93,'Development days'!F93)))) -> External | F65: =IF(scenario_choice=1,'Development days'!G93,IF(scenario_choice=2,'Development days'!H93,IF(scenario_choice=3,'Development days'!I93,IF(scenario_choice=4,'Development days'!J93,'Development days'!K93)))) -> MNO CRM vendor | G65: =IF(E65="Employee",(INDEX('Salary . staff rates'!$B$6:$B$10,MATCH('Auto-PAC CPS variant'!F65,'Salary . staff rates'!$A$6:$A$10,0)))/working_days*(1+loading_factor),IF(E65="External",(INDEX('Salary . staff rates'!$B$18:$B$22,MATCH('Auto-PAC CPS variant'!F65,'Salary . staff rates'!$A$18:$A$22,0))),IF(E65="Project management",INDEX('Salary . staff rates'!$B$13:$B$15,MATCH('Auto-PAC CPS variant'!F65,'Salary . staff rates'!$A$13:$A$15,0))/working_days*(1+loading_factor),"N/A"))) -> 750 | H65: =IF(scenario_choice=1,'Development days'!L93,IF(scenario_choice=2,'Development days'!M93,IF(scenario_choice=3,'Development days'!N93,IF(scenario_choice=4,'Development days'!O93,'Development days'!P93)))) -> N/A | I65: =IF(scenario_choice=1,'Development days'!Q93,IF(scenario_choice=2,'Development days'!R93,IF(scenario_choice=3,'Development days'!S93,IF(scenario_choice=4,'Development days'!T93,'Development days'!U93)))) -> N/A | J65: =IF(scenario_choice=1,'Development days'!V93,IF(scenario_choice=2,'Development days'!W93,IF(scenario_choice=3,'Development days'!X93,IF(scenario_choice=4,'Development days'!Y93,'Development days'!Z93)))) -> 40 | K65: 30000 | L65: ='Development days'!AA93 -> Yes | M65: =IF(J65="N/A",0,IF(L65="Yes",K65*'Salary . staff rates'!$B$34,0)) -> 4500
C66: 10.4 | D66: Acceptance testing / handover to live operation, including testing with CPS and other providers / block operators / routing operators | E66: =IF(scenario_choice=1,'Development days'!B94,IF(scenario_choice=2,'Development days'!C94,IF(scenario_choice=3,'Development days'!D94,IF(scenario_choice=4,'Development days'!E94,'Development days'!F94)))) -> Employee | F66: =IF(scenario_choice=1,'Development days'!G94,IF(scenario_choice=2,'Development days'!H94,IF(scenario_choice=3,'Development days'!I94,IF(scenario_choice=4,'Development days'!J94,'Development days'!K94)))) -> IT engineer | G66: =IF(E66="Employee",(INDEX('Salary . staff rates'!$B$6:$B$10,MATCH('Auto-PAC CPS variant'!F66,'Salary . staff rates'!$A$6:$A$10,0)))/working_days*(1+loading_factor),IF(E66="External",(INDEX('Salary . staff rates'!$B$18:$B$22,MATCH('Auto-PAC CPS variant'!F66,'Salary . staff rates'!$A$18:$A$22,0))),IF(E66="Project management",INDEX('Salary . staff rates'!$B$13:$B$15,MATCH('Auto-PAC CPS variant'!F66,'Salary . staff rates'!$A$13:$A$15,0))/working_days*(1+loading_factor),"N/A"))) -> 456.1403509 | H66: =IF(scenario_choice=1,'Development days'!L94,IF(scenario_choice=2,'Development days'!M94,IF(scenario_choice=3,'Development days'!N94,IF(scenario_choice=4,'Development days'!O94,'Development days'!P94)))) -> N/A | I66: =IF(scenario_choice=1,'Development days'!Q94,IF(scenario_choice=2,'Development days'!R94,IF(scenario_choice=3,'Development days'!S94,IF(scenario_choice=4,'Development days'!T94,'Development days'!U94)))) -> N/A | J66: =IF(scenario_choice=1,'Development days'!V94,IF(scenario_choice=2,'Development days'!W94,IF(scenario_choice=3,'Development days'!X94,IF(scenario_choice=4,'Development days'!Y94,'Development days'!Z94)))) -> 45 | K66: 20526.31579 | L66: ='Development days'!AA94 -> No | M66: =IF(J66="N/A",0,IF(L66="Yes",K66*'Salary . staff rates'!$B$34,0)) -> 0
C67: 10.5 | D67: Project management resource | E67: =IF(scenario_choice=1,'Development days'!B95,IF(scenario_choice=2,'Development days'!C95,IF(scenario_choice=3,'Development days'!D95,IF(scenario_choice=4,'Development days'!E95,'Development days'!F95)))) -> Project management | F67: =IF(scenario_choice=1,'Development days'!G95,IF(scenario_choice=2,'Development days'!H95,IF(scenario_choice=3,'Development days'!I95,IF(scenario_choice=4,'Development days'!J95,'Development days'!K95)))) -> Middle manager | G67: =IF(E67="Employee",(INDEX('Salary . staff rates'!$B$6:$B$10,MATCH('Auto-PAC CPS variant'!F67,'Salary . staff rates'!$A$6:$A$10,0)))/working_days*(1+loading_factor),IF(E67="External",(INDEX('Salary . staff rates'!$B$18:$B$22,MATCH('Auto-PAC CPS variant'!F67,'Salary . staff rates'!$A$18:$A$22,0))),IF(E67="Project management",INDEX('Salary . staff rates'!$B$13:$B$15,MATCH('Auto-PAC CPS variant'!F67,'Salary . staff rates'!$A$13:$A$15,0))/working_days*(1+loading_factor),"N/A"))) -> 526.3157895 | H67: =IF(scenario_choice=1,'Development days'!L95,IF(scenario_choice=2,'Development days'!M95,IF(scenario_choice=3,'Development days'!N95,IF(scenario_choice=4,'Development days'!O95,'Development days'!P95)))) -> N/A | I67: =IF(scenario_choice=1,'Development days'!Q95,IF(scenario_choice=2,'Development days'!R95,IF(scenario_choice=3,'Development days'!S95,IF(scenario_choice=4,'Development days'!T95,'Development days'!U95)))) -> N/A | J67: =IF(scenario_choice=1,'Development days'!V95,IF(scenario_choice=2,'Development days'!W95,IF(scenario_choice=3,'Development days'!X95,IF(scenario_choice=4,'Development days'!Y95,'Development days'!Z95)))) -> 15 | K67: 7894.736842 | L67: ='Development days'!AA95 -> No | M67: =IF(J67="N/A",0,IF(L67="Yes",K67*'Salary . staff rates'!$B$34,0)) -> 0
A69: Making CPS (and CPND) aware of repatriations - All operators
A70: 11. Repatriations: Inactive ported in number identification | B70: Develop process for identifying inactive ported numbers which have completed LP quarantine process and can be repatriated via CPS | C70: 11.1 | D70: Internal impact assessment | E70: =IF(scenario_choice=1,'Development days'!B98,IF(scenario_choice=2,'Development days'!C98,IF(scenario_choice=3,'Development days'!D98,IF(scenario_choice=4,'Development days'!E98,'Development days'!F98)))) -> Employee | F70: =IF(scenario_choice=1,'Development days'!G98,IF(scenario_choice=2,'Development days'!H98,IF(scenario_choice=3,'Development days'!I98,IF(scenario_choice=4,'Development days'!J98,'Development days'!K98)))) -> IT engineer | G70: =IF(E70="Employee",(INDEX('Salary . staff rates'!$B$6:$B$10,MATCH('Auto-PAC CPS variant'!F70,'Salary . staff rates'!$A$6:$A$10,0)))/working_days*(1+loading_factor),IF(E70="External",(INDEX('Salary . staff rates'!$B$18:$B$22,MATCH('Auto-PAC CPS variant'!F70,'Salary . staff rates'!$A$18:$A$22,0))),IF(E70="Project management",INDEX('Salary . staff rates'!$B$13:$B$15,MATCH('Auto-PAC CPS variant'!F70,'Salary . staff rates'!$A$13:$A$15,0))/working_days*(1+loading_factor),"N/A"))) -> 456.1403509 | H70: =IF(scenario_choice=1,'Development days'!L98,IF(scenario_choice=2,'Development days'!M98,IF(scenario_choice=3,'Development days'!N98,IF(scenario_choice=4,'Development days'!O98,'Development days'!P98)))) -> N/A | I70: =IF(scenario_choice=1,'Development days'!Q98,IF(scenario_choice=2,'Development days'!R98,IF(scenario_choice=3,'Development days'!S98,IF(scenario_choice=4,'Development days'!T98,'Development days'!U98)))) -> N/A | J70: =IF(scenario_choice=1,'Development days'!V98,IF(scenario_choice=2,'Development days'!W98,IF(scenario_choice=3,'Development days'!X98,IF(scenario_choice=4,'Development days'!Y98,'Development days'!Z98)))) -> 12 | K70: 5473.684211 | L70: ='Development days'!AA98 -> No | M70: =IF(L70="Yes",K70*'Salary . staff rates'!$B$34,0) -> 0
C71: 11.2 | D71: CRM system functionality development | E71: =IF(scenario_choice=1,'Development days'!B99,IF(scenario_choice=2,'Development days'!C99,IF(scenario_choice=3,'Development days'!D99,IF(scenario_choice=4,'Development days'!E99,'Development days'!F99)))) -> External | F71: =IF(scenario_choice=1,'Development days'!G99,IF(scenario_choice=2,'Development days'!H99,IF(scenario_choice=3,'Development days'!I99,IF(scenario_choice=4,'Development days'!J99,'Development days'!K99)))) -> MNO CRM vendor | G71: =IF(E71="Employee",(INDEX('Salary . staff rates'!$B$6:$B$10,MATCH('Auto-PAC CPS variant'!F71,'Salary . staff rates'!$A$6:$A$10,0)))/working_days*(1+loading_factor),IF(E71="External",(INDEX('Salary . staff rates'!$B$18:$B$22,MATCH('Auto-PAC CPS variant'!F71,'Salary . staff rates'!$A$18:$A$22,0))),IF(E71="Project management",INDEX('Salary . staff rates'!$B$13:$B$15,MATCH('Auto-PAC CPS variant'!F71,'Salary . staff rates'!$A$13:$A$15,0))/working_days*(1+loading_factor),"N/A"))) -> 750 | H71: =IF(scenario_choice=1,'Development days'!L99,IF(scenario_choice=2,'Development days'!M99,IF(scenario_choice=3,'Development days'!N99,IF(scenario_choice=4,'Development days'!O99,'Development days'!P99)))) -> N/A | I71: =IF(scenario_choice=1,'Development days'!Q99,IF(scenario_choice=2,'Development days'!R99,IF(scenario_choice=3,'Development days'!S99,IF(scenario_choice=4,'Development days'!T99,'Development days'!U99)))) -> N/A | J71: =IF(scenario_choice=1,'Development days'!V99,IF(scenario_choice=2,'Development days'!W99,IF(scenario_choice=3,'Development days'!X99,IF(scenario_choice=4,'Development days'!Y99,'Development days'!Z99)))) -> 25 | K71: 18750 | L71: ='Development days'!AA99 -> Yes | M71: =IF(L71="Yes",K71*'Salary . staff rates'!$B$34,0) -> 2812.5
C72: 11.3 | D72: Business Process Re-design | E72: =IF(scenario_choice=1,'Development days'!B100,IF(scenario_choice=2,'Development days'!C100,IF(scenario_choice=3,'Development days'!D100,IF(scenario_choice=4,'Development days'!E100,'Development days'!F100)))) -> Project management | F72: =IF(scenario_choice=1,'Development days'!G100,IF(scenario_choice=2,'Development days'!H100,IF(scenario_choice=3,'Development days'!I100,IF(scenario_choice=4,'Development days'!J100,'Development days'!K100)))) -> Middle manager | G72: =IF(E72="Employee",(INDEX('Salary . staff rates'!$B$6:$B$10,MATCH('Auto-PAC CPS variant'!F72,'Salary . staff rates'!$A$6:$A$10,0)))/working_days*(1+loading_factor),IF(E72="External",(INDEX('Salary . staff rates'!$B$18:$B$22,MATCH('Auto-PAC CPS variant'!F72,'Salary . staff rates'!$A$18:$A$22,0))),IF(E72="Project management",INDEX('Salary . staff rates'!$B$13:$B$15,MATCH('Auto-PAC CPS variant'!F72,'Salary . staff rates'!$A$13:$A$15,0))/working_days*(1+loading_factor),"N/A"))) -> 526.3157895 | H72: =IF(scenario_choice=1,'Development days'!L100,IF(scenario_choice=2,'Development days'!M100,IF(scenario_choice=3,'Development days'!N100,IF(scenario_choice=4,'Development days'!O100,'Development days'!P100)))) -> N/A | I72: =IF(scenario_choice=1,'Development days'!Q100,IF(scenario_choice=2,'Development days'!R100,IF(scenario_choice=3,'Development days'!S100,IF(scenario_choice=4,'Development days'!T100,'Development days'!U100)))) -> N/A | J72: =IF(scenario_choice=1,'Development days'!V100,IF(scenario_choice=2,'Development days'!W100,IF(scenario_choice=3,'Development days'!X100,IF(scenario_choice=4,'Development days'!Y100,'Development days'!Z100)))) -> 15 | K72: 7894.736842 | L72: ='Development days'!AA100 -> No | M72: =IF(L72="Yes",K72*'Salary . staff rates'!$B$34,0) -> 0
C73: 11.4 | D73: Acceptance testing / handover to live operation | E73: =IF(scenario_choice=1,'Development days'!B101,IF(scenario_choice=2,'Development days'!C101,IF(scenario_choice=3,'Development days'!D101,IF(scenario_choice=4,'Development days'!E101,'Development days'!F101)))) -> Project management | F73: =IF(scenario_choice=1,'Development days'!G101,IF(scenario_choice=2,'Development days'!H101,IF(scenario_choice=3,'Development days'!I101,IF(scenario_choice=4,'Development days'!J101,'Development days'!K101)))) -> Middle manager | G73: =IF(E73="Employee",(INDEX('Salary . staff rates'!$B$6:$B$10,MATCH('Auto-PAC CPS variant'!F73,'Salary . staff rates'!$A$6:$A$10,0)))/working_days*(1+loading_factor),IF(E73="External",(INDEX('Salary . staff rates'!$B$18:$B$22,MATCH('Auto-PAC CPS variant'!F73,'Salary . staff rates'!$A$18:$A$22,0))),IF(E73="Project management",INDEX('Salary . staff rates'!$B$13:$B$15,MATCH('Auto-PAC CPS variant'!F73,'Salary . staff rates'!$A$13:$A$15,0))/working_days*(1+loading_factor),"N/A"))) -> 526.3157895 | H73: =IF(scenario_choice=1,'Development days'!L101,IF(scenario_choice=2,'Development days'!M101,IF(scenario_choice=3,'Development days'!N101,IF(scenario_choice=4,'Development days'!O101,'Development days'!P101)))) -> N/A | I73: =IF(scenario_choice=1,'Development days'!Q101,IF(scenario_choice=2,'Development days'!R101,IF(scenario_choice=3,'Development days'!S101,IF(scenario_choice=4,'Development days'!T101,'Development days'!U101)))) -> N/A | J73: =IF(scenario_choice=1,'Development days'!V101,IF(scenario_choice=2,'Development days'!W101,IF(scenario_choice=3,'Development days'!X101,IF(scenario_choice=4,'Development days'!Y101,'Development days'!Z101)))) -> 20 | K73: 10526.31579 | L73: ='Development days'!AA101 -> No | M73: =IF(L73="Yes",K73*'Salary . staff rates'!$B$34,0) -> 0
C74: 11.5 | D74: Project management resource | E74: =IF(scenario_choice=1,'Development days'!B102,IF(scenario_choice=2,'Development days'!C102,IF(scenario_choice=3,'Development days'!D102,IF(scenario_choice=4,'Development days'!E102,'Development days'!F102)))) -> Project management | F74: =IF(scenario_choice=1,'Development days'!G102,IF(scenario_choice=2,'Development days'!H102,IF(scenario_choice=3,'Development days'!I102,IF(scenario_choice=4,'Development days'!J102,'Development days'!K102)))) -> Middle manager | G74: =IF(E74="Employee",(INDEX('Salary . staff rates'!$B$6:$B$10,MATCH('Auto-PAC CPS variant'!F74,'Salary . staff rates'!$A$6:$A$10,0)))/working_days*(1+loading_factor),IF(E74="External",(INDEX('Salary . staff rates'!$B$18:$B$22,MATCH('Auto-PAC CPS variant'!F74,'Salary . staff rates'!$A$18:$A$22,0))),IF(E74="Project management",INDEX('Salary . staff rates'!$B$13:$B$15,MATCH('Auto-PAC CPS variant'!F74,'Salary . staff rates'!$A$13:$A$15,0))/working_days*(1+loading_factor),"N/A"))) -> 526.3157895 | H74: =IF(scenario_choice=1,'Development days'!L102,IF(scenario_choice=2,'Development days'!M102,IF(scenario_choice=3,'Development days'!N102,IF(scenario_choice=4,'Development days'!O102,'Development days'!P102)))) -> N/A | I74: =IF(scenario_choice=1,'Development days'!Q102,IF(scenario_choice=2,'Development days'!R102,IF(scenario_choice=3,'Development days'!S102,IF(scenario_choice=4,'Development days'!T102,'Development days'!U102)))) -> N/A | J74: =IF(scenario_choice=1,'Development days'!V102,IF(scenario_choice=2,'Development days'!W102,IF(scenario_choice=3,'Development days'!X102,IF(scenario_choice=4,'Development days'!Y102,'Development days'!Z102)))) -> 5 | K74: =IF(J74="N/A","",G74*J74) -> 2631.578947 | L74: ='Development days'!AA102 -> No | M74: =IF(L74="Yes",K74*'Salary . staff rates'!$B$34,0) -> 0
A75: 12. Repatriations: Re-activation of repatriated numbers onto the original customer SIM | B75: Develop process and MVNA/ MVNE provisionig functionality to re-activate repatriated numbers onto the original customer SIMs and cease billing on fraudulently ported account | C75: 12.1 | D75: Internal impact assessment | E75: =IF(scenario_choice=1,'Development days'!B103,IF(scenario_choice=2,'Development days'!C103,IF(scenario_choice=3,'Development days'!D103,IF(scenario_choice=4,'Development days'!E103,'Development days'!F103)))) -> Employee | F75: =IF(scenario_choice=1,'Development days'!G103,IF(scenario_choice=2,'Development days'!H103,IF(scenario_choice=3,'Development days'!I103,IF(scenario_choice=4,'Development days'!J103,'Development days'!K103)))) -> IT engineer | G75: =IF(E75="Employee",(INDEX('Salary . staff rates'!$B$6:$B$10,MATCH('Auto-PAC CPS variant'!F75,'Salary . staff rates'!$A$6:$A$10,0)))/working_days*(1+loading_factor),IF(E75="External",(INDEX('Salary . staff rates'!$B$18:$B$22,MATCH('Auto-PAC CPS variant'!F75,'Salary . staff rates'!$A$18:$A$22,0))),IF(E75="Project management",INDEX('Salary . staff rates'!$B$13:$B$15,MATCH('Auto-PAC CPS variant'!F75,'Salary . staff rates'!$A$13:$A$15,0))/working_days*(1+loading_factor),"N/A"))) -> 456.1403509 | H75: =IF(scenario_choice=1,'Development days'!L103,IF(scenario_choice=2,'Development days'!M103,IF(scenario_choice=3,'Development days'!N103,IF(scenario_choice=4,'Development days'!O103,'Development days'!P103)))) -> N/A | I75: =IF(scenario_choice=1,'Development days'!Q103,IF(scenario_choice=2,'Development days'!R103,IF(scenario_choice=3,'Development days'!S103,IF(scenario_choice=4,'Development days'!T103,'Development days'!U103)))) -> N/A | J75: =IF(scenario_choice=1,'Development days'!V103,IF(scenario_choice=2,'Development days'!W103,IF(scenario_choice=3,'Development days'!X103,IF(scenario_choice=4,'Development days'!Y103,'Development days'!Z103)))) -> 18 | K75: 8210.526316 | L75: ='Development days'!AA103 -> No | M75: =IF(L75="Yes",K75*'Salary . staff rates'!$B$34,0) -> 0
C76: 12.2 | D76: CRM system functionality development | E76: =IF(scenario_choice=1,'Development days'!B104,IF(scenario_choice=2,'Development days'!C104,IF(scenario_choice=3,'Development days'!D104,IF(scenario_choice=4,'Development days'!E104,'Development days'!F104)))) -> External | F76: =IF(scenario_choice=1,'Development days'!G104,IF(scenario_choice=2,'Development days'!H104,IF(scenario_choice=3,'Development days'!I104,IF(scenario_choice=4,'Development days'!J104,'Development days'!K104)))) -> MNO CRM vendor | G76: =IF(E76="Employee",(INDEX('Salary . staff rates'!$B$6:$B$10,MATCH('Auto-PAC CPS variant'!F76,'Salary . staff rates'!$A$6:$A$10,0)))/working_days*(1+loading_factor),IF(E76="External",(INDEX('Salary . staff rates'!$B$18:$B$22,MATCH('Auto-PAC CPS variant'!F76,'Salary . staff rates'!$A$18:$A$22,0))),IF(E76="Project management",INDEX('Salary . staff rates'!$B$13:$B$15,MATCH('Auto-PAC CPS variant'!F76,'Salary . staff rates'!$A$13:$A$15,0))/working_days*(1+loading_factor),"N/A"))) -> 750 | H76: =IF(scenario_choice=1,'Development days'!L104,IF(scenario_choice=2,'Development days'!M104,IF(scenario_choice=3,'Development days'!N104,IF(scenario_choice=4,'Development days'!O104,'Development days'!P104)))) -> N/A | I76: =IF(scenario_choice=1,'Development days'!Q104,IF(scenario_choice=2,'Development days'!R104,IF(scenario_choice=3,'Development days'!S104,IF(scenario_choice=4,'Development days'!T104,'Development days'!U104)))) -> N/A | J76: =IF(scenario_choice=1,'Development days'!V104,IF(scenario_choice=2,'Development days'!W104,IF(scenario_choice=3,'Development days'!X104,IF(scenario_choice=4,'Development days'!Y104,'Development days'!Z104)))) -> 45 | K76: 33750 | L76: ='Development days'!AA104 -> Yes | M76: =IF(L76="Yes",K76*'Salary . staff rates'!$B$34,0) -> 5062.5
C77: 12.3 | D77: Business Process Re-design | E77: =IF(scenario_choice=1,'Development days'!B105,IF(scenario_choice=2,'Development days'!C105,IF(scenario_choice=3,'Development days'!D105,IF(scenario_choice=4,'Development days'!E105,'Development days'!F105)))) -> Project management | F77: =IF(scenario_choice=1,'Development days'!G105,IF(scenario_choice=2,'Development days'!H105,IF(scenario_choice=3,'Development days'!I105,IF(scenario_choice=4,'Development days'!J105,'Development days'!K105)))) -> Middle manager | G77: =IF(E77="Employee",(INDEX('Salary . staff rates'!$B$6:$B$10,MATCH('Auto-PAC CPS variant'!F77,'Salary . staff rates'!$A$6:$A$10,0)))/working_days*(1+loading_factor),IF(E77="External",(INDEX('Salary . staff rates'!$B$18:$B$22,MATCH('Auto-PAC CPS variant'!F77,'Salary . staff rates'!$A$18:$A$22,0))),IF(E77="Project management",INDEX('Salary . staff rates'!$B$13:$B$15,MATCH('Auto-PAC CPS variant'!F77,'Salary . staff rates'!$A$13:$A$15,0))/working_days*(1+loading_factor),"N/A"))) -> 526.3157895 | H77: =IF(scenario_choice=1,'Development days'!L105,IF(scenario_choice=2,'Development days'!M105,IF(scenario_choice=3,'Development days'!N105,IF(scenario_choice=4,'Development days'!O105,'Development days'!P105)))) -> N/A | I77: =IF(scenario_choice=1,'Development days'!Q105,IF(scenario_choice=2,'Development days'!R105,IF(scenario_choice=3,'Development days'!S105,IF(scenario_choice=4,'Development days'!T105,'Development days'!U105)))) -> N/A | J77: =IF(scenario_choice=1,'Development days'!V105,IF(scenario_choice=2,'Development days'!W105,IF(scenario_choice=3,'Development days'!X105,IF(scenario_choice=4,'Development days'!Y105,'Development days'!Z105)))) -> 15 | K77: 7894.736842 | L77: ='Development days'!AA105 -> No | M77: =IF(L77="Yes",K77*'Salary . staff rates'!$B$34,0) -> 0
C78: 12.4 | D78: Acceptance testing / handover to live operation | E78: =IF(scenario_choice=1,'Development days'!B106,IF(scenario_choice=2,'Development days'!C106,IF(scenario_choice=3,'Development days'!D106,IF(scenario_choice=4,'Development days'!E106,'Development days'!F106)))) -> Project management | F78: =IF(scenario_choice=1,'Development days'!G106,IF(scenario_choice=2,'Development days'!H106,IF(scenario_choice=3,'Development days'!I106,IF(scenario_choice=4,'Development days'!J106,'Development days'!K106)))) -> Middle manager | G78: =IF(E78="Employee",(INDEX('Salary . staff rates'!$B$6:$B$10,MATCH('Auto-PAC CPS variant'!F78,'Salary . staff rates'!$A$6:$A$10,0)))/working_days*(1+loading_factor),IF(E78="External",(INDEX('Salary . staff rates'!$B$18:$B$22,MATCH('Auto-PAC CPS variant'!F78,'Salary . staff rates'!$A$18:$A$22,0))),IF(E78="Project management",INDEX('Salary . staff rates'!$B$13:$B$15,MATCH('Auto-PAC CPS variant'!F78,'Salary . staff rates'!$A$13:$A$15,0))/working_days*(1+loading_factor),"N/A"))) -> 526.3157895 | H78: =IF(scenario_choice=1,'Development days'!L106,IF(scenario_choice=2,'Development days'!M106,IF(scenario_choice=3,'Development days'!N106,IF(scenario_choice=4,'Development days'!O106,'Development days'!P106)))) -> N/A | I78: =IF(scenario_choice=1,'Development days'!Q106,IF(scenario_choice=2,'Development days'!R106,IF(scenario_choice=3,'Development days'!S106,IF(scenario_choice=4,'Development days'!T106,'Development days'!U106)))) -> N/A | J78: =IF(scenario_choice=1,'Development days'!V106,IF(scenario_choice=2,'Development days'!W106,IF(scenario_choice=3,'Development days'!X106,IF(scenario_choice=4,'Development days'!Y106,'Development days'!Z106)))) -> 20 | K78: 10526.31579 | L78: ='Development days'!AA106 -> No | M78: =IF(L78="Yes",K78*'Salary . staff rates'!$B$34,0) -> 0
C79: 12.5 | D79: Project management resource | E79: =IF(scenario_choice=1,'Development days'!B107,IF(scenario_choice=2,'Development days'!C107,IF(scenario_choice=3,'Development days'!D107,IF(scenario_choice=4,'Development days'!E107,'Development days'!F107)))) -> Project management | F79: =IF(scenario_choice=1,'Development days'!G107,IF(scenario_choice=2,'Development days'!H107,IF(scenario_choice=3,'Development days'!I107,IF(scenario_choice=4,'Development days'!J107,'Development days'!K107)))) -> Middle manager | G79: =IF(E79="Employee",(INDEX('Salary . staff rates'!$B$6:$B$10,MATCH('Auto-PAC CPS variant'!F79,'Salary . staff rates'!$A$6:$A$10,0)))/working_days*(1+loading_factor),IF(E79="External",(INDEX('Salary . staff rates'!$B$18:$B$22,MATCH('Auto-PAC CPS variant'!F79,'Salary . staff rates'!$A$18:$A$22,0))),IF(E79="Project management",INDEX('Salary . staff rates'!$B$13:$B$15,MATCH('Auto-PAC CPS variant'!F79,'Salary . staff rates'!$A$13:$A$15,0))/working_days*(1+loading_factor),"N/A"))) -> 526.3157895 | H79: =IF(scenario_choice=1,'Development days'!L107,IF(scenario_choice=2,'Development days'!M107,IF(scenario_choice=3,'Development days'!N107,IF(scenario_choice=4,'Development days'!O107,'Development days'!P107)))) -> N/A | I79: =IF(scenario_choice=1,'Development days'!Q107,IF(scenario_choice=2,'Development days'!R107,IF(scenario_choice=3,'Development days'!S107,IF(scenario_choice=4,'Development days'!T107,'Development days'!U107)))) -> N/A | J79: =IF(scenario_choice=1,'Development days'!V107,IF(scenario_choice=2,'Development days'!W107,IF(scenario_choice=3,'Development days'!X107,IF(scenario_choice=4,'Development days'!Y107,'Development days'!Z107)))) -> 10 | K79: 5263.157895 | L79: ='Development days'!AA107 -> No | M79: =IF(L79="Yes",K79*'Salary . staff rates'!$B$34,0) -> 0
A80: 13. Repatriations: Initiation and management of CPS processed repatriation transactions | B80: Develop process to initiate and manage the repatatriation of inactive ported in and fraudulently ported numbers via existing CRM/ Porting systems | C80: 13.1 | D80: Internal impact assessment | E80: =IF(scenario_choice=1,'Development days'!B108,IF(scenario_choice=2,'Development days'!C108,IF(scenario_choice=3,'Development days'!D108,IF(scenario_choice=4,'Development days'!E108,'Development days'!F108)))) -> Employee | F80: =IF(scenario_choice=1,'Development days'!G108,IF(scenario_choice=2,'Development days'!H108,IF(scenario_choice=3,'Development days'!I108,IF(scenario_choice=4,'Development days'!J108,'Development days'!K108)))) -> IT engineer | G80: =IF(E80="Employee",(INDEX('Salary . staff rates'!$B$6:$B$10,MATCH('Auto-PAC CPS variant'!F80,'Salary . staff rates'!$A$6:$A$10,0)))/working_days*(1+loading_factor),IF(E80="External",(INDEX('Salary . staff rates'!$B$18:$B$22,MATCH('Auto-PAC CPS variant'!F80,'Salary . staff rates'!$A$18:$A$22,0))),IF(E80="Project management",INDEX('Salary . staff rates'!$B$13:$B$15,MATCH('Auto-PAC CPS variant'!F80,'Salary . staff rates'!$A$13:$A$15,0))/working_days*(1+loading_factor),"N/A"))) -> 456.1403509 | H80: =IF(scenario_choice=1,'Development days'!L108,IF(scenario_choice=2,'Development days'!M108,IF(scenario_choice=3,'Development days'!N108,IF(scenario_choice=4,'Development days'!O108,'Development days'!P108)))) -> N/A | I80: =IF(scenario_choice=1,'Development days'!Q108,IF(scenario_choice=2,'Development days'!R108,IF(scenario_choice=3,'Development days'!S108,IF(scenario_choice=4,'Development days'!T108,'Development days'!U108)))) -> N/A | J80: =IF(scenario_choice=1,'Development days'!V108,IF(scenario_choice=2,'Development days'!W108,IF(scenario_choice=3,'Development days'!X108,IF(scenario_choice=4,'Development days'!Y108,'Development days'!Z108)))) -> 12 | K80: 5473.684211 | L80: ='Development days'!AA108 -> No | M80: =IF(L80="Yes",K80*'Salary . staff rates'!$B$34,0) -> 0
C81: 13.2 | D81: CRM system functionality development | E81: =IF(scenario_choice=1,'Development days'!B109,IF(scenario_choice=2,'Development days'!C109,IF(scenario_choice=3,'Development days'!D109,IF(scenario_choice=4,'Development days'!E109,'Development days'!F109)))) -> External | F81: =IF(scenario_choice=1,'Development days'!G109,IF(scenario_choice=2,'Development days'!H109,IF(scenario_choice=3,'Development days'!I109,IF(scenario_choice=4,'Development days'!J109,'Development days'!K109)))) -> MNO CRM vendor | G81: =IF(E81="Employee",(INDEX('Salary . staff rates'!$B$6:$B$10,MATCH('Auto-PAC CPS variant'!F81,'Salary . staff rates'!$A$6:$A$10,0)))/working_days*(1+loading_factor),IF(E81="External",(INDEX('Salary . staff rates'!$B$18:$B$22,MATCH('Auto-PAC CPS variant'!F81,'Salary . staff rates'!$A$18:$A$22,0))),IF(E81="Project management",INDEX('Salary . staff rates'!$B$13:$B$15,MATCH('Auto-PAC CPS variant'!F81,'Salary . staff rates'!$A$13:$A$15,0))/working_days*(1+loading_factor),"N/A"))) -> 750 | H81: =IF(scenario_choice=1,'Development days'!L109,IF(scenario_choice=2,'Development days'!M109,IF(scenario_choice=3,'Development days'!N109,IF(scenario_choice=4,'Development days'!O109,'Development days'!P109)))) -> N/A | I81: =IF(scenario_choice=1,'Development days'!Q109,IF(scenario_choice=2,'Development days'!R109,IF(scenario_choice=3,'Development days'!S109,IF(scenario_choice=4,'Development days'!T109,'Development days'!U109)))) -> N/A | J81: =IF(scenario_choice=1,'Development days'!V109,IF(scenario_choice=2,'Development days'!W109,IF(scenario_choice=3,'Development days'!X109,IF(scenario_choice=4,'Development days'!Y109,'Development days'!Z109)))) -> 35 | K81: 26250 | L81: ='Development days'!AA109 -> Yes | M81: =IF(L81="Yes",K81*'Salary . staff rates'!$B$34,0) -> 3937.5
C82: 13.3 | D82: Business Process Re-design | E82: =IF(scenario_choice=1,'Development days'!B110,IF(scenario_choice=2,'Development days'!C110,IF(scenario_choice=3,'Development days'!D110,IF(scenario_choice=4,'Development days'!E110,'Development days'!F110)))) -> Project management | F82: =IF(scenario_choice=1,'Development days'!G110,IF(scenario_choice=2,'Development days'!H110,IF(scenario_choice=3,'Development days'!I110,IF(scenario_choice=4,'Development days'!J110,'Development days'!K110)))) -> Middle manager | G82: =IF(E82="Employee",(INDEX('Salary . staff rates'!$B$6:$B$10,MATCH('Auto-PAC CPS variant'!F82,'Salary . staff rates'!$A$6:$A$10,0)))/working_days*(1+loading_factor),IF(E82="External",(INDEX('Salary . staff rates'!$B$18:$B$22,MATCH('Auto-PAC CPS variant'!F82,'Salary . staff rates'!$A$18:$A$22,0))),IF(E82="Project management",INDEX('Salary . staff rates'!$B$13:$B$15,MATCH('Auto-PAC CPS variant'!F82,'Salary . staff rates'!$A$13:$A$15,0))/working_days*(1+loading_factor),"N/A"))) -> 526.3157895 | H82: =IF(scenario_choice=1,'Development days'!L110,IF(scenario_choice=2,'Development days'!M110,IF(scenario_choice=3,'Development days'!N110,IF(scenario_choice=4,'Development days'!O110,'Development days'!P110)))) -> N/A | I82: =IF(scenario_choice=1,'Development days'!Q110,IF(scenario_choice=2,'Development days'!R110,IF(scenario_choice=3,'Development days'!S110,IF(scenario_choice=4,'Development days'!T110,'Development days'!U110)))) -> N/A | J82: =IF(scenario_choice=1,'Development days'!V110,IF(scenario_choice=2,'Development days'!W110,IF(scenario_choice=3,'Development days'!X110,IF(scenario_choice=4,'Development days'!Y110,'Development days'!Z110)))) -> 10 | K82: 5263.157895 | L82: ='Development days'!AA110 -> No | M82: =IF(L82="Yes",K82*'Salary . staff rates'!$B$34,0) -> 0
C83: 13.4 | D83: Acceptance testing / handover to live operation | E83: =IF(scenario_choice=1,'Development days'!B111,IF(scenario_choice=2,'Development days'!C111,IF(scenario_choice=3,'Development days'!D111,IF(scenario_choice=4,'Development days'!E111,'Development days'!F111)))) -> Project management | F83: =IF(scenario_choice=1,'Development days'!G111,IF(scenario_choice=2,'Development days'!H111,IF(scenario_choice=3,'Development days'!I111,IF(scenario_choice=4,'Development days'!J111,'Development days'!K111)))) -> Middle manager | G83: =IF(E83="Employee",(INDEX('Salary . staff rates'!$B$6:$B$10,MATCH('Auto-PAC CPS variant'!F83,'Salary . staff rates'!$A$6:$A$10,0)))/working_days*(1+loading_factor),IF(E83="External",(INDEX('Salary . staff rates'!$B$18:$B$22,MATCH('Auto-PAC CPS variant'!F83,'Salary . staff rates'!$A$18:$A$22,0))),IF(E83="Project management",INDEX('Salary . staff rates'!$B$13:$B$15,MATCH('Auto-PAC CPS variant'!F83,'Salary . staff rates'!$A$13:$A$15,0))/working_days*(1+loading_factor),"N/A"))) -> 526.3157895 | H83: =IF(scenario_choice=1,'Development days'!L111,IF(scenario_choice=2,'Development days'!M111,IF(scenario_choice=3,'Development days'!N111,IF(scenario_choice=4,'Development days'!O111,'Development days'!P111)))) -> N/A | I83: =IF(scenario_choice=1,'Development days'!Q111,IF(scenario_choice=2,'Development days'!R111,IF(scenario_choice=3,'Development days'!S111,IF(scenario_choice=4,'Development days'!T111,'Development days'!U111)))) -> N/A | J83: =IF(scenario_choice=1,'Development days'!V111,IF(scenario_choice=2,'Development days'!W111,IF(scenario_choice=3,'Development days'!X111,IF(scenario_choice=4,'Development days'!Y111,'Development days'!Z111)))) -> 12 | K83: 6315.789474 | L83: ='Development days'!AA111 -> No | M83: =IF(L83="Yes",K83*'Salary . staff rates'!$B$34,0) -> 0
C84: 13.5 | D84: Project management resource | E84: =IF(scenario_choice=1,'Development days'!B112,IF(scenario_choice=2,'Development days'!C112,IF(scenario_choice=3,'Development days'!D112,IF(scenario_choice=4,'Development days'!E112,'Development days'!F112)))) -> Project management | F84: =IF(scenario_choice=1,'Development days'!G112,IF(scenario_choice=2,'Development days'!H112,IF(scenario_choice=3,'Development days'!I112,IF(scenario_choice=4,'Development days'!J112,'Development days'!K112)))) -> Middle manager | G84: =IF(E84="Employee",(INDEX('Salary . staff rates'!$B$6:$B$10,MATCH('Auto-PAC CPS variant'!F84,'Salary . staff rates'!$A$6:$A$10,0)))/working_days*(1+loading_factor),IF(E84="External",(INDEX('Salary . staff rates'!$B$18:$B$22,MATCH('Auto-PAC CPS variant'!F84,'Salary . staff rates'!$A$18:$A$22,0))),IF(E84="Project management",INDEX('Salary . staff rates'!$B$13:$B$15,MATCH('Auto-PAC CPS variant'!F84,'Salary . staff rates'!$A$13:$A$15,0))/working_days*(1+loading_factor),"N/A"))) -> 526.3157895 | H84: =IF(scenario_choice=1,'Development days'!L112,IF(scenario_choice=2,'Development days'!M112,IF(scenario_choice=3,'Development days'!N112,IF(scenario_choice=4,'Development days'!O112,'Development days'!P112)))) -> N/A | I84: =IF(scenario_choice=1,'Development days'!Q112,IF(scenario_choice=2,'Development days'!R112,IF(scenario_choice=3,'Development days'!S112,IF(scenario_choice=4,'Development days'!T112,'Development days'!U112)))) -> N/A | J84: =IF(scenario_choice=1,'Development days'!V112,IF(scenario_choice=2,'Development days'!W112,IF(scenario_choice=3,'Development days'!X112,IF(scenario_choice=4,'Development days'!Y112,'Development days'!Z112)))) -> 7 | K84: 3684.210526 | L84: ='Development days'!AA112 -> No | M84: =IF(L84="Yes",K84*'Salary . staff rates'!$B$34,0) -> 0
A85: 14. Repatriations: Additional training | B85: Ensure that IT system admin, billing system admin and CSA staff understand implications of new integrated and centrally managed repatriation processes and functions | C85: 14.1 | D85: Internal impact assessment | E85: =IF(scenario_choice=1,'Development days'!B113,IF(scenario_choice=2,'Development days'!C113,IF(scenario_choice=3,'Development days'!D113,IF(scenario_choice=4,'Development days'!E113,'Development days'!F113)))) -> Employee | F85: =IF(scenario_choice=1,'Development days'!G113,IF(scenario_choice=2,'Development days'!H113,IF(scenario_choice=3,'Development days'!I113,IF(scenario_choice=4,'Development days'!J113,'Development days'!K113)))) -> IT engineer | G85: =IF(E85="Employee",(INDEX('Salary . staff rates'!$B$6:$B$10,MATCH('Auto-PAC CPS variant'!F85,'Salary . staff rates'!$A$6:$A$10,0)))/working_days*(1+loading_factor),IF(E85="External",(INDEX('Salary . staff rates'!$B$18:$B$22,MATCH('Auto-PAC CPS variant'!F85,'Salary . staff rates'!$A$18:$A$22,0))),IF(E85="Project management",INDEX('Salary . staff rates'!$B$13:$B$15,MATCH('Auto-PAC CPS variant'!F85,'Salary . staff rates'!$A$13:$A$15,0))/working_days*(1+loading_factor),"N/A"))) -> 456.1403509 | H85: =IF(scenario_choice=1,'Development days'!L113,IF(scenario_choice=2,'Development days'!M113,IF(scenario_choice=3,'Development days'!N113,IF(scenario_choice=4,'Development days'!O113,'Development days'!P113)))) -> 2 | I85: =IF(scenario_choice=1,'Development days'!Q113,IF(scenario_choice=2,'Development days'!R113,IF(scenario_choice=3,'Development days'!S113,IF(scenario_choice=4,'Development days'!T113,'Development days'!U113)))) -> 4 | J85: =IF(scenario_choice=1,'Development days'!V113,IF(scenario_choice=2,'Development days'!W113,IF(scenario_choice=3,'Development days'!X113,IF(scenario_choice=4,'Development days'!Y113,'Development days'!Z113)))) -> 8 | K85: 3649.122807 | L85: ='Development days'!AA113 -> No | M85: =IF(L85="Yes",K85*'Salary . staff rates'!$B$34,0) -> 0
C86: 14.2 | D86: Develop training materials | E86: =IF(scenario_choice=1,'Development days'!B114,IF(scenario_choice=2,'Development days'!C114,IF(scenario_choice=3,'Development days'!D114,IF(scenario_choice=4,'Development days'!E114,'Development days'!F114)))) -> Employee | F86: =IF(scenario_choice=1,'Development days'!G114,IF(scenario_choice=2,'Development days'!H114,IF(scenario_choice=3,'Development days'!I114,IF(scenario_choice=4,'Development days'!J114,'Development days'!K114)))) -> Training team | G86: =IF(E86="Employee",(INDEX('Salary . staff rates'!$B$6:$B$10,MATCH('Auto-PAC CPS variant'!F86,'Salary . staff rates'!$A$6:$A$10,0)))/working_days*(1+loading_factor),IF(E86="External",(INDEX('Salary . staff rates'!$B$18:$B$22,MATCH('Auto-PAC CPS variant'!F86,'Salary . staff rates'!$A$18:$A$22,0))),IF(E86="Project management",INDEX('Salary . staff rates'!$B$13:$B$15,MATCH('Auto-PAC CPS variant'!F86,'Salary . staff rates'!$A$13:$A$15,0))/working_days*(1+loading_factor),"N/A"))) -> 315.7894737 | H86: =IF(scenario_choice=1,'Development days'!L114,IF(scenario_choice=2,'Development days'!M114,IF(scenario_choice=3,'Development days'!N114,IF(scenario_choice=4,'Development days'!O114,'Development days'!P114)))) -> 8 | I86: =IF(scenario_choice=1,'Development days'!Q114,IF(scenario_choice=2,'Development days'!R114,IF(scenario_choice=3,'Development days'!S114,IF(scenario_choice=4,'Development days'!T114,'Development days'!U114)))) -> 7 | J86: =IF(scenario_choice=1,'Development days'!V114,IF(scenario_choice=2,'Development days'!W114,IF(scenario_choice=3,'Development days'!X114,IF(scenario_choice=4,'Development days'!Y114,'Development days'!Z114)))) -> 56 | K86: 17684.21053 | L86: ='Development days'!AA114 -> No | M86: =IF(L86="Yes",K86*'Salary . staff rates'!$B$34,0) -> 0
C87: 14.3 | D87: Delivery of training | E87: =IF(scenario_choice=1,'Development days'!B115,IF(scenario_choice=2,'Development days'!C115,IF(scenario_choice=3,'Development days'!D115,IF(scenario_choice=4,'Development days'!E115,'Development days'!F115)))) -> Employee | F87: =IF(scenario_choice=1,'Development days'!G115,IF(scenario_choice=2,'Development days'!H115,IF(scenario_choice=3,'Development days'!I115,IF(scenario_choice=4,'Development days'!J115,'Development days'!K115)))) -> Training team | G87: =IF(E87="Employee",(INDEX('Salary . staff rates'!$B$6:$B$10,MATCH('Auto-PAC CPS variant'!F87,'Salary . staff rates'!$A$6:$A$10,0)))/working_days*(1+loading_factor),IF(E87="External",(INDEX('Salary . staff rates'!$B$18:$B$22,MATCH('Auto-PAC CPS variant'!F87,'Salary . staff rates'!$A$18:$A$22,0))),IF(E87="Project management",INDEX('Salary . staff rates'!$B$13:$B$15,MATCH('Auto-PAC CPS variant'!F87,'Salary . staff rates'!$A$13:$A$15,0))/working_days*(1+loading_factor),"N/A"))) -> 315.7894737 | H87: =IF(scenario_choice=1,'Development days'!L115,IF(scenario_choice=2,'Development days'!M115,IF(scenario_choice=3,'Development days'!N115,IF(scenario_choice=4,'Development days'!O115,'Development days'!P115)))) -> 8 | I87: =IF(scenario_choice=1,'Development days'!Q115,IF(scenario_choice=2,'Development days'!R115,IF(scenario_choice=3,'Development days'!S115,IF(scenario_choice=4,'Development days'!T115,'Development days'!U115)))) -> 10 | J87: =IF(scenario_choice=1,'Development days'!V115,IF(scenario_choice=2,'Development days'!W115,IF(scenario_choice=3,'Development days'!X115,IF(scenario_choice=4,'Development days'!Y115,'Development days'!Z115)))) -> 80 | K87: 25263.15789 | L87: ='Development days'!AA115 -> No | M87: =IF(L87="Yes",K87*'Salary . staff rates'!$B$34,0) -> 0
C88: 14.4 | D88: Delivery of training | E88: =IF(scenario_choice=1,'Development days'!B116,IF(scenario_choice=2,'Development days'!C116,IF(scenario_choice=3,'Development days'!D116,IF(scenario_choice=4,'Development days'!E116,'Development days'!F116)))) -> Employee | F88: =IF(scenario_choice=1,'Development days'!G116,IF(scenario_choice=2,'Development days'!H116,IF(scenario_choice=3,'Development days'!I116,IF(scenario_choice=4,'Development days'!J116,'Development days'!K116)))) -> IT engineer | G88: =IF(E88="Employee",(INDEX('Salary . staff rates'!$B$6:$B$10,MATCH('Auto-PAC CPS variant'!F88,'Salary . staff rates'!$A$6:$A$10,0)))/working_days*(1+loading_factor),IF(E88="External",(INDEX('Salary . staff rates'!$B$18:$B$22,MATCH('Auto-PAC CPS variant'!F88,'Salary . staff rates'!$A$18:$A$22,0))),IF(E88="Project management",INDEX('Salary . staff rates'!$B$13:$B$15,MATCH('Auto-PAC CPS variant'!F88,'Salary . staff rates'!$A$13:$A$15,0))/working_days*(1+loading_factor),"N/A"))) -> 456.1403509 | H88: =IF(scenario_choice=1,'Development days'!L116,IF(scenario_choice=2,'Development days'!M116,IF(scenario_choice=3,'Development days'!N116,IF(scenario_choice=4,'Development days'!O116,'Development days'!P116)))) -> 60 | I88: =IF(scenario_choice=1,'Development days'!Q116,IF(scenario_choice=2,'Development days'!R116,IF(scenario_choice=3,'Development days'!S116,IF(scenario_choice=4,'Development days'!T116,'Development days'!U116)))) -> 0.5 | J88: =IF(scenario_choice=1,'Development days'!V116,IF(scenario_choice=2,'Development days'!W116,IF(scenario_choice=3,'Development days'!X116,IF(scenario_choice=4,'Development days'!Y116,'Development days'!Z116)))) -> 30 | K88: 13684.21053 | L88: ='Development days'!AA116 -> No | M88: =IF(L88="Yes",K88*'Salary . staff rates'!$B$34,0) -> 0
E89: =IF(scenario_choice=1,'Development days'!B117,IF(scenario_choice=2,'Development days'!C117,IF(scenario_choice=3,'Development days'!D117,IF(scenario_choice=4,'Development days'!E117,'Development days'!F117)))) -> Employee | F89: =IF(scenario_choice=1,'Development days'!G117,IF(scenario_choice=2,'Development days'!H117,IF(scenario_choice=3,'Development days'!I117,IF(scenario_choice=4,'Development days'!J117,'Development days'!K117)))) -> Billing administrators | G89: =IF(E89="Employee",(INDEX('Salary . staff rates'!$B$6:$B$10,MATCH('Auto-PAC CPS variant'!F89,'Salary . staff rates'!$A$6:$A$10,0)))/working_days*(1+loading_factor),IF(E89="External",(INDEX('Salary . staff rates'!$B$18:$B$22,MATCH('Auto-PAC CPS variant'!F89,'Salary . staff rates'!$A$18:$A$22,0))),IF(E89="Project management",INDEX('Salary . staff rates'!$B$13:$B$15,MATCH('Auto-PAC CPS variant'!F89,'Salary . staff rates'!$A$13:$A$15,0))/working_days*(1+loading_factor),"N/A"))) -> 259.6491228 | H89: =IF(scenario_choice=1,'Development days'!L117,IF(scenario_choice=2,'Development days'!M117,IF(scenario_choice=3,'Development days'!N117,IF(scenario_choice=4,'Development days'!O117,'Development days'!P117)))) -> 30 | I89: =IF(scenario_choice=1,'Development days'!Q117,IF(scenario_choice=2,'Development days'!R117,IF(scenario_choice=3,'Development days'!S117,IF(scenario_choice=4,'Development days'!T117,'Development days'!U117)))) -> 0.5 | J89: =IF(scenario_choice=1,'Development days'!V117,IF(scenario_choice=2,'Development days'!W117,IF(scenario_choice=3,'Development days'!X117,IF(scenario_choice=4,'Development days'!Y117,'Development days'!Z117)))) -> 15 | K89: 3894.736842 | L89: ='Development days'!AA117 -> No | M89: =IF(L89="Yes",K89*'Salary . staff rates'!$B$34,0) -> 0
E90: =IF(scenario_choice=1,'Development days'!B118,IF(scenario_choice=2,'Development days'!C118,IF(scenario_choice=3,'Development days'!D118,IF(scenario_choice=4,'Development days'!E118,'Development days'!F118)))) -> Employee | F90: =IF(scenario_choice=1,'Development days'!G118,IF(scenario_choice=2,'Development days'!H118,IF(scenario_choice=3,'Development days'!I118,IF(scenario_choice=4,'Development days'!J118,'Development days'!K118)))) -> CSAs | G90: =IF(E90="Employee",(INDEX('Salary . staff rates'!$B$6:$B$10,MATCH('Auto-PAC CPS variant'!F90,'Salary . staff rates'!$A$6:$A$10,0)))/working_days*(1+loading_factor),IF(E90="External",(INDEX('Salary . staff rates'!$B$18:$B$22,MATCH('Auto-PAC CPS variant'!F90,'Salary . staff rates'!$A$18:$A$22,0))),IF(E90="Project management",INDEX('Salary . staff rates'!$B$13:$B$15,MATCH('Auto-PAC CPS variant'!F90,'Salary . staff rates'!$A$13:$A$15,0))/working_days*(1+loading_factor),"N/A"))) -> 140.5988406 | H90: =IF(scenario_choice=1,'Development days'!L118,IF(scenario_choice=2,'Development days'!M118,IF(scenario_choice=3,'Development days'!N118,IF(scenario_choice=4,'Development days'!O118,'Development days'!P118)))) -> 10400 | I90: =IF(scenario_choice=1,'Development days'!Q118,IF(scenario_choice=2,'Development days'!R118,IF(scenario_choice=3,'Development days'!S118,IF(scenario_choice=4,'Development days'!T118,'Development days'!U118)))) -> 0.125 | J90: =IF(scenario_choice=1,'Development days'!V118,IF(scenario_choice=2,'Development days'!W118,IF(scenario_choice=3,'Development days'!X118,IF(scenario_choice=4,'Development days'!Y118,'Development days'!Z118)))) -> 1300 | K90: 182778.4928 | L90: ='Development days'!AA118 -> No | M90: =IF(L90="Yes",K90*'Salary . staff rates'!$B$34,0) -> 0
A92: GP role
A94: All operators
A95: 15. Update GP CRM systems to enable cancellations to be initiated | B95: Develop functionality for SGP CSR to initiate cancellation requests once code is passed from consumer to GP | C95: 15.1 | D95: Internal impact assessment | E95: =IF(scenario_choice=1,'Development days'!B123,IF(scenario_choice=2,'Development days'!C123,IF(scenario_choice=3,'Development days'!D123,IF(scenario_choice=4,'Development days'!E123,'Development days'!F123)))) -> Employee | F95: =IF(scenario_choice=1,'Development days'!G123,IF(scenario_choice=2,'Development days'!H123,IF(scenario_choice=3,'Development days'!I123,IF(scenario_choice=4,'Development days'!J123,'Development days'!K123)))) -> IT engineer | G95: =IF(E95="Employee",(INDEX('Salary . staff rates'!$B$6:$B$10,MATCH('Auto-PAC CPS variant'!F95,'Salary . staff rates'!$A$6:$A$10,0)))/working_days*(1+loading_factor),IF(E95="External",(INDEX('Salary . staff rates'!$B$18:$B$22,MATCH('Auto-PAC CPS variant'!F95,'Salary . staff rates'!$A$18:$A$22,0))),IF(E95="Project management",INDEX('Salary . staff rates'!$B$13:$B$15,MATCH('Auto-PAC CPS variant'!F95,'Salary . staff rates'!$A$13:$A$15,0))/working_days*(1+loading_factor),"N/A"))) -> 456.1403509 | H95: =IF(scenario_choice=1,'Development days'!L123,IF(scenario_choice=2,'Development days'!M123,IF(scenario_choice=3,'Development days'!N123,IF(scenario_choice=4,'Development days'!O123,'Development days'!P123)))) -> N/A | I95: =IF(scenario_choice=1,'Development days'!Q123,IF(scenario_choice=2,'Development days'!R123,IF(scenario_choice=3,'Development days'!S123,IF(scenario_choice=4,'Development days'!T123,'Development days'!U123)))) -> N/A | J95: =IF(scenario_choice=1,'Development days'!V123,IF(scenario_choice=2,'Development days'!W123,IF(scenario_choice=3,'Development days'!X123,IF(scenario_choice=4,'Development days'!Y123,'Development days'!Z123)))) -> 15 | K95: =IF(J95="N/A","",G95*J95) -> 6842.105263 | L95: ='Development days'!AA123 -> No | M95: =IF(L95="Yes",K95*'Salary . staff rates'!$B$34,0) -> 0
C96: 15.2 | D96: Develop functionality to allow separate initiation of ports and cancellations - GP role | E96: =IF(scenario_choice=1,'Development days'!B124,IF(scenario_choice=2,'Development days'!C124,IF(scenario_choice=3,'Development days'!D124,IF(scenario_choice=4,'Development days'!E124,'Development days'!F124)))) -> External | F96: =IF(scenario_choice=1,'Development days'!G124,IF(scenario_choice=2,'Development days'!H124,IF(scenario_choice=3,'Development days'!I124,IF(scenario_choice=4,'Development days'!J124,'Development days'!K124)))) -> MNO CRM vendor | G96: =IF(E96="Employee",(INDEX('Salary . staff rates'!$B$6:$B$10,MATCH('Auto-PAC CPS variant'!F96,'Salary . staff rates'!$A$6:$A$10,0)))/working_days*(1+loading_factor),IF(E96="External",(INDEX('Salary . staff rates'!$B$18:$B$22,MATCH('Auto-PAC CPS variant'!F96,'Salary . staff rates'!$A$18:$A$22,0))),IF(E96="Project management",INDEX('Salary . staff rates'!$B$13:$B$15,MATCH('Auto-PAC CPS variant'!F96,'Salary . staff rates'!$A$13:$A$15,0))/working_days*(1+loading_factor),"N/A"))) -> 750 | H96: =IF(scenario_choice=1,'Development days'!L124,IF(scenario_choice=2,'Development days'!M124,IF(scenario_choice=3,'Development days'!N124,IF(scenario_choice=4,'Development days'!O124,'Development days'!P124)))) -> N/A | I96: =IF(scenario_choice=1,'Development days'!Q124,IF(scenario_choice=2,'Development days'!R124,IF(scenario_choice=3,'Development days'!S124,IF(scenario_choice=4,'Development days'!T124,'Development days'!U124)))) -> N/A | J96: =IF(scenario_choice=1,'Development days'!V124,IF(scenario_choice=2,'Development days'!W124,IF(scenario_choice=3,'Development days'!X124,IF(scenario_choice=4,'Development days'!Y124,'Development days'!Z124)))) -> 50 | K96: =IF(J96="N/A","",G96*J96) -> 37500 | L96: ='Development days'!AA124 -> Yes | M96: =IF(L96="Yes",K96*'Salary . staff rates'!$B$34,0) -> 5625
C97: 15.3 | D97: Acceptance testing / handover to live operation, including testing with CPS and other providers / block operators / routing operators | E97: =IF(scenario_choice=1,'Development days'!B125,IF(scenario_choice=2,'Development days'!C125,IF(scenario_choice=3,'Development days'!D125,IF(scenario_choice=4,'Development days'!E125,'Development days'!F125)))) -> Employee | F97: =IF(scenario_choice=1,'Development days'!G125,IF(scenario_choice=2,'Development days'!H125,IF(scenario_choice=3,'Development days'!I125,IF(scenario_choice=4,'Development days'!J125,'Development days'!K125)))) -> IT engineer | G97: =IF(E97="Employee",(INDEX('Salary . staff rates'!$B$6:$B$10,MATCH('Auto-PAC CPS variant'!F97,'Salary . staff rates'!$A$6:$A$10,0)))/working_days*(1+loading_factor),IF(E97="External",(INDEX('Salary . staff rates'!$B$18:$B$22,MATCH('Auto-PAC CPS variant'!F97,'Salary . staff rates'!$A$18:$A$22,0))),IF(E97="Project management",INDEX('Salary . staff rates'!$B$13:$B$15,MATCH('Auto-PAC CPS variant'!F97,'Salary . staff rates'!$A$13:$A$15,0))/working_days*(1+loading_factor),"N/A"))) -> 456.1403509 | H97: =IF(scenario_choice=1,'Development days'!L125,IF(scenario_choice=2,'Development days'!M125,IF(scenario_choice=3,'Development days'!N125,IF(scenario_choice=4,'Development days'!O125,'Development days'!P125)))) -> N/A | I97: =IF(scenario_choice=1,'Development days'!Q125,IF(scenario_choice=2,'Development days'!R125,IF(scenario_choice=3,'Development days'!S125,IF(scenario_choice=4,'Development days'!T125,'Development days'!U125)))) -> N/A | J97: =IF(scenario_choice=1,'Development days'!V125,IF(scenario_choice=2,'Development days'!W125,IF(scenario_choice=3,'Development days'!X125,IF(scenario_choice=4,'Development days'!Y125,'Development days'!Z125)))) -> 30 | K97: =IF(J97="N/A","",G97*J97) -> 13684.21053 | L97: ='Development days'!AA125 -> Yes | M97: =IF(L97="Yes",K97*'Salary . staff rates'!$B$34,0) -> 2052.631579
C98: 15.4 | D98: Project management resource | E98: =IF(scenario_choice=1,'Development days'!B126,IF(scenario_choice=2,'Development days'!C126,IF(scenario_choice=3,'Development days'!D126,IF(scenario_choice=4,'Development days'!E126,'Development days'!F126)))) -> Project management | F98: =IF(scenario_choice=1,'Development days'!G126,IF(scenario_choice=2,'Development days'!H126,IF(scenario_choice=3,'Development days'!I126,IF(scenario_choice=4,'Development days'!J126,'Development days'!K126)))) -> Middle manager | G98: =IF(E98="Employee",(INDEX('Salary . staff rates'!$B$6:$B$10,MATCH('Auto-PAC CPS variant'!F98,'Salary . staff rates'!$A$6:$A$10,0)))/working_days*(1+loading_factor),IF(E98="External",(INDEX('Salary . staff rates'!$B$18:$B$22,MATCH('Auto-PAC CPS variant'!F98,'Salary . staff rates'!$A$18:$A$22,0))),IF(E98="Project management",INDEX('Salary . staff rates'!$B$13:$B$15,MATCH('Auto-PAC CPS variant'!F98,'Salary . staff rates'!$A$13:$A$15,0))/working_days*(1+loading_factor),"N/A"))) -> 526.3157895 | H98: =IF(scenario_choice=1,'Development days'!L126,IF(scenario_choice=2,'Development days'!M126,IF(scenario_choice=3,'Development days'!N126,IF(scenario_choice=4,'Development days'!O126,'Development days'!P126)))) -> N/A | I98: =IF(scenario_choice=1,'Development days'!Q126,IF(scenario_choice=2,'Development days'!R126,IF(scenario_choice=3,'Development days'!S126,IF(scenario_choice=4,'Development days'!T126,'Development days'!U126)))) -> N/A | J98: =IF(scenario_choice=1,'Development days'!V126,IF(scenario_choice=2,'Development days'!W126,IF(scenario_choice=3,'Development days'!X126,IF(scenario_choice=4,'Development days'!Y126,'Development days'!Z126)))) -> 15 | K98: =IF(J98="N/A","",G98*J98) -> 7894.736842 | L98: ='Development days'!AA126 -> No | M98: =IF(L98="Yes",K98*'Salary . staff rates'!$B$34,0) -> 0
A100: MNOs and MVNEs/MVNAs
A101: 16. Establish Small MVNO Porting Portal | B101: Establish Porting Portal to enable Small MVNOs initiate new porting / cancellation requests (GP) and to notify port outs to enable cessation of billing and account deactivation (LP) | C101: 16.1 | D101: Internal impact assessment | E101: =IF(scenario_choice=1,'Development days'!B129,IF(scenario_choice=2,'Development days'!C129,IF(scenario_choice=3,'Development days'!D129,IF(scenario_choice=4,'Development days'!E129,'Development days'!F129)))) -> Employee | F101: =IF(scenario_choice=1,'Development days'!G129,IF(scenario_choice=2,'Development days'!H129,IF(scenario_choice=3,'Development days'!I129,IF(scenario_choice=4,'Development days'!J129,'Development days'!K129)))) -> IT engineer | G101: =IF(E101="Employee",(INDEX('Salary . staff rates'!$B$6:$B$10,MATCH('Auto-PAC CPS variant'!F101,'Salary . staff rates'!$A$6:$A$10,0)))/working_days*(1+loading_factor),IF(E101="External",(INDEX('Salary . staff rates'!$B$18:$B$22,MATCH('Auto-PAC CPS variant'!F101,'Salary . staff rates'!$A$18:$A$22,0))),IF(E101="Project management",INDEX('Salary . staff rates'!$B$13:$B$15,MATCH('Auto-PAC CPS variant'!F101,'Salary . staff rates'!$A$13:$A$15,0))/working_days*(1+loading_factor),"N/A"))) -> 456.1403509 | H101: =IF(scenario_choice=1,'Development days'!L129,IF(scenario_choice=2,'Development days'!M129,IF(scenario_choice=3,'Development days'!N129,IF(scenario_choice=4,'Development days'!O129,'Development days'!P129)))) -> N/A | I101: =IF(scenario_choice=1,'Development days'!Q129,IF(scenario_choice=2,'Development days'!R129,IF(scenario_choice=3,'Development days'!S129,IF(scenario_choice=4,'Development days'!T129,'Development days'!U129)))) -> N/A | J101: =IF(scenario_choice=1,'Development days'!V129,IF(scenario_choice=2,'Development days'!W129,IF(scenario_choice=3,'Development days'!X129,IF(scenario_choice=4,'Development days'!Y129,'Development days'!Z129)))) -> 5 | K101: =IF(J101="N/A","",G101*J101) -> 2280.701754 | L101: ='Development days'!AA129 -> No | M101: =IF(J101="N/A",0,IF(L101="Yes",K101*'Salary . staff rates'!$B$34,0)) -> 0
